Ref No,Fund Type,Dept,Cost Centre Description    ,Description    ,Creditor Name    ,GL Code Net Amount,Payment date        
2,Revenue,CAHD,CSC - Vinney Green Secure Unit,Educational Materials, AMS Dyslexia Support,600.00, 31-Oct-2022
3,Revenue,CAHD,Central - Commissioned Services,Permanent Residential,1 St Georges House,13333.52, 18-Oct-2022
4,Revenue,CAHD,Central - Commissioned Services,Fees & Charges Income - General,1 St Georges House,-438.80, 18-Oct-2022
5,Revenue,CAHD,CSC - LAC Housing Support Grants,Grants to Voluntary Bodies,1625 Independent People,3343.00, 17-Oct-2022
6,Revenue,CAHD,CSC - UASC Housing Support,Grants to Voluntary Bodies,1625 Independent People,9174.25, 14-Oct-2022
7,Revenue,CAHD,CSC - LAC Housing Support Grants,Grants to Voluntary Bodies,1625 Independent People,12082.50, 14-Oct-2022
8,Revenue,CAHD,CSC - North LAC Placements,Personal Needs of Clients,1625 Independent People,872.98, 24-Oct-2022
9,Revenue,CAHD,CSC - Asylum Seekers - Unaccompanied,Independent Living,16Pluscare Support Solutions,18274.20, 14-Oct-2022
10,Revenue,CAHD,CSC - Care Leavers Independent Living,Independent Living,16Pluscare Support Solutions,14134.20, 13-Oct-2022
11,Revenue,CAHD,South - Commissioned Services,Permanent Residential,2Nd Floor Building,5630.76, 18-Oct-2022
12,Revenue,CAHD,South - Commissioned Services,Fees & Charges Income - General,2Nd Floor Building,-438.80, 18-Oct-2022
13,Revenue,CAHD,North - Community based support,Permanent Residential,2Nd Floor Building,4938.12, 18-Oct-2022
14,Revenue,CAHD,North - Community based support,Fees & Charges Income - General,2Nd Floor Building,-438.80, 18-Oct-2022
15,Revenue,CAHD,Central - Commissioned Services,Other Small Contracts,3 Trees Community Support Limited,171.64, 05-Oct-2022
16,Revenue,CAHD,Central - Commissioned Services,Supported Living,3 Trees Community Support Limited,12068.13, 05-Oct-2022
17,Revenue,CAHD,Central - Commissioned Services,Supported Living,3 Trees Community Support Limited,12089.77, 05-Oct-2022
18,Revenue,CAHD,Central - Commissioned Services,Supported Living,3 Trees Community Support Limited,12146.64, 05-Oct-2022
19,Revenue,CAHD,South - Commissioned Services,Supported Living,3 Trees Community Support Limited,14472.00, 05-Oct-2022
20,Revenue,CAHD,Central - Commissioned Services,Other Small Contracts,3 Trees Community Support Limited,151.20, 17-Oct-2022
21,Revenue,CAHD,Central - Commissioned Services,Supported Living,3 Trees Community Support Limited,9307.93, 17-Oct-2022
22,Revenue,CAHD,Central - Commissioned Services,Supported Living,3 Trees Community Support Limited,9067.52, 17-Oct-2022
23,Revenue,CAHD,Central - Commissioned Services,Supported Living,3 Trees Community Support Limited,9067.52, 17-Oct-2022
24,Revenue,CAHD,South - Commissioned Services,Supported Living,3 Trees Community Support Limited,6715.52, 17-Oct-2022
25,Revenue,CAHD,North - Community based support,Supported Living,3 Trees Community Support Limited,3021.76, 17-Oct-2022
26,Revenue,CAHD,Central - Commissioned Services,Supported Living,3 Trees Community Support Limited,3024.00, 27-Oct-2022
27,Revenue,CAHD,Central - Commissioned Services,Supported Living,3 Trees Community Support Limited,3024.00, 27-Oct-2022
28,Revenue,CAHD,Central - Commissioned Services,Supported Living,3 Trees Community Support Limited,3024.00, 27-Oct-2022
29,Revenue,CAHD,South - Commissioned Services,Supported Living,3 Trees Community Support Limited,3086.72, 27-Oct-2022
30,Revenue,CAHD,South - Commissioned Services,Permanent Residential,5Th Floor Harlech Court,12291.40, 18-Oct-2022
31,Revenue,CAHD,South - Commissioned Services,Permanent Residential,5Th Floor Harlech Court,17913.24, 18-Oct-2022
32,Revenue,CAHD,South - Commissioned Services,Permanent Residential,5Th Floor Harlech Court,18839.56, 18-Oct-2022
33,Revenue,CAHD,South - Commissioned Services,Fees & Charges Income - General,5Th Floor Harlech Court,-582.88, 18-Oct-2022
34,Revenue,CAHD,South - Commissioned Services,Fees & Charges Income - General,5Th Floor Harlech Court,-438.80, 18-Oct-2022
35,Revenue,CAHD,South - Commissioned Services,Fees & Charges Income - General,5Th Floor Harlech Court,-418.80, 18-Oct-2022
36,Revenue,CAHD,S28A cases,Permanent Residential,5Th Floor Harlech Court,11719.96, 18-Oct-2022
37,Revenue,CAHD,S28A cases,Fees & Charges Income - General,5Th Floor Harlech Court,-399.80, 18-Oct-2022
38,Revenue,CAHD,North - Community based support,Permanent Residential,5Th Floor Harlech Court,12498.56, 18-Oct-2022
39,Revenue,CAHD,North - Community based support,Fees & Charges Income - General,5Th Floor Harlech Court,-450.80, 18-Oct-2022
40,Revenue,CAHD,Central - Commissioned Services,Permanent Residential,5Th Floor Harlech Court,15338.12, 18-Oct-2022
41,Revenue,CAHD,Central - Commissioned Services,Fees & Charges Income - General,5Th Floor Harlech Court,-438.80, 18-Oct-2022
42,Revenue,CAHD,North - Community based support,Permanent Residential,5Th Floor Harlech Court,9615.40, 18-Oct-2022
43,Revenue,CAHD,North - Community based support,Permanent Residential,5Th Floor Harlech Court,10853.36, 18-Oct-2022
44,Revenue,CAHD,North - Community based support,Fees & Charges Income - General,5Th Floor Harlech Court,-438.80, 18-Oct-2022
45,Revenue,CAHD,North - Community based support,Fees & Charges Income - General,5Th Floor Harlech Court,-438.80, 18-Oct-2022
46,Revenue,CAHD,CSC - Section 17 CENTRAL,Client Transport Recharge,A Star Taxi`s Ltd,1338.75, 20-Oct-2022
47,Revenue,CAHD,CSC - Section 17 CENTRAL,Client Transport Recharge,A Star Taxi`s Ltd,1338.75, 20-Oct-2022
48,Revenue,CAHD,Community Support - Central,Preventative Assistance,A Taxis,495.00, 21-Oct-2022
49,Revenue,CAHD,Central - Commissioned Services,Non Residential Care Income,A4E Management Ltd,-112.74, 14-Oct-2022
50,Revenue,CAHD,Central - Commissioned Services,Non Residential Care Income,A4E Management Ltd,-112.74, 28-Oct-2022
51,Revenue,CAHD,CSC - Asylum Seekers - Unaccompanied,Independent Living,Ability Supported Living Limited,6484.28, 07-Oct-2022
52,Revenue,CAHD,South - Commissioned Services,Permanent Nursing,Acacia House,3085.88, 18-Oct-2022
53,Revenue,CAHD,South - Commissioned Services,Fees & Charges Income - General,Acacia House,-1074.60, 18-Oct-2022
54,Revenue,CAHD,Central - Commissioned Services,Permanent Nursing,Acacia House,3777.92, 18-Oct-2022
55,Revenue,CAHD,D2A spend on behalf of NHS,Respite Planned - Residential,Access UK Limited,13434.91, 17-Oct-2022
56,Revenue,CAHD,D2A spend on behalf of NHS,Respite Planned - Residential,Access UK Limited,13258.09, 28-Oct-2022
57,Revenue,CAHD,Central - Commissioned Services,Permanent Residential,Acer House Care Home.,4028.00, 18-Oct-2022
58,Revenue,CAHD,Central - Commissioned Services,Fees & Charges Income - General,Acer House Care Home.,-1093.68, 18-Oct-2022
59,Revenue,CAHD,Post 16 LDD Transport to college,Bus & Rail Passes (not one off tickets),Acorn Bus & Coach Limited,768.00, 05-Oct-2022
60,Revenue,CAHD,Post 16 LDD Transport to college,Bus & Rail Passes (not one off tickets),Acorn Bus & Coach Limited,576.00, 05-Oct-2022
61,Revenue,CAHD,Post 16 LDD Transport to college,Bus & Rail Passes (not one off tickets),Acorn Bus & Coach Limited,768.00, 25-Oct-2022
62,Revenue,CAHD,Post 16 LDD Transport to college,Bus & Rail Passes (not one off tickets),Acorn Bus & Coach Limited,768.00, 26-Oct-2022
63,Revenue,CAHD,MH Purchasing - Younger,Permanent Residential,Acorn Care Providers,6920.56, 18-Oct-2022
64,Revenue,CAHD,MH Purchasing - Younger,Permanent Residential,Acorn Care Providers,6795.68, 18-Oct-2022
65,Revenue,CAHD,North - S117,Permanent Residential,Acorn Care Providers,4311.40, 18-Oct-2022
66,Revenue,CAHD,Section 117 Placements MH Younger,Permanent Residential,Acorn Care Providers,5941.40, 18-Oct-2022
67,Revenue,CAHD,Jointly Funded H&SC Packages,Permanent Residential,Acorn Care Providers,3515.52, 18-Oct-2022
68,Revenue,CAHD,Jointly Funded H&SC Packages,Permanent Residential,Acorn Care Providers,2366.36, 18-Oct-2022
69,Revenue,CAHD,Jointly Funded H&SC Packages,Permanent Residential,Acorn Care Providers,2193.40, 18-Oct-2022
70,Revenue,CAHD,Training - Adult Services,Training Expenses,Acorn Health & Safety Limited,800.00, 20-Oct-2022
71,Revenue,CAHD,CSC - Fostering Carer Support,Training Expenses,Acorn Health & Safety Limited,479.00, 26-Oct-2022
72,Revenue,CAHD,Early Years Inclusion Fund,Other Public Bodies,Acorns Aviva,1250.00, 31-Oct-2022
73,Revenue,CAHD,CSC - Agency Fostering,Foster Parent Allowances,Action for Children,3897.01, 05-Oct-2022
74,Revenue,CAHD,CSC - Agency Fostering,Foster Parent Allowances,Action for Children,3771.30, 27-Oct-2022
75,Revenue,CAHD,CSC - Agency Fostering,Foster Parent Allowances,Action for Children,3666.00, 27-Oct-2022
76,Revenue,CAHD,CSC - Agency Fostering,Foster Parent Allowances,Action for Children,3666.00, 27-Oct-2022
77,Revenue,CAHD,CSC - Residential Placements,Permanent Residential,Action for Children,8290.00, 11-Oct-2022
78,Revenue,CAHD,CSC - Age Related Allowances,Foster Parent Allowances,Individual,384.00, 07-Oct-2022
79,Revenue,CAHD,CSC - Professional Fees Foster Carers,Band 3 Foster Care,Individual,486.00, 07-Oct-2022
80,Revenue,CAHD,CSC - Age Related Allowances,"Holidays, Outings & Visits",Individual,109.71, 14-Oct-2022
81,Revenue,CAHD,CSC - Age Related Allowances,Foster Parent Allowances,Individual,384.00, 14-Oct-2022
82,Revenue,CAHD,CSC - Professional Fees Foster Carers,Band 3 Foster Care,Individual,486.00, 14-Oct-2022
83,Revenue,CAHD,CSC - Age Related Allowances,Foster Parent Allowances,Individual,384.00, 21-Oct-2022
84,Revenue,CAHD,CSC - Professional Fees Foster Carers,Band 3 Foster Care,Individual,486.00, 21-Oct-2022
85,Revenue,CAHD,CSC - Age Related Allowances,Foster Parent Allowances,Individual,384.00, 28-Oct-2022
86,Revenue,CAHD,CSC - Professional Fees Foster Carers,Band 3 Foster Care,Individual,486.00, 28-Oct-2022
87,Revenue,CAHD,CSC - Asylum Seekers - Unaccompanied,Independent Living,Adolescent Support Home Services Ltd,6473.40, 21-Oct-2022
88,Revenue,CAHD,TSG Practice Placements,Training Expenses,Adoption West,1000.00, 11-Oct-2022
89,Revenue,CAHD,South - Commissioned Services,Other Small Contracts,Advantedge Commercial Finance Limited,2065.84, 05-Oct-2022
90,Revenue,CAHD,South - Commissioned Services,Other Small Contracts,Advantedge Commercial Finance Limited,295.12, 05-Oct-2022
91,Revenue,CAHD,South - Commissioned Services,Other Small Contracts,Advantedge Commercial Finance Limited,737.80, 05-Oct-2022
92,Revenue,CAHD,South - Commissioned Services,Other Small Contracts,Advantedge Commercial Finance Limited,737.80, 05-Oct-2022
93,Revenue,CAHD,South - Commissioned Services,Other Small Contracts,Advantedge Commercial Finance Limited,885.36, 05-Oct-2022
94,Revenue,CAHD,South - Commissioned Services,Other Small Contracts,Advantedge Commercial Finance Limited,969.68, 05-Oct-2022
95,Revenue,CAHD,South - Commissioned Services,Other Small Contracts,Advantedge Commercial Finance Limited,2635.00, 05-Oct-2022
96,Revenue,CAHD,South - Commissioned Services,Other Small Contracts,Advantedge Commercial Finance Limited,579.70, 05-Oct-2022
97,Revenue,CAHD,South - Commissioned Services,Other Small Contracts,Advantedge Commercial Finance Limited,1380.74, 12-Oct-2022
98,Revenue,CAHD,South - Commissioned Services,Other Small Contracts,Advantedge Commercial Finance Limited,1654.78, 12-Oct-2022
99,Revenue,CAHD,South - Commissioned Services,Other Small Contracts,Advantedge Commercial Finance Limited,595.51, 17-Oct-2022
100,Revenue,CAHD,Central - Commissioned Services,Day Care / Social Activities,Age Concern,1438.66, 18-Oct-2022
101,Revenue,CAHD,Central - Commissioned Services,Day Care / Social Activities,Age Concern,360.10, 18-Oct-2022
102,Revenue,CAHD,South - Commissioned Services,Day Care / Social Activities,Age Concern,288.08, 18-Oct-2022
103,Revenue,CAHD,North - Community based support,Day Care / Social Activities,Age Concern,681.60, 18-Oct-2022
104,Revenue,CAHD,North - Community based support,Day Care / Social Activities,Age Concern,340.80, 18-Oct-2022
105,Revenue,CAHD,North - Community based support,Day Care / Social Activities,Age Concern,288.08, 18-Oct-2022
106,Revenue,CAHD,Central - Commissioned Services,Day Care / Social Activities,Age UK - Grace Court,-144.04, 18-Oct-2022
107,Revenue,CAHD,South - Commissioned Services,Day Care / Social Activities,Age UK - Grace Court,226.48, 18-Oct-2022
108,Revenue,CAHD,South - Commissioned Services,Day Care / Social Activities,Age UK - Grace Court,288.08, 18-Oct-2022
109,Revenue,CAHD,South - Commissioned Services,Day Care / Social Activities,Age UK - Grace Court,288.08, 18-Oct-2022
110,Revenue,CAHD,South - Commissioned Services,Day Care / Social Activities,Age UK - Grace Court,288.08, 18-Oct-2022
111,Revenue,CAHD,South - Commissioned Services,Day Care / Social Activities,Age UK - Grace Court,288.08, 18-Oct-2022
112,Revenue,CAHD,South - Commissioned Services,Day Care / Social Activities,Age UK - Grace Court,226.48, 18-Oct-2022
113,Revenue,CAHD,South - Commissioned Services,Day Care / Social Activities,Age UK - Grace Court,94.24, 18-Oct-2022
114,Revenue,CAHD,South - Commissioned Services,Day Care / Social Activities,Age UK - Grace Court,288.08, 18-Oct-2022
115,Revenue,CAHD,North - Community based support,Day Care / Social Activities,Age UK - Grace Court,288.08, 18-Oct-2022
116,Revenue,CAHD,North - Community based support,Day Care / Social Activities,Age UK - Grace Court,288.08, 18-Oct-2022
117,Revenue,CAHD,Extra Care Housing,Private & Voluntary Home Care,Agincare UK Limited,32712.59, 04-Oct-2022
118,Revenue,CAHD,Extra Care Housing,Private & Voluntary Home Care,Agincare UK Limited,5458.37, 03-Oct-2022
119,Revenue,CAHD,Extra Care Housing,Private & Voluntary Home Care,Agincare UK Limited,5458.37, 10-Oct-2022
120,Revenue,CAHD,Extra Care Housing,Private & Voluntary Home Care,Agincare UK Limited,26182.00, 18-Oct-2022
121,Revenue,CAHD,Extra Care Housing,Private & Voluntary Home Care,Agincare UK Limited,1808.31, 31-Oct-2022
122,Revenue,CAHD,Prison Assessments & Costs,Other Supplies & Services,Agincare UK Limited,4664.00, 31-Oct-2022
123,Revenue,CAHD,South - Commissioned Services,Other Small Contracts,Agincare UK Limited,544.96, 19-Oct-2022
124,Revenue,CAHD,South - Commissioned Services,Other Small Contracts,Agincare UK Limited,309.16, 19-Oct-2022
125,Revenue,CAHD,South - Commissioned Services,Other Small Contracts,Agincare UK Limited,188.64, 19-Oct-2022
126,Revenue,CAHD,Reset and Recovery,Other Supplies & Services,Individual,500.00, 21-Oct-2022
127,Revenue,CAHD,CSC - Age Related Allowances,Foster Parent Allowances,Individual,363.00, 07-Oct-2022
128,Revenue,CAHD,CSC - Professional Fees Foster Carers,Band 3 Foster Care,Individual,486.00, 07-Oct-2022
129,Revenue,CAHD,CSC - Age Related Allowances,"Holidays, Outings & Visits",Individual,103.71, 14-Oct-2022
130,Revenue,CAHD,CSC - Age Related Allowances,Foster Parent Allowances,Individual,363.00, 14-Oct-2022
131,Revenue,CAHD,CSC - Age Related Allowances,Xmas / Birthday Allowances,Individual,207.00, 14-Oct-2022
132,Revenue,CAHD,CSC - Professional Fees Foster Carers,Band 3 Foster Care,Individual,486.00, 14-Oct-2022
133,Revenue,CAHD,CSC - Age Related Allowances,Foster Parent Allowances,Individual,363.00, 21-Oct-2022
134,Revenue,CAHD,CSC - Professional Fees Foster Carers,Band 3 Foster Care,Individual,486.00, 21-Oct-2022
135,Revenue,CAHD,CSC - Age Related Allowances,Foster Parent Allowances,Individual,363.00, 28-Oct-2022
136,Revenue,CAHD,CSC - Fostering Carer Support,Payments to Carers,Individual,80.00, 28-Oct-2022
137,Revenue,CAHD,CSC - Professional Fees Foster Carers,Band 3 Foster Care,Individual,486.00, 28-Oct-2022
138,Revenue,CAHD,South - Commissioned Services,Permanent Nursing,Allambie Court,2734.44, 18-Oct-2022
139,Revenue,CAHD,South - Commissioned Services,Fees & Charges Income - General,Allambie Court,-823.52, 18-Oct-2022
140,Revenue,CAHD,CSC - Residential Placements,Permanent Residential,Amberleigh Care Ltd,16230.00, 11-Oct-2022
141,Revenue,CAHD,CSC - Residential Placements,Permanent Residential,Ambito Care and Education,19920.87, 10-Oct-2022
142,Revenue,CAHD,CSC - Residential Placements,Permanent Residential,Ambito Care and Education,19930.88, 10-Oct-2022
143,Revenue,CAHD,CSC - Agency Fostering,Foster Parent Allowances,Amicus Foster Care Ltd,4721.61, 04-Oct-2022
144,Revenue,CAHD,CSC - Agency Fostering,Foster Parent Allowances,Amicus Foster Care Ltd,3906.90, 04-Oct-2022
145,Revenue,CAHD,CSC - Agency Fostering,Foster Parent Allowances,Amicus Foster Care Ltd,4641.72, 04-Oct-2022
146,Revenue,CAHD,Preparing for Adulthood Team,Interpreting & Translation,Individual,750.00, 07-Oct-2022
147,Revenue,CAHD,EARLY YEARS DISABILITY  ACCES FUND,Preventative Assistance,Anchor Day Nursery Ltd,800.00, 03-Oct-2022
148,Revenue,CAHD,Early Years High Needs Support,Other Private Contractors,Anchor Day Nursery Ltd,669.26, 24-Oct-2022
149,Revenue,CAHD,CSC - CLA Placements,Client Transport,Individual,275.40, 14-Oct-2022
150,Revenue,CAHD,CSC - Age Related Allowances,"Holidays, Outings & Visits",Individual,44.57, 14-Oct-2022
151,Revenue,CAHD,CSC - Age Related Allowances,Foster Parent Allowances,Individual,156.00, 14-Oct-2022
152,Revenue,CAHD,CSC - Professional Fees Foster Carers,Band 1 Foster Care,Individual,170.00, 14-Oct-2022
153,Revenue,CAHD,Ukranian Refugees,Other Small Contracts,Individual,874.90, 25-Oct-2022
154,Revenue,CAHD,CSC - Special Guardianship Orders,Special Payments,Individual,500.30, 07-Oct-2022
155,Revenue,CAHD,CSC - Special Guardianship Orders,Special Payments,Individual,500.30, 14-Oct-2022
156,Revenue,CAHD,CSC - Special Guardianship Orders,Special Payments,Individual,500.30, 21-Oct-2022
157,Revenue,CAHD,CSC - Special Guardianship Orders,Special Payments,Individual,500.30, 28-Oct-2022
158,Revenue,CAHD,Social Lettings Agency,Rent,Individual,822.73, 20-Oct-2022
159,Revenue,CAHD,Social Lettings Agency,Fees & Charges Income - General,Individual,-65.82, 20-Oct-2022
160,Revenue,CAHD,Other Alternative Provision Services,Other Private Contractors,Apricot Online Limited,3150.00, 06-Oct-2022
161,Revenue,CAHD,Other Alternative Provision Services,Other Private Contractors,Apricot Online Limited,2800.00, 25-Oct-2022
162,Revenue,CAHD,North - Community based support,Permanent Nursing,Arbour Walk,3947.24, 18-Oct-2022
163,Revenue,CAHD,North - Community based support,Fees & Charges Income - General,Arbour Walk,-1276.96, 18-Oct-2022
164,Revenue,CAHD,North - S117,Permanent Nursing,Arbour Walk,5400.00, 18-Oct-2022
165,Revenue,CAHD,South - S117,Supported Living,Archcare Rehab Limited,2062.52, 18-Oct-2022
166,Revenue,CAHD,Younger MH non-res purchasing,Respite Care,Archcare Rehab Limited,0.00, 18-Oct-2022
167,Revenue,CAHD,Cardio Vascular Disease - Risks,Other Small Contracts,Asda Stores Limited,588.44, 27-Oct-2022
168,Revenue,CAHD,South - Commissioned Services,Permanent Residential,Ash Lea House,5885.04, 18-Oct-2022
169,Revenue,CAHD,South - Commissioned Services,Fees & Charges Income - General,Ash Lea House,-438.80, 18-Oct-2022
170,Revenue,CAHD,North - Community based support,Permanent Residential,Ash View House,7525.48, 18-Oct-2022
171,Revenue,CAHD,North - Community based support,Permanent Residential,Ash View House,7547.20, 18-Oct-2022
172,Revenue,CAHD,North - Community based support,Fees & Charges Income - General,Ash View House,-438.80, 18-Oct-2022
173,Revenue,CAHD,North - Community based support,Fees & Charges Income - General,Ash View House,-438.80, 18-Oct-2022
174,Revenue,CAHD,South - Commissioned Services,Permanent Residential,Ash View House,7317.24, 18-Oct-2022
175,Revenue,CAHD,South - Commissioned Services,Permanent Residential,Ash View House,5994.80, 18-Oct-2022
176,Revenue,CAHD,South - Commissioned Services,Fees & Charges Income - General,Ash View House,-438.80, 18-Oct-2022
177,Revenue,CAHD,South - Commissioned Services,Fees & Charges Income - General,Ash View House,-387.80, 18-Oct-2022
178,Revenue,CAHD,South - S117,Permanent Residential,Ash View House,7402.64, 18-Oct-2022
179,Revenue,CAHD,Section 117 Placements MH Younger,Permanent Residential,Ash View House,5444.12, 18-Oct-2022
180,Revenue,CAHD,Jointly Funded H&SC Packages,Permanent Residential,Ash View House,1160.84, 18-Oct-2022
181,Revenue,CAHD,Jointly Funded H&SC Packages,Permanent Residential,Ash View House,2204.28, 18-Oct-2022
182,Revenue,CAHD,S117 Placements PCT,Permanent Residential,Ash View House,8357.80, 18-Oct-2022
183,Revenue,CAHD,CSC - Legal Fees,Legal Fees,Individual,800.00, 07-Oct-2022
184,Revenue,CAHD,CSC - Legal Fees,Legal Fees,Individual,1250.00, 28-Oct-2022
185,Revenue,CAHD,18-25 Year Olds,Other Small Contracts,Aspirations,124.56, 05-Oct-2022
186,Revenue,CAHD,18-25 Year Olds,Other Small Contracts,Aspirations,950.40, 05-Oct-2022
187,Revenue,CAHD,18-25 Year Olds,Other Small Contracts,Aspirations,124.56, 05-Oct-2022
188,Revenue,CAHD,18-25 Year Olds,Other Small Contracts,Aspirations,83.04, 05-Oct-2022
189,Revenue,CAHD,18-25 Year Olds,Other Small Contracts,Aspirations,124.56, 05-Oct-2022
190,Revenue,CAHD,18-25 Year Olds,Other Small Contracts,Aspirations,145.32, 05-Oct-2022
191,Revenue,CAHD,18-25 Year Olds,Supported Living,Aspirations,736.98, 05-Oct-2022
192,Revenue,CAHD,18-25 Year Olds,Supported Living,Aspirations,622.80, 05-Oct-2022
193,Revenue,CAHD,Central - Commissioned Services,Other Small Contracts,Aspirations,50.88, 05-Oct-2022
194,Revenue,CAHD,Central - Commissioned Services,Other Small Contracts,Aspirations,228.36, 05-Oct-2022
195,Revenue,CAHD,South - Commissioned Services,Other Small Contracts,Aspirations,1830.60, 05-Oct-2022
196,Revenue,CAHD,South - Commissioned Services,Other Small Contracts,Aspirations,166.08, 05-Oct-2022
197,Revenue,CAHD,South - Commissioned Services,Other Small Contracts,Aspirations,89.04, 05-Oct-2022
198,Revenue,CAHD,South - Commissioned Services,Supported Living,Aspirations,373.68, 05-Oct-2022
199,Revenue,CAHD,South - Commissioned Services,Supported Living,Aspirations,584.64, 05-Oct-2022
200,Revenue,CAHD,South - Commissioned Services,Supported Living,Aspirations,332.16, 05-Oct-2022
201,Revenue,CAHD,South - Commissioned Services,Supported Living,Aspirations,1370.16, 05-Oct-2022
202,Revenue,CAHD,South - Commissioned Services,Supported Living,Aspirations,238.74, 05-Oct-2022
203,Revenue,CAHD,South - Commissioned Services,Supported Living,Aspirations,352.92, 05-Oct-2022
204,Revenue,CAHD,South - Commissioned Services,Supported Living,Aspirations,766.80, 05-Oct-2022
205,Revenue,CAHD,South - Commissioned Services,Supported Living,Aspirations,581.28, 05-Oct-2022
206,Revenue,CAHD,South - Commissioned Services,Supported Living,Aspirations,259.50, 05-Oct-2022
207,Revenue,CAHD,South - Commissioned Services,Supported Living,Aspirations,456.72, 05-Oct-2022
208,Revenue,CAHD,South - Commissioned Services,Supported Living,Aspirations,2901.96, 05-Oct-2022
209,Revenue,CAHD,South - Commissioned Services,Supported Living,Aspirations,124.56, 05-Oct-2022
210,Revenue,CAHD,South - Commissioned Services,Supported Living,Aspirations,1069.14, 05-Oct-2022
211,Revenue,CAHD,South - Commissioned Services,Supported Living,Aspirations,477.48, 05-Oct-2022
212,Revenue,CAHD,South - Commissioned Services,Supported Living,Aspirations,2904.57, 05-Oct-2022
213,Revenue,CAHD,South - Commissioned Services,Supported Living,Aspirations,3084.92, 05-Oct-2022
214,Revenue,CAHD,South - Commissioned Services,Supported Living,Aspirations,1577.76, 05-Oct-2022
215,Revenue,CAHD,South - Commissioned Services,Supported Living,Aspirations,373.68, 05-Oct-2022
216,Revenue,CAHD,South - Commissioned Services,Mentoring,Aspirations,101.76, 05-Oct-2022
217,Revenue,CAHD,South - Commissioned Services,Mentoring,Aspirations,50.88, 05-Oct-2022
218,Revenue,CAHD,North - Community based support,Other Small Contracts,Aspirations,584.64, 05-Oct-2022
219,Revenue,CAHD,North - Community based support,Other Small Contracts,Aspirations,228.36, 05-Oct-2022
220,Revenue,CAHD,North - Community based support,Supported Living,Aspirations,2283.60, 05-Oct-2022
221,Revenue,CAHD,North - Community based support,Supported Living,Aspirations,83.04, 05-Oct-2022
222,Revenue,CAHD,North - Community based support,Supported Living,Aspirations,176.46, 05-Oct-2022
223,Revenue,CAHD,18-25 Year Olds,Other Small Contracts,Aspirations,249.12, 19-Oct-2022
224,Revenue,CAHD,18-25 Year Olds,Other Small Contracts,Aspirations,2710.80, 19-Oct-2022
225,Revenue,CAHD,18-25 Year Olds,Other Small Contracts,Aspirations,249.12, 19-Oct-2022
226,Revenue,CAHD,18-25 Year Olds,Other Small Contracts,Aspirations,207.60, 19-Oct-2022
227,Revenue,CAHD,18-25 Year Olds,Other Small Contracts,Aspirations,373.68, 19-Oct-2022
228,Revenue,CAHD,18-25 Year Olds,Other Small Contracts,Aspirations,435.96, 19-Oct-2022
229,Revenue,CAHD,18-25 Year Olds,Supported Living,Aspirations,1671.18, 19-Oct-2022
230,Revenue,CAHD,18-25 Year Olds,Supported Living,Aspirations,2366.64, 19-Oct-2022
231,Revenue,CAHD,Central - Commissioned Services,Other Small Contracts,Aspirations,152.64, 19-Oct-2022
232,Revenue,CAHD,Central - Commissioned Services,Other Small Contracts,Aspirations,685.08, 19-Oct-2022
233,Revenue,CAHD,Central - Commissioned Services,Supported Living,Aspirations,172.80, 19-Oct-2022
234,Revenue,CAHD,South - Commissioned Services,Other Small Contracts,Aspirations,5475.60, 19-Oct-2022
235,Revenue,CAHD,South - Commissioned Services,Other Small Contracts,Aspirations,498.24, 19-Oct-2022
236,Revenue,CAHD,South - Commissioned Services,Other Small Contracts,Aspirations,267.12, 19-Oct-2022
237,Revenue,CAHD,South - Commissioned Services,Supported Living,Aspirations,752.55, 19-Oct-2022
238,Revenue,CAHD,South - Commissioned Services,Supported Living,Aspirations,1753.92, 19-Oct-2022
239,Revenue,CAHD,South - Commissioned Services,Supported Living,Aspirations,840.78, 19-Oct-2022
240,Revenue,CAHD,South - Commissioned Services,Supported Living,Aspirations,3902.88, 19-Oct-2022
241,Revenue,CAHD,South - Commissioned Services,Supported Living,Aspirations,726.60, 19-Oct-2022
242,Revenue,CAHD,South - Commissioned Services,Supported Living,Aspirations,934.20, 19-Oct-2022
243,Revenue,CAHD,South - Commissioned Services,Supported Living,Aspirations,1846.80, 19-Oct-2022
244,Revenue,CAHD,South - Commissioned Services,Supported Living,Aspirations,1525.86, 19-Oct-2022
245,Revenue,CAHD,South - Commissioned Services,Supported Living,Aspirations,778.50, 19-Oct-2022
246,Revenue,CAHD,South - Commissioned Services,Supported Living,Aspirations,1255.98, 19-Oct-2022
247,Revenue,CAHD,South - Commissioned Services,Supported Living,Aspirations,8506.11, 19-Oct-2022
248,Revenue,CAHD,South - Commissioned Services,Supported Living,Aspirations,373.68, 19-Oct-2022
249,Revenue,CAHD,South - Commissioned Services,Supported Living,Aspirations,3819.84, 19-Oct-2022
250,Revenue,CAHD,South - Commissioned Services,Supported Living,Aspirations,1048.38, 19-Oct-2022
251,Revenue,CAHD,South - Commissioned Services,Supported Living,Aspirations,8726.67, 19-Oct-2022
252,Revenue,CAHD,South - Commissioned Services,Supported Living,Aspirations,9377.83, 19-Oct-2022
253,Revenue,CAHD,South - Commissioned Services,Supported Living,Aspirations,5169.24, 19-Oct-2022
254,Revenue,CAHD,South - Commissioned Services,Supported Living,Aspirations,747.36, 19-Oct-2022
255,Revenue,CAHD,South - Commissioned Services,Mentoring,Aspirations,305.28, 19-Oct-2022
256,Revenue,CAHD,South - Commissioned Services,Mentoring,Aspirations,127.20, 19-Oct-2022
257,Revenue,CAHD,North - Community based support,Other Small Contracts,Aspirations,1753.92, 19-Oct-2022
258,Revenue,CAHD,North - Community based support,Other Small Contracts,Aspirations,581.28, 19-Oct-2022
259,Revenue,CAHD,North - Community based support,Supported Living,Aspirations,6985.32, 19-Oct-2022
260,Revenue,CAHD,North - Community based support,Supported Living,Aspirations,83.04, 19-Oct-2022
261,Revenue,CAHD,North - Community based support,Supported Living,Aspirations,529.38, 19-Oct-2022
262,Revenue,CAHD,Psychology Traded,Advertising for Recruitment,Association of Educational Psychologists,740.00, 11-Oct-2022
263,Revenue,CAHD,18-25 Year Olds,Adults - Family Support,Ategi Limited,528.00, 18-Oct-2022
264,Revenue,CAHD,18-25 Year Olds,Adults - Family Support,Ategi Limited,2806.24, 18-Oct-2022
265,Revenue,CAHD,18-25 Year Olds,Adults - Family Support,Ategi Limited,968.00, 18-Oct-2022
266,Revenue,CAHD,18-25 Year Olds,Adults - Family Support,Ategi Limited,1920.00, 18-Oct-2022
267,Revenue,CAHD,18-25 Year Olds,Respite Care,Ategi Limited,0.00, 18-Oct-2022
268,Revenue,CAHD,18-25 Year Olds,Respite Care,Ategi Limited,0.00, 18-Oct-2022
269,Revenue,CAHD,18-25 Year Olds,Respite Care,Ategi Limited,0.00, 18-Oct-2022
270,Revenue,CAHD,Central - Commissioned Services,Adults - Family Support,Ategi Limited,528.00, 18-Oct-2022
271,Revenue,CAHD,South - Commissioned Services,Adults - Family Support,Ategi Limited,1695.36, 18-Oct-2022
272,Revenue,CAHD,South - Commissioned Services,Adults - Family Support,Ategi Limited,2424.64, 18-Oct-2022
273,Revenue,CAHD,South - Commissioned Services,Adults - Family Support,Ategi Limited,528.00, 18-Oct-2022
274,Revenue,CAHD,South - Commissioned Services,Adults - Family Support,Ategi Limited,2424.64, 18-Oct-2022
275,Revenue,CAHD,South - Commissioned Services,Adults - Family Support,Ategi Limited,1695.36, 18-Oct-2022
276,Revenue,CAHD,South - Commissioned Services,Adults - Family Support,Ategi Limited,968.00, 18-Oct-2022
277,Revenue,CAHD,South - Commissioned Services,Respite Care,Ategi Limited,0.00, 18-Oct-2022
278,Revenue,CAHD,South - Commissioned Services,Respite Care,Ategi Limited,0.00, 18-Oct-2022
279,Revenue,CAHD,South - Commissioned Services,Respite Care,Ategi Limited,0.00, 18-Oct-2022
280,Revenue,CAHD,North - Community based support,Adults - Family Support,Ategi Limited,1695.36, 18-Oct-2022
281,Revenue,CAHD,North - Community based support,Adults - Family Support,Ategi Limited,1695.36, 18-Oct-2022
282,Revenue,CAHD,North - Community based support,Adults - Family Support,Ategi Limited,224.64, 18-Oct-2022
283,Revenue,CAHD,North - Community based support,Respite Care,Ategi Limited,0.00, 18-Oct-2022
284,Revenue,CAHD,North - Community based support,Respite Care,Ategi Limited,0.00, 18-Oct-2022
285,Revenue,CAHD,Statemented Support Academies,Other Public Bodies,Athelstan Trust,740.00, 21-Oct-2022
286,Revenue,CAHD,Statemented Support Academies,Other Public Bodies,Athelstan Trust,1012.67, 03-Oct-2022
287,Revenue,CAHD,Statemented Support Academies,Other Public Bodies,Athelstan Trust,1012.67, 21-Oct-2022
288,Revenue,CAHD,Statemented Support Academies,Other Public Bodies,Athelstan Trust,740.00, 03-Oct-2022
289,Revenue,CAHD,Statemented Support Academies,Other Public Bodies,Athelstan Trust,740.00, 21-Oct-2022
290,Revenue,CAHD,Statemented Support Academies,Other Public Bodies,Athelstan Trust,740.00, 03-Oct-2022
291,Revenue,CAHD,Statemented Support Academies,Other Public Bodies,Athelstan Trust,740.00, 21-Oct-2022
292,Revenue,CAHD,Statemented Support Academies,Other Public Bodies,Athelstan Trust,740.00, 03-Oct-2022
293,Revenue,CAHD,Statemented Support Academies,Other Public Bodies,Athelstan Trust,740.00, 21-Oct-2022
294,Revenue,CAHD,Statemented Support Academies,Other Public Bodies,Athelstan Trust,740.00, 03-Oct-2022
295,Revenue,CAHD,Statemented Support Academies,Other Public Bodies,Athelstan Trust,740.00, 21-Oct-2022
296,Revenue,CAHD,Statemented Support Academies,Other Public Bodies,Athelstan Trust,740.00, 21-Oct-2022
297,Revenue,CAHD,Academy Resource Base Funding,Other Public Bodies,Athelstan Trust,1423.61, 21-Oct-2022
298,Revenue,CAHD,Academy Resource Base Funding,Other Public Bodies,Athelstan Trust,1186.24, 21-Oct-2022
299,Revenue,CAHD,Academy Resource Base Funding,Other Public Bodies,Athelstan Trust,1186.24, 21-Oct-2022
300,Revenue,CAHD,Academy Resource Base Funding,Other Public Bodies,Athelstan Trust,1186.24, 21-Oct-2022
301,Revenue,CAHD,Academy Resource Base Funding,Other Public Bodies,Athelstan Trust,1423.61, 21-Oct-2022
302,Revenue,CAHD,Academy Resource Base Funding,Other Public Bodies,Athelstan Trust,1423.61, 21-Oct-2022
303,Revenue,CAHD,Academy Resource Base Funding,Other Public Bodies,Athelstan Trust,1423.61, 21-Oct-2022
304,Revenue,CAHD,Academy Resource Base Funding,Other Public Bodies,Athelstan Trust,1423.61, 21-Oct-2022
305,Revenue,CAHD,Academy Resource Base Funding,Other Public Bodies,Athelstan Trust,2334.21, 21-Oct-2022
306,Revenue,CAHD,Academy Resource Base Funding,Other Public Bodies,Athelstan Trust,1423.61, 21-Oct-2022
307,Revenue,CAHD,Academy Resource Base Funding,Other Public Bodies,Athelstan Trust,1423.61, 21-Oct-2022
308,Revenue,CAHD,Academy Resource Base Funding,Other Public Bodies,Athelstan Trust,2547.96, 21-Oct-2022
309,Revenue,CAHD,Academy Resource Base Funding,Other Public Bodies,Athelstan Trust,821.92, 21-Oct-2022
310,Revenue,CAHD,Academy Resource Base Funding,Other Public Bodies,Athelstan Trust,1377.68, 03-Oct-2022
311,Revenue,CAHD,Academy Resource Base Funding,Other Public Bodies,Athelstan Trust,1147.97, 03-Oct-2022
312,Revenue,CAHD,Academy Resource Base Funding,Other Public Bodies,Athelstan Trust,1147.97, 03-Oct-2022
313,Revenue,CAHD,Academy Resource Base Funding,Other Public Bodies,Athelstan Trust,1147.97, 03-Oct-2022
314,Revenue,CAHD,Academy Resource Base Funding,Other Public Bodies,Athelstan Trust,1377.68, 03-Oct-2022
315,Revenue,CAHD,Academy Resource Base Funding,Other Public Bodies,Athelstan Trust,1377.68, 03-Oct-2022
316,Revenue,CAHD,Academy Resource Base Funding,Other Public Bodies,Athelstan Trust,1377.68, 03-Oct-2022
317,Revenue,CAHD,Academy Resource Base Funding,Other Public Bodies,Athelstan Trust,1377.68, 03-Oct-2022
318,Revenue,CAHD,Academy Resource Base Funding,Other Public Bodies,Athelstan Trust,1377.68, 03-Oct-2022
319,Revenue,CAHD,Academy Resource Base Funding,Other Public Bodies,Athelstan Trust,1377.68, 03-Oct-2022
320,Revenue,CAHD,Academy Resource Base Funding,Other Public Bodies,Athelstan Trust,1377.68, 03-Oct-2022
321,Revenue,CAHD,Academy Resource Base Funding,Other Public Bodies,Athelstan Trust,1147.97, 03-Oct-2022
322,Revenue,CAHD,Academy Resource Base Funding,Other Public Bodies,Athelstan Trust,1643.84, 03-Oct-2022
323,Revenue,CAHD,Academy Resource Base Funding,Other Public Bodies,Athelstan Trust,1423.61, 21-Oct-2022
324,Revenue,CAHD,Academy Resource Base Funding,Other Public Bodies,Athelstan Trust,1186.24, 21-Oct-2022
325,Revenue,CAHD,CSC - Vinney Green Secure Unit,Service Contracts (Premises),Atus Systems Limited,2250.00, 07-Oct-2022
326,Revenue,CAHD,CSC - Vinney Green Secure Unit,R & M by Departments,Atus Systems Limited,1761.55, 21-Oct-2022
327,Revenue,CAHD,South - Commissioned Services,Permanent Residential,Autism Specialised Care Homes,6506.88, 18-Oct-2022
328,Revenue,CAHD,South - Commissioned Services,Fees & Charges Income - General,Autism Specialised Care Homes,-438.80, 18-Oct-2022
329,Revenue,CAHD,Younger Adult Mental Health,Agency Staff (Admin/Support Staff) Pay,Avon & Wiltshire Mental Health,2606.00, 12-Oct-2022
330,Revenue,CAHD,Younger Adult Mental Health,Agency Staff (Admin/Support Staff) Pay,Avon & Wiltshire Mental Health,5790.00, 12-Oct-2022
331,Revenue,CAHD,Younger Adult Mental Health,Health Services (Third Party Payments),Avon & Wiltshire Mental Health,14583.00, 10-Oct-2022
332,Revenue,CAHD,Younger Adult Mental Health,Health Services (Third Party Payments),Avon & Wiltshire Mental Health,12522.00, 18-Oct-2022
333,Revenue,CAHD,Younger Adult Mental Health,Health Services (Third Party Payments),Avon & Wiltshire Mental Health,1700.00, 20-Oct-2022
334,Revenue,CAHD,Central - Bed Purchasing and Direct Payments,Fees & Charges Income - General,Avon Lodge Care Centre,671.08, 18-Oct-2022
335,Revenue,CAHD,South Glos Users in South Glos Homes,Permanent Nursing,Avon Lodge Care Centre,836.76, 18-Oct-2022
336,Revenue,CAHD,South Glos Users in South Glos Homes,Permanent Nursing,Avon Lodge Care Centre,836.76, 18-Oct-2022
337,Revenue,CAHD,South Glos Users in South Glos Homes,Permanent Nursing,Avon Lodge Care Centre,836.76, 18-Oct-2022
338,Revenue,CAHD,South Glos Users in South Glos Homes,Permanent Nursing,Avon Lodge Care Centre,836.76, 18-Oct-2022
339,Revenue,CAHD,South Glos Users in South Glos Homes,Permanent Nursing,Avon Lodge Care Centre,0.00, 18-Oct-2022
340,Revenue,CAHD,South Glos Users in South Glos Homes,Permanent Nursing,Avon Lodge Care Centre,836.76, 18-Oct-2022
341,Revenue,CAHD,South Glos Users in South Glos Homes,Permanent Nursing,Avon Lodge Care Centre,236.47, 18-Oct-2022
342,Revenue,CAHD,South Glos Users in South Glos Homes,Permanent Nursing,Avon Lodge Care Centre,836.76, 18-Oct-2022
343,Revenue,CAHD,South Glos Users in South Glos Homes,Permanent Nursing,Avon Lodge Care Centre,836.76, 18-Oct-2022
344,Revenue,CAHD,South Glos Users in South Glos Homes,Permanent Nursing,Avon Lodge Care Centre,836.76, 18-Oct-2022
345,Revenue,CAHD,South Glos Users in South Glos Homes,Permanent Nursing,Avon Lodge Care Centre,836.76, 18-Oct-2022
346,Revenue,CAHD,South Glos Users in South Glos Homes,Permanent Nursing,Avon Lodge Care Centre,836.76, 18-Oct-2022
347,Revenue,CAHD,South Glos Users in South Glos Homes,Permanent Nursing,Avon Lodge Care Centre,836.76, 18-Oct-2022
348,Revenue,CAHD,South Glos Users in South Glos Homes,Permanent Nursing,Avon Lodge Care Centre,836.76, 18-Oct-2022
349,Revenue,CAHD,South Glos Users in South Glos Homes,Permanent Nursing,Avon Lodge Care Centre,836.76, 18-Oct-2022
350,Revenue,CAHD,South Glos Users in South Glos Homes,Permanent Nursing,Avon Lodge Care Centre,836.76, 18-Oct-2022
351,Revenue,CAHD,South Glos Users in South Glos Homes,Permanent Nursing,Avon Lodge Care Centre,836.76, 18-Oct-2022
352,Revenue,CAHD,South Glos Users in South Glos Homes,Permanent Nursing,Avon Lodge Care Centre,836.76, 18-Oct-2022
353,Revenue,CAHD,South Glos Users in South Glos Homes,Permanent Nursing,Avon Lodge Care Centre,836.76, 18-Oct-2022
354,Revenue,CAHD,South Glos Users in South Glos Homes,Permanent Nursing,Avon Lodge Care Centre,836.76, 18-Oct-2022
355,Revenue,CAHD,South Glos Users in South Glos Homes,Permanent Nursing,Avon Lodge Care Centre,-926.42, 18-Oct-2022
356,Revenue,CAHD,South Glos Users in South Glos Homes,Permanent Nursing,Avon Lodge Care Centre,836.76, 18-Oct-2022
357,Revenue,CAHD,South Glos Users in South Glos Homes,Permanent Nursing,Avon Lodge Care Centre,836.76, 18-Oct-2022
358,Revenue,CAHD,South Glos Users in South Glos Homes,Permanent Nursing,Avon Lodge Care Centre,836.76, 18-Oct-2022
359,Revenue,CAHD,South Glos Users in South Glos Homes,Permanent Nursing,Avon Lodge Care Centre,836.76, 18-Oct-2022
360,Revenue,CAHD,South Glos Users in South Glos Homes,Permanent Nursing,Avon Lodge Care Centre,836.76, 18-Oct-2022
361,Revenue,CAHD,South Glos Users in South Glos Homes,Permanent Nursing,Avon Lodge Care Centre,836.76, 18-Oct-2022
362,Revenue,CAHD,South Glos Users in South Glos Homes,Permanent Nursing,Avon Lodge Care Centre,836.76, 18-Oct-2022
363,Revenue,CAHD,South Glos Users in South Glos Homes,Permanent Nursing,Avon Lodge Care Centre,836.76, 18-Oct-2022
364,Revenue,CAHD,South Glos Users in South Glos Homes,Permanent Nursing,Avon Lodge Care Centre,836.76, 18-Oct-2022
365,Revenue,CAHD,South Glos Users in South Glos Homes,Permanent Nursing,Avon Lodge Care Centre,836.76, 18-Oct-2022
366,Revenue,CAHD,South Glos Users in South Glos Homes,Permanent Nursing,Avon Lodge Care Centre,836.76, 18-Oct-2022
367,Revenue,CAHD,South Glos Users in South Glos Homes,Permanent Nursing,Avon Lodge Care Centre,836.76, 18-Oct-2022
368,Revenue,CAHD,South Glos Users in South Glos Homes,Contribns & Reimbs - NHS Bodies,Avon Lodge Care Centre,-236.47, 18-Oct-2022
369,Revenue,CAHD,Central - Commissioned Services,Permanent Nursing,Avon Lodge Care Centre,4296.48, 18-Oct-2022
370,Revenue,CAHD,Central - Commissioned Services,Permanent Nursing,Avon Lodge Care Centre,4120.64, 18-Oct-2022
371,Revenue,CAHD,Central - Commissioned Services,Respite Planned - Nursing,Avon Lodge Care Centre,1227.57, 18-Oct-2022
372,Revenue,CAHD,Central - Commissioned Services,Fees & Charges Income - General,Avon Lodge Care Centre,-1308.52, 18-Oct-2022
373,Revenue,CAHD,Central - Commissioned Services,Fees & Charges Income - General,Avon Lodge Care Centre,-956.96, 18-Oct-2022
374,Revenue,CAHD,South - Commissioned Services,Permanent Residential,Avon Lodge Care Centre,3318.24, 18-Oct-2022
375,Revenue,CAHD,South - Commissioned Services,Permanent Residential,Avon Lodge Care Centre,3800.00, 18-Oct-2022
376,Revenue,CAHD,South - Commissioned Services,Permanent Residential,Avon Lodge Care Centre,3816.00, 18-Oct-2022
377,Revenue,CAHD,South - Commissioned Services,Permanent Residential,Avon Lodge Care Centre,4028.00, 18-Oct-2022
378,Revenue,CAHD,South - Commissioned Services,Permanent Residential,Avon Lodge Care Centre,3667.60, 18-Oct-2022
379,Revenue,CAHD,South - Commissioned Services,Permanent Nursing,Avon Lodge Care Centre,10587.75, 18-Oct-2022
380,Revenue,CAHD,South - Commissioned Services,Permanent Nursing,Avon Lodge Care Centre,4028.00, 18-Oct-2022
381,Revenue,CAHD,South - Commissioned Services,Permanent Nursing,Avon Lodge Care Centre,4296.48, 18-Oct-2022
382,Revenue,CAHD,South - Commissioned Services,Permanent Nursing,Avon Lodge Care Centre,5349.68, 18-Oct-2022
383,Revenue,CAHD,South - Commissioned Services,Permanent Nursing,Avon Lodge Care Centre,3539.44, 18-Oct-2022
384,Revenue,CAHD,South - Commissioned Services,Permanent Nursing,Avon Lodge Care Centre,3751.96, 18-Oct-2022
385,Revenue,CAHD,South - Commissioned Services,Permanent Nursing,Avon Lodge Care Centre,4210.12, 18-Oct-2022
386,Revenue,CAHD,South - Commissioned Services,Permanent Nursing,Avon Lodge Care Centre,4714.76, 18-Oct-2022
387,Revenue,CAHD,South - Commissioned Services,Permanent Nursing,Avon Lodge Care Centre,4775.44, 18-Oct-2022
388,Revenue,CAHD,South - Commissioned Services,Permanent Nursing,Avon Lodge Care Centre,4674.92, 18-Oct-2022
389,Revenue,CAHD,South - Commissioned Services,Permanent Nursing,Avon Lodge Care Centre,4664.00, 18-Oct-2022
390,Revenue,CAHD,South - Commissioned Services,Permanent Nursing,Avon Lodge Care Centre,4120.64, 18-Oct-2022
391,Revenue,CAHD,South - Commissioned Services,Permanent Nursing,Avon Lodge Care Centre,4554.28, 18-Oct-2022
392,Revenue,CAHD,South - Commissioned Services,Respite Planned - Nursing,Avon Lodge Care Centre,-2915.47, 18-Oct-2022
393,Revenue,CAHD,South - Commissioned Services,Respite Planned - Nursing,Avon Lodge Care Centre,1074.12, 18-Oct-2022
394,Revenue,CAHD,South - Commissioned Services,Fees & Charges Income - General,Avon Lodge Care Centre,-679.80, 18-Oct-2022
395,Revenue,CAHD,South - Commissioned Services,Fees & Charges Income - General,Avon Lodge Care Centre,-2372.22, 18-Oct-2022
396,Revenue,CAHD,South - Commissioned Services,Fees & Charges Income - General,Avon Lodge Care Centre,-725.24, 18-Oct-2022
397,Revenue,CAHD,South - Commissioned Services,Fees & Charges Income - General,Avon Lodge Care Centre,-1066.12, 18-Oct-2022
398,Revenue,CAHD,South - Commissioned Services,Fees & Charges Income - General,Avon Lodge Care Centre,-1393.76, 18-Oct-2022
399,Revenue,CAHD,South - Commissioned Services,Fees & Charges Income - General,Avon Lodge Care Centre,-1525.00, 18-Oct-2022
400,Revenue,CAHD,South - Commissioned Services,Fees & Charges Income - General,Avon Lodge Care Centre,-438.80, 18-Oct-2022
401,Revenue,CAHD,South - Commissioned Services,Fees & Charges Income - General,Avon Lodge Care Centre,-1280.20, 18-Oct-2022
402,Revenue,CAHD,South - Commissioned Services,Fees & Charges Income - General,Avon Lodge Care Centre,-811.68, 18-Oct-2022
403,Revenue,CAHD,South - Commissioned Services,Fees & Charges Income - General,Avon Lodge Care Centre,-1017.44, 18-Oct-2022
404,Revenue,CAHD,South - Commissioned Services,Fees & Charges Income - General,Avon Lodge Care Centre,-852.32, 18-Oct-2022
405,Revenue,CAHD,South - Commissioned Services,Fees & Charges Income - General,Avon Lodge Care Centre,-1056.84, 18-Oct-2022
406,Revenue,CAHD,South - Commissioned Services,Fees & Charges Income - General,Avon Lodge Care Centre,-1889.12, 18-Oct-2022
407,Revenue,CAHD,South - Commissioned Services,Fees & Charges Income - General,Avon Lodge Care Centre,-2319.64, 18-Oct-2022
408,Revenue,CAHD,South - Commissioned Services,Fees & Charges Income - General,Avon Lodge Care Centre,-635.48, 18-Oct-2022
409,Revenue,CAHD,South - Commissioned Services,Fees & Charges Income - General,Avon Lodge Care Centre,-627.80, 18-Oct-2022
410,Revenue,CAHD,South - Commissioned Services,Fees & Charges Income - General,Avon Lodge Care Centre,-627.80, 18-Oct-2022
411,Revenue,CAHD,North - Community based support,Permanent Residential,Avon Lodge Care Centre,3751.96, 18-Oct-2022
412,Revenue,CAHD,North - Community based support,Permanent Nursing,Avon Lodge Care Centre,4553.76, 18-Oct-2022
413,Revenue,CAHD,North - Community based support,Permanent Nursing,Avon Lodge Care Centre,4120.64, 18-Oct-2022
414,Revenue,CAHD,North - Community based support,Respite Planned - Nursing,Avon Lodge Care Centre,4756.82, 18-Oct-2022
415,Revenue,CAHD,North - Community based support,Fees & Charges Income - General,Avon Lodge Care Centre,-627.80, 18-Oct-2022
416,Revenue,CAHD,North - Community based support,Fees & Charges Income - General,Avon Lodge Care Centre,-1493.16, 18-Oct-2022
417,Revenue,CAHD,North - Community based support,Fees & Charges Income - General,Avon Lodge Care Centre,-794.36, 18-Oct-2022
418,Revenue,CAHD,South - Commissioned Services,Permanent Residential,Avon Valley Care Home,4337.52, 18-Oct-2022
419,Revenue,CAHD,South - Commissioned Services,Permanent Residential,Avon Valley Care Home,4526.20, 18-Oct-2022
420,Revenue,CAHD,South - Commissioned Services,Permanent Residential,Avon Valley Care Home,4294.16, 18-Oct-2022
421,Revenue,CAHD,South - Commissioned Services,Permanent Residential,Avon Valley Care Home,4483.80, 18-Oct-2022
422,Revenue,CAHD,South - Commissioned Services,Permanent Residential,Avon Valley Care Home,4294.16, 18-Oct-2022
423,Revenue,CAHD,South - Commissioned Services,Permanent Residential,Avon Valley Care Home,4526.20, 18-Oct-2022
424,Revenue,CAHD,South - Commissioned Services,Permanent Residential,Avon Valley Care Home,3214.08, 18-Oct-2022
425,Revenue,CAHD,South - Commissioned Services,Permanent Residential,Avon Valley Care Home,4483.80, 18-Oct-2022
426,Revenue,CAHD,South - Commissioned Services,Permanent Residential,Avon Valley Care Home,4570.00, 18-Oct-2022
427,Revenue,CAHD,South - Commissioned Services,Permanent Residential,Avon Valley Care Home,4728.28, 18-Oct-2022
428,Revenue,CAHD,South - Commissioned Services,Permanent Residential,Avon Valley Care Home,3860.40, 18-Oct-2022
429,Revenue,CAHD,South - Commissioned Services,Permanent Residential,Avon Valley Care Home,4429.64, 18-Oct-2022
430,Revenue,CAHD,South - Commissioned Services,Permanent Residential,Avon Valley Care Home,3980.00, 18-Oct-2022
431,Revenue,CAHD,South - Commissioned Services,Permanent Residential,Avon Valley Care Home,4483.80, 18-Oct-2022
432,Revenue,CAHD,South - Commissioned Services,Permanent Residential,Avon Valley Care Home,3980.00, 18-Oct-2022
433,Revenue,CAHD,South - Commissioned Services,Permanent Residential,Avon Valley Care Home,339.29, 18-Oct-2022
434,Revenue,CAHD,South - Commissioned Services,Fees & Charges Income - General,Avon Valley Care Home,-628.16, 18-Oct-2022
435,Revenue,CAHD,South - Commissioned Services,Fees & Charges Income - General,Avon Valley Care Home,-1009.24, 18-Oct-2022
436,Revenue,CAHD,South - Commissioned Services,Fees & Charges Income - General,Avon Valley Care Home,-1285.52, 18-Oct-2022
437,Revenue,CAHD,South - Commissioned Services,Fees & Charges Income - General,Avon Valley Care Home,-1040.32, 18-Oct-2022
438,Revenue,CAHD,South - Commissioned Services,Fees & Charges Income - General,Avon Valley Care Home,0.00, 18-Oct-2022
439,Revenue,CAHD,South - Commissioned Services,Fees & Charges Income - General,Avon Valley Care Home,-1972.56, 18-Oct-2022
440,Revenue,CAHD,South - Commissioned Services,Fees & Charges Income - General,Avon Valley Care Home,-663.80, 18-Oct-2022
441,Revenue,CAHD,South - Commissioned Services,Fees & Charges Income - General,Avon Valley Care Home,-1202.56, 18-Oct-2022
442,Revenue,CAHD,South - Commissioned Services,Fees & Charges Income - General,Avon Valley Care Home,-1100.24, 18-Oct-2022
443,Revenue,CAHD,South - Commissioned Services,Fees & Charges Income - General,Avon Valley Care Home,-627.80, 18-Oct-2022
444,Revenue,CAHD,South - Commissioned Services,Fees & Charges Income - General,Avon Valley Care Home,-1175.92, 18-Oct-2022
445,Revenue,CAHD,South - Commissioned Services,Fees & Charges Income - General,Avon Valley Care Home,-793.84, 18-Oct-2022
446,Revenue,CAHD,South - Commissioned Services,Fees & Charges Income - General,Avon Valley Care Home,-96.34, 18-Oct-2022
447,Revenue,CAHD,North - Community based support,Permanent Residential,Avon Valley Care Home,4400.00, 18-Oct-2022
448,Revenue,CAHD,North - Community based support,Fees & Charges Income - General,Avon Valley Care Home,-895.20, 18-Oct-2022
449,Revenue,CAHD,South - S117,Permanent Residential,Avon Valley Care Home,4337.52, 18-Oct-2022
450,Revenue,CAHD,South - Commissioned Services,Permanent Residential,Avonmere Care Home,12508.57, 18-Oct-2022
451,Revenue,CAHD,South - Commissioned Services,Fees & Charges Income - General,Avonmere Care Home,-3119.10, 18-Oct-2022
452,Revenue,CAHD,North - Community based support,Permanent Residential,Avonmere Care Home,4144.00, 18-Oct-2022
453,Revenue,CAHD,North - Community based support,Permanent Residential,Avonmere Care Home,4960.80, 18-Oct-2022
454,Revenue,CAHD,North - Community based support,Permanent Residential,Avonmere Care Home,4793.00, 18-Oct-2022
455,Revenue,CAHD,North - Community based support,Permanent Residential,Avonmere Care Home,4876.00, 18-Oct-2022
456,Revenue,CAHD,North - Community based support,Permanent Residential,Avonmere Care Home,4140.00, 18-Oct-2022
457,Revenue,CAHD,North - Community based support,Permanent Residential,Avonmere Care Home,14194.29, 18-Oct-2022
458,Revenue,CAHD,North - Community based support,Fees & Charges Income - General,Avonmere Care Home,-1048.90, 18-Oct-2022
459,Revenue,CAHD,North - Community based support,Fees & Charges Income - General,Avonmere Care Home,-1090.32, 18-Oct-2022
460,Revenue,CAHD,North - Community based support,Fees & Charges Income - General,Avonmere Care Home,-1002.96, 18-Oct-2022
461,Revenue,CAHD,North - Community based support,Fees & Charges Income - General,Avonmere Care Home,-1111.72, 18-Oct-2022
462,Revenue,CAHD,North - Community based support,Fees & Charges Income - General,Avonmere Care Home,-1202.64, 18-Oct-2022
463,Revenue,CAHD,North - Community based support,Fees & Charges Income - General,Avonmere Care Home,-2310.86, 18-Oct-2022
464,Revenue,CAHD,Works4Youth,Premises Hire,BAC Trading Limited,1280.00, 11-Oct-2022
465,Revenue,CAHD,South Glos Users in South Glos Homes,Permanent Nursing,Badminton Place,836.76, 18-Oct-2022
466,Revenue,CAHD,South Glos Users in South Glos Homes,Permanent Nursing,Badminton Place,836.76, 18-Oct-2022
467,Revenue,CAHD,South Glos Users in South Glos Homes,Permanent Nursing,Badminton Place,836.76, 18-Oct-2022
468,Revenue,CAHD,South Glos Users in South Glos Homes,Permanent Nursing,Badminton Place,836.76, 18-Oct-2022
469,Revenue,CAHD,South Glos Users in South Glos Homes,Permanent Nursing,Badminton Place,836.76, 18-Oct-2022
470,Revenue,CAHD,South Glos Users in South Glos Homes,Permanent Nursing,Badminton Place,836.76, 18-Oct-2022
471,Revenue,CAHD,South Glos Users in South Glos Homes,Permanent Nursing,Badminton Place,836.76, 18-Oct-2022
472,Revenue,CAHD,Central - Commissioned Services,Permanent Residential,Badminton Place,5400.00, 18-Oct-2022
473,Revenue,CAHD,Central - Commissioned Services,Permanent Residential,Badminton Place,8000.00, 18-Oct-2022
474,Revenue,CAHD,Central - Commissioned Services,Permanent Nursing,Badminton Place,6352.00, 18-Oct-2022
475,Revenue,CAHD,Central - Commissioned Services,Fees & Charges Income - General,Badminton Place,-981.40, 18-Oct-2022
476,Revenue,CAHD,Central - Commissioned Services,Fees & Charges Income - General,Badminton Place,-1330.40, 18-Oct-2022
477,Revenue,CAHD,Central - Commissioned Services,Fees & Charges Income - General,Badminton Place,-438.80, 18-Oct-2022
478,Revenue,CAHD,South - Commissioned Services,Permanent Residential,Badminton Place,3136.52, 18-Oct-2022
479,Revenue,CAHD,South - Commissioned Services,Fees & Charges Income - General,Badminton Place,-1502.80, 18-Oct-2022
480,Revenue,CAHD,North - Community based support,Permanent Residential,Badminton Place,4480.00, 18-Oct-2022
481,Revenue,CAHD,North - Community based support,Permanent Nursing,Badminton Place,5156.16, 18-Oct-2022
482,Revenue,CAHD,North - Community based support,Permanent Nursing,Badminton Place,5974.00, 18-Oct-2022
483,Revenue,CAHD,North - Community based support,Fees & Charges Income - General,Badminton Place,-689.68, 18-Oct-2022
484,Revenue,CAHD,North - Community based support,Fees & Charges Income - General,Badminton Place,-991.64, 18-Oct-2022
485,Revenue,CAHD,North - Community based support,Permanent Nursing,Bamfield Lodge,5200.00, 18-Oct-2022
486,Revenue,CAHD,North - Community based support,Fees & Charges Income - General,Bamfield Lodge,-973.65, 18-Oct-2022
487,Revenue,CAHD,CSC - Legal Fees,Legal Fees,Barcan+Kirby LLP,2220.04, 25-Oct-2022
488,Revenue,CAHD,CSC - Care Leavers Support Costs,Personal Needs of Clients,Barnardo Services Limited,3052.20, 12-Oct-2022
489,Revenue,CAHD,Healthy Foundations,Other Small Contracts,Barnardos,7650.00, 14-Oct-2022
490,Revenue,CAHD,Pensions - Non DSG,Unfunded Annual Pension,Bath & North East Somerset Council,99950.81, 24-Oct-2022
491,Revenue,CAHD,Pensions - Non DSG,Unfunded Annual Pension,Bath & North East Somerset Council,99362.22, 05-Oct-2022
492,Revenue,CAHD,South Glos Users in South Glos Homes,Permanent Nursing,Beaufort Grange Care Home,836.76, 18-Oct-2022
493,Revenue,CAHD,South Glos Users in South Glos Homes,Permanent Nursing,Beaufort Grange Care Home,-4404.56, 18-Oct-2022
494,Revenue,CAHD,South Glos Users in South Glos Homes,Permanent Nursing,Beaufort Grange Care Home,836.76, 18-Oct-2022
495,Revenue,CAHD,South Glos Users in South Glos Homes,Permanent Nursing,Beaufort Grange Care Home,836.76, 18-Oct-2022
496,Revenue,CAHD,South Glos Users in South Glos Homes,Permanent Nursing,Beaufort Grange Care Home,-1392.54, 18-Oct-2022
497,Revenue,CAHD,South Glos Users in South Glos Homes,Permanent Nursing,Beaufort Grange Care Home,836.76, 18-Oct-2022
498,Revenue,CAHD,South Glos Users in South Glos Homes,Permanent Nursing,Beaufort Grange Care Home,836.76, 18-Oct-2022
499,Revenue,CAHD,South Glos Users in South Glos Homes,Permanent Nursing,Beaufort Grange Care Home,836.76, 18-Oct-2022
500,Revenue,CAHD,South Glos Users in South Glos Homes,Permanent Nursing,Beaufort Grange Care Home,836.76, 18-Oct-2022
501,Revenue,CAHD,South Glos Users in South Glos Homes,Permanent Nursing,Beaufort Grange Care Home,836.76, 18-Oct-2022
502,Revenue,CAHD,South Glos Users in South Glos Homes,Permanent Nursing,Beaufort Grange Care Home,836.76, 18-Oct-2022
503,Revenue,CAHD,South Glos Users in South Glos Homes,Permanent Nursing,Beaufort Grange Care Home,-6246.98, 18-Oct-2022
504,Revenue,CAHD,South Glos Users in South Glos Homes,Permanent Nursing,Beaufort Grange Care Home,836.76, 18-Oct-2022
505,Revenue,CAHD,South Glos Users in South Glos Homes,Permanent Nursing,Beaufort Grange Care Home,836.76, 18-Oct-2022
506,Revenue,CAHD,South Glos Users in South Glos Homes,Permanent Nursing,Beaufort Grange Care Home,836.76, 18-Oct-2022
507,Revenue,CAHD,South Glos Users in South Glos Homes,Permanent Nursing,Beaufort Grange Care Home,836.76, 18-Oct-2022
508,Revenue,CAHD,South Glos Users in South Glos Homes,Permanent Nursing,Beaufort Grange Care Home,836.76, 18-Oct-2022
509,Revenue,CAHD,South Glos Users in South Glos Homes,Permanent Nursing,Beaufort Grange Care Home,-1703.40, 18-Oct-2022
510,Revenue,CAHD,South Glos Users in South Glos Homes,Permanent Nursing,Beaufort Grange Care Home,836.76, 18-Oct-2022
511,Revenue,CAHD,South Glos Users in South Glos Homes,Permanent Nursing,Beaufort Grange Care Home,836.76, 18-Oct-2022
512,Revenue,CAHD,South Glos Users in South Glos Homes,Permanent Nursing,Beaufort Grange Care Home,836.76, 18-Oct-2022
513,Revenue,CAHD,South Glos Users in South Glos Homes,Permanent Nursing,Beaufort Grange Care Home,836.76, 18-Oct-2022
514,Revenue,CAHD,South Glos Users in South Glos Homes,Permanent Nursing,Beaufort Grange Care Home,836.76, 18-Oct-2022
515,Revenue,CAHD,South Glos Users in South Glos Homes,Permanent Nursing,Beaufort Grange Care Home,836.76, 18-Oct-2022
516,Revenue,CAHD,South Glos Users in South Glos Homes,Permanent Nursing,Beaufort Grange Care Home,836.76, 18-Oct-2022
517,Revenue,CAHD,South Glos Users in South Glos Homes,Permanent Nursing,Beaufort Grange Care Home,3735.54, 18-Oct-2022
518,Revenue,CAHD,South Glos Users in South Glos Homes,Permanent Nursing,Beaufort Grange Care Home,836.76, 18-Oct-2022
519,Revenue,CAHD,South Glos Users in South Glos Homes,Permanent Nursing,Beaufort Grange Care Home,836.76, 18-Oct-2022
520,Revenue,CAHD,South Glos Users in South Glos Homes,Permanent Nursing,Beaufort Grange Care Home,836.76, 18-Oct-2022
521,Revenue,CAHD,South Glos Users in South Glos Homes,Permanent Nursing,Beaufort Grange Care Home,836.76, 18-Oct-2022
522,Revenue,CAHD,South Glos Users in South Glos Homes,Permanent Nursing,Beaufort Grange Care Home,836.76, 18-Oct-2022
523,Revenue,CAHD,South Glos Users in South Glos Homes,Permanent Nursing,Beaufort Grange Care Home,-3496.46, 18-Oct-2022
524,Revenue,CAHD,South Glos Users in South Glos Homes,Permanent Nursing,Beaufort Grange Care Home,836.76, 18-Oct-2022
525,Revenue,CAHD,South Glos Users in South Glos Homes,Permanent Nursing,Beaufort Grange Care Home,836.76, 18-Oct-2022
526,Revenue,CAHD,South Glos Users in South Glos Homes,Permanent Nursing,Beaufort Grange Care Home,836.76, 18-Oct-2022
527,Revenue,CAHD,South Glos Users in South Glos Homes,Permanent Nursing,Beaufort Grange Care Home,836.76, 18-Oct-2022
528,Revenue,CAHD,South Glos Users in South Glos Homes,Permanent Nursing,Beaufort Grange Care Home,3974.61, 18-Oct-2022
529,Revenue,CAHD,South Glos Users in South Glos Homes,Permanent Nursing,Beaufort Grange Care Home,836.76, 18-Oct-2022
530,Revenue,CAHD,South Glos Users in South Glos Homes,Permanent Nursing,Beaufort Grange Care Home,836.76, 18-Oct-2022
531,Revenue,CAHD,South Glos Users in South Glos Homes,Permanent Nursing,Beaufort Grange Care Home,836.76, 18-Oct-2022
532,Revenue,CAHD,South Glos Users in South Glos Homes,Permanent Nursing,Beaufort Grange Care Home,8310.98, 18-Oct-2022
533,Revenue,CAHD,Central - Commissioned Services,Permanent Residential,Beaufort Grange Care Home,7200.00, 18-Oct-2022
534,Revenue,CAHD,Central - Commissioned Services,Permanent Nursing,Beaufort Grange Care Home,5500.00, 18-Oct-2022
535,Revenue,CAHD,Central - Commissioned Services,Permanent Nursing,Beaufort Grange Care Home,11684.00, 18-Oct-2022
536,Revenue,CAHD,Central - Commissioned Services,Permanent Nursing,Beaufort Grange Care Home,5400.00, 18-Oct-2022
537,Revenue,CAHD,Central - Commissioned Services,Permanent Nursing,Beaufort Grange Care Home,5500.00, 18-Oct-2022
538,Revenue,CAHD,Central - Commissioned Services,Permanent Nursing,Beaufort Grange Care Home,5449.60, 18-Oct-2022
539,Revenue,CAHD,Central - Commissioned Services,Fees & Charges Income - General,Beaufort Grange Care Home,-607.80, 18-Oct-2022
540,Revenue,CAHD,Central - Commissioned Services,Fees & Charges Income - General,Beaufort Grange Care Home,-894.80, 18-Oct-2022
541,Revenue,CAHD,South - Commissioned Services,Permanent Nursing,Beaufort Grange Care Home,20057.14, 18-Oct-2022
542,Revenue,CAHD,South - Commissioned Services,Permanent Nursing,Beaufort Grange Care Home,6400.00, 18-Oct-2022
543,Revenue,CAHD,North - Community based support,Permanent Nursing,Beaufort Grange Care Home,4369.60, 18-Oct-2022
544,Revenue,CAHD,North - Community based support,Permanent Nursing,Beaufort Grange Care Home,10620.00, 18-Oct-2022
545,Revenue,CAHD,North - Community based support,Fees & Charges Income - General,Beaufort Grange Care Home,-627.80, 18-Oct-2022
546,Revenue,CAHD,North - Community based support,Fees & Charges Income - General,Beaufort Grange Care Home,-438.80, 18-Oct-2022
547,Revenue,CAHD,Central Team - S117,Permanent Nursing,Beaufort Grange Care Home,6686.36, 18-Oct-2022
548,Revenue,CAHD,Central - Commissioned Services,Permanent Residential,Beaufort House,3171.36, 18-Oct-2022
549,Revenue,CAHD,Central - Commissioned Services,Permanent Residential,Beaufort House,-4276.07, 18-Oct-2022
550,Revenue,CAHD,Central - Commissioned Services,Permanent Residential,Beaufort House,4028.00, 18-Oct-2022
551,Revenue,CAHD,Central - Commissioned Services,Permanent Residential,Beaufort House,3582.80, 18-Oct-2022
552,Revenue,CAHD,Central - Commissioned Services,Permanent Residential,Beaufort House,10571.43, 18-Oct-2022
553,Revenue,CAHD,Central - Commissioned Services,Permanent Residential,Beaufort House,3392.00, 18-Oct-2022
554,Revenue,CAHD,Central - Commissioned Services,Permanent Residential,Beaufort House,4240.00, 18-Oct-2022
555,Revenue,CAHD,Central - Commissioned Services,Permanent Residential,Beaufort House,3816.00, 18-Oct-2022
556,Revenue,CAHD,Central - Commissioned Services,Permanent Residential,Beaufort House,3816.00, 18-Oct-2022
557,Revenue,CAHD,Central - Commissioned Services,Permanent Residential,Beaufort House,6857.14, 18-Oct-2022
558,Revenue,CAHD,Central - Commissioned Services,Respite Planned - Residential,Beaufort House,4400.00, 18-Oct-2022
559,Revenue,CAHD,Central - Commissioned Services,Respite Planned - Nursing,Beaufort House,4400.00, 18-Oct-2022
560,Revenue,CAHD,Central - Commissioned Services,Fees & Charges Income - General,Beaufort House,-821.12, 18-Oct-2022
561,Revenue,CAHD,Central - Commissioned Services,Fees & Charges Income - General,Beaufort House,1407.48, 18-Oct-2022
562,Revenue,CAHD,Central - Commissioned Services,Fees & Charges Income - General,Beaufort House,-731.44, 18-Oct-2022
563,Revenue,CAHD,Central - Commissioned Services,Fees & Charges Income - General,Beaufort House,-1448.48, 18-Oct-2022
564,Revenue,CAHD,Central - Commissioned Services,Fees & Charges Income - General,Beaufort House,-751.32, 18-Oct-2022
565,Revenue,CAHD,Central - Commissioned Services,Fees & Charges Income - General,Beaufort House,-627.80, 18-Oct-2022
566,Revenue,CAHD,Central - Commissioned Services,Fees & Charges Income - General,Beaufort House,-1929.19, 18-Oct-2022
567,Revenue,CAHD,North - Community based support,Permanent Residential,Beaufort House,4240.00, 18-Oct-2022
568,Revenue,CAHD,North - Community based support,Permanent Residential,Beaufort House,2986.32, 18-Oct-2022
569,Revenue,CAHD,North - Community based support,Permanent Residential,Beaufort House,4240.00, 18-Oct-2022
570,Revenue,CAHD,North - Community based support,Fees & Charges Income - General,Beaufort House,-1166.52, 18-Oct-2022
571,Revenue,CAHD,North - Community based support,Fees & Charges Income - General,Beaufort House,-627.80, 18-Oct-2022
572,Revenue,CAHD,North - Community based support,Fees & Charges Income - General,Beaufort House,-663.80, 18-Oct-2022
573,Revenue,CAHD,South Glos Users in South Glos Homes,Permanent Nursing,Beech House,836.76, 18-Oct-2022
574,Revenue,CAHD,South Glos Users in South Glos Homes,Permanent Nursing,Beech House,836.76, 18-Oct-2022
575,Revenue,CAHD,South Glos Users in South Glos Homes,Permanent Nursing,Beech House,3705.65, 18-Oct-2022
576,Revenue,CAHD,South Glos Users in South Glos Homes,Permanent Nursing,Beech House,836.76, 18-Oct-2022
577,Revenue,CAHD,South Glos Users in South Glos Homes,Permanent Nursing,Beech House,836.76, 18-Oct-2022
578,Revenue,CAHD,South Glos Users in South Glos Homes,Permanent Nursing,Beech House,836.76, 18-Oct-2022
579,Revenue,CAHD,South Glos Users in South Glos Homes,Permanent Nursing,Beech House,836.76, 18-Oct-2022
580,Revenue,CAHD,South Glos Users in South Glos Homes,Permanent Nursing,Beech House,836.76, 18-Oct-2022
581,Revenue,CAHD,South Glos Users in South Glos Homes,Permanent Nursing,Beech House,836.76, 18-Oct-2022
582,Revenue,CAHD,South Glos Users in South Glos Homes,Permanent Nursing,Beech House,836.76, 18-Oct-2022
583,Revenue,CAHD,South Glos Users in South Glos Homes,Permanent Nursing,Beech House,3231.39, 18-Oct-2022
584,Revenue,CAHD,South Glos Users in South Glos Homes,Permanent Nursing,Beech House,836.76, 18-Oct-2022
585,Revenue,CAHD,South Glos Users in South Glos Homes,Permanent Nursing,Beech House,836.76, 18-Oct-2022
586,Revenue,CAHD,South Glos Users in South Glos Homes,Permanent Nursing,Beech House,5229.75, 18-Oct-2022
587,Revenue,CAHD,South Glos Users in South Glos Homes,Permanent Nursing,Beech House,836.76, 18-Oct-2022
588,Revenue,CAHD,South Glos Users in South Glos Homes,Permanent Nursing,Beech House,836.76, 18-Oct-2022
589,Revenue,CAHD,South Glos Users in South Glos Homes,Permanent Nursing,Beech House,717.22, 18-Oct-2022
590,Revenue,CAHD,South Glos Users in South Glos Homes,Permanent Nursing,Beech House,836.76, 18-Oct-2022
591,Revenue,CAHD,South Glos Users in South Glos Homes,Permanent Nursing,Beech House,836.76, 18-Oct-2022
592,Revenue,CAHD,South Glos Users in South Glos Homes,Permanent Nursing,Beech House,836.76, 18-Oct-2022
593,Revenue,CAHD,South Glos Users in South Glos Homes,Permanent Nursing,Beech House,3944.72, 18-Oct-2022
594,Revenue,CAHD,South Glos Users in South Glos Homes,Permanent Nursing,Beech House,836.76, 18-Oct-2022
595,Revenue,CAHD,Central - Commissioned Services,Permanent Nursing,Beech House,836.76, 18-Oct-2022
596,Revenue,CAHD,South - Commissioned Services,Permanent Residential,Beech House,4748.80, 18-Oct-2022
597,Revenue,CAHD,South - Commissioned Services,Fees & Charges Income - General,Beech House,-789.36, 18-Oct-2022
598,Revenue,CAHD,North - Community based support,Permanent Residential,Beech House,4727.88, 18-Oct-2022
599,Revenue,CAHD,North - Community based support,Permanent Residential,Beech House,5317.97, 18-Oct-2022
600,Revenue,CAHD,North - Community based support,Permanent Residential,Beech House,4748.80, 18-Oct-2022
601,Revenue,CAHD,North - Community based support,Permanent Residential,Beech House,4772.80, 18-Oct-2022
602,Revenue,CAHD,North - Community based support,Permanent Residential,Beech House,4748.80, 18-Oct-2022
603,Revenue,CAHD,North - Community based support,Permanent Residential,Beech House,4664.00, 18-Oct-2022
604,Revenue,CAHD,North - Community based support,Permanent Nursing,Beech House,4660.00, 18-Oct-2022
605,Revenue,CAHD,North - Community based support,Permanent Nursing,Beech House,5825.00, 18-Oct-2022
606,Revenue,CAHD,North - Community based support,Permanent Nursing,Beech House,836.76, 18-Oct-2022
607,Revenue,CAHD,North - Community based support,Permanent Nursing,Beech House,4641.16, 18-Oct-2022
608,Revenue,CAHD,North - Community based support,Permanent Nursing,Beech House,4671.56, 18-Oct-2022
609,Revenue,CAHD,North - Community based support,Permanent Nursing,Beech House,836.76, 18-Oct-2022
610,Revenue,CAHD,North - Community based support,Fees & Charges Income - General,Beech House,-627.80, 18-Oct-2022
611,Revenue,CAHD,North - Community based support,Fees & Charges Income - General,Beech House,-1904.60, 18-Oct-2022
612,Revenue,CAHD,North - Community based support,Fees & Charges Income - General,Beech House,-1600.25, 18-Oct-2022
613,Revenue,CAHD,North - Community based support,Fees & Charges Income - General,Beech House,-1356.72, 18-Oct-2022
614,Revenue,CAHD,North - Community based support,Fees & Charges Income - General,Beech House,-1758.50, 18-Oct-2022
615,Revenue,CAHD,North - Community based support,Fees & Charges Income - General,Beech House,-629.00, 18-Oct-2022
616,Revenue,CAHD,North - Community based support,Fees & Charges Income - General,Beech House,-1428.72, 18-Oct-2022
617,Revenue,CAHD,North - Community based support,Fees & Charges Income - General,Beech House,-840.16, 18-Oct-2022
618,Revenue,CAHD,North - Community based support,Fees & Charges Income - General,Beech House,-1304.60, 18-Oct-2022
619,Revenue,CAHD,18-25 Year Olds,Permanent Residential,Beechwood Court Ltd,3659.05, 10-Oct-2022
620,Revenue,CAHD,CSC - Residential Placements,Permanent Residential,Beechwood Court Ltd,5269.07, 07-Oct-2022
621,Revenue,CAHD,18-25 Year Olds,Permanent Residential,Beechwood Court Ltd,15505.70, 05-Oct-2022
622,Revenue,CAHD,CSC - Residential Placements,Permanent Residential,Beechwood Court Ltd,22328.35, 10-Oct-2022
623,Revenue,CAHD,Independent Special Placements - Pre 16,Other Private Contractors,Belgrave School,5112.00, 14-Oct-2022
624,Revenue,CAHD,Independent Special Placements - Pre 16,Other Private Contractors,Belgrave School,7175.00, 14-Oct-2022
625,Revenue,CAHD,Parent Partnership & Disagreement Resolutions,Fees - General,Bevan Brittan LLP,3453.00, 20-Oct-2022
626,Revenue,CAHD,Parent Partnership & Disagreement Resolutions,Fees - General,Bevan Brittan LLP,2223.00, 20-Oct-2022
627,Revenue,CAHD,South - S117,Permanent Residential,Bidna House,3774.24, 18-Oct-2022
628,Revenue,CAHD,Placements OLA Special Schools and RB,Other L.A.s - General,Blaise High School,792.40, 21-Oct-2022
629,Revenue,CAHD,Placements OLA Special Schools and RB,Other L.A.s - General,Blaise High School,792.40, 21-Oct-2022
630,Revenue,CAHD,Statemented Support Payments to OLAs,Other L.A.s - General,Blaise High School,907.83, 21-Oct-2022
631,Revenue,CAHD,Placements OLA Special Schools and RB,Other L.A.s - General,Blaise High School,792.40, 21-Oct-2022
632,Revenue,CAHD,18-25 Year Olds,Other Small Contracts,Blakehill Healthcare Ltd,1456.40, 17-Oct-2022
633,Revenue,CAHD,Central - Commissioned Services,Other Small Contracts,Blakehill Healthcare Ltd,317.76, 17-Oct-2022
634,Revenue,CAHD,Central - Commissioned Services,Other Small Contracts,Blakehill Healthcare Ltd,642.14, 17-Oct-2022
635,Revenue,CAHD,Central - Commissioned Services,Other Small Contracts,Blakehill Healthcare Ltd,271.42, 17-Oct-2022
636,Revenue,CAHD,Central - Commissioned Services,Other Small Contracts,Blakehill Healthcare Ltd,483.26, 17-Oct-2022
637,Revenue,CAHD,Central - Commissioned Services,Other Small Contracts,Blakehill Healthcare Ltd,1496.12, 17-Oct-2022
638,Revenue,CAHD,Central - Commissioned Services,Other Small Contracts,Blakehill Healthcare Ltd,529.60, 17-Oct-2022
639,Revenue,CAHD,Central - Commissioned Services,Other Small Contracts,Blakehill Healthcare Ltd,2985.62, 17-Oct-2022
640,Revenue,CAHD,Central - Commissioned Services,Other Small Contracts,Blakehill Healthcare Ltd,681.86, 17-Oct-2022
641,Revenue,CAHD,Central - Commissioned Services,Other Small Contracts,Blakehill Healthcare Ltd,264.80, 17-Oct-2022
642,Revenue,CAHD,Central - Commissioned Services,Other Small Contracts,Blakehill Healthcare Ltd,562.70, 17-Oct-2022
643,Revenue,CAHD,Central - Commissioned Services,Other Small Contracts,Blakehill Healthcare Ltd,2542.08, 17-Oct-2022
644,Revenue,CAHD,Central - Commissioned Services,Other Small Contracts,Blakehill Healthcare Ltd,410.44, 17-Oct-2022
645,Revenue,CAHD,Central - Commissioned Services,Other Small Contracts,Blakehill Healthcare Ltd,562.70, 17-Oct-2022
646,Revenue,CAHD,Central - Commissioned Services,Other Small Contracts,Blakehill Healthcare Ltd,569.32, 17-Oct-2022
647,Revenue,CAHD,Central - Commissioned Services,Other Small Contracts,Blakehill Healthcare Ltd,946.66, 17-Oct-2022
648,Revenue,CAHD,Central - Commissioned Services,Other Small Contracts,Blakehill Healthcare Ltd,1271.04, 17-Oct-2022
649,Revenue,CAHD,Central - Commissioned Services,Other Small Contracts,Blakehill Healthcare Ltd,2250.80, 17-Oct-2022
650,Revenue,CAHD,Central - Commissioned Services,Other Small Contracts,Blakehill Healthcare Ltd,522.98, 17-Oct-2022
651,Revenue,CAHD,South - Commissioned Services,Other Small Contracts,Blakehill Healthcare Ltd,926.80, 17-Oct-2022
652,Revenue,CAHD,South - Commissioned Services,Other Small Contracts,Blakehill Healthcare Ltd,529.60, 17-Oct-2022
653,Revenue,CAHD,South - Commissioned Services,Other Small Contracts,Blakehill Healthcare Ltd,1999.24, 17-Oct-2022
654,Revenue,CAHD,South - Commissioned Services,Other Small Contracts,Blakehill Healthcare Ltd,1158.50, 17-Oct-2022
655,Revenue,CAHD,South - Commissioned Services,Other Small Contracts,Blakehill Healthcare Ltd,4399.92, 17-Oct-2022
656,Revenue,CAHD,South - Commissioned Services,Other Small Contracts,Blakehill Healthcare Ltd,853.98, 17-Oct-2022
657,Revenue,CAHD,South - Commissioned Services,Other Small Contracts,Blakehill Healthcare Ltd,26.48, 17-Oct-2022
658,Revenue,CAHD,South - Commissioned Services,Other Small Contracts,Blakehill Healthcare Ltd,1244.56, 17-Oct-2022
659,Revenue,CAHD,South - Commissioned Services,Other Small Contracts,Blakehill Healthcare Ltd,2846.60, 17-Oct-2022
660,Revenue,CAHD,South - Commissioned Services,Other Small Contracts,Blakehill Healthcare Ltd,410.44, 17-Oct-2022
661,Revenue,CAHD,South - Commissioned Services,Other Small Contracts,Blakehill Healthcare Ltd,1535.84, 17-Oct-2022
662,Revenue,CAHD,South - Commissioned Services,Other Small Contracts,Blakehill Healthcare Ltd,1343.86, 17-Oct-2022
663,Revenue,CAHD,South - Commissioned Services,Other Small Contracts,Blakehill Healthcare Ltd,1178.36, 17-Oct-2022
664,Revenue,CAHD,South - Commissioned Services,Other Small Contracts,Blakehill Healthcare Ltd,979.76, 17-Oct-2022
665,Revenue,CAHD,South - Commissioned Services,Mentoring,Blakehill Healthcare Ltd,165.50, 17-Oct-2022
666,Revenue,CAHD,North - Community based support,Other Small Contracts,Blakehill Healthcare Ltd,893.70, 17-Oct-2022
667,Revenue,CAHD,North - Community based support,Other Small Contracts,Blakehill Healthcare Ltd,1218.08, 17-Oct-2022
668,Revenue,CAHD,North - Community based support,Other Small Contracts,Blakehill Healthcare Ltd,920.18, 17-Oct-2022
669,Revenue,CAHD,North - Community based support,Other Small Contracts,Blakehill Healthcare Ltd,4878.14, 17-Oct-2022
670,Revenue,CAHD,North - Community based support,Other Small Contracts,Blakehill Healthcare Ltd,1449.78, 17-Oct-2022
671,Revenue,CAHD,North - Community based support,Other Small Contracts,Blakehill Healthcare Ltd,1079.06, 17-Oct-2022
672,Revenue,CAHD,South Glos Users in South Glos Homes,Permanent Nursing,Blossom Fields Nursing Home,1928.97, 18-Oct-2022
673,Revenue,CAHD,South Glos Users in South Glos Homes,Permanent Nursing,Blossom Fields Nursing Home,836.76, 18-Oct-2022
674,Revenue,CAHD,South Glos Users in South Glos Homes,Permanent Nursing,Blossom Fields Nursing Home,836.76, 18-Oct-2022
675,Revenue,CAHD,South Glos Users in South Glos Homes,Permanent Nursing,Blossom Fields Nursing Home,209.19, 18-Oct-2022
676,Revenue,CAHD,South Glos Users in South Glos Homes,Permanent Nursing,Blossom Fields Nursing Home,836.76, 18-Oct-2022
677,Revenue,CAHD,South Glos Users in South Glos Homes,Permanent Nursing,Blossom Fields Nursing Home,836.76, 18-Oct-2022
678,Revenue,CAHD,South Glos Users in South Glos Homes,Permanent Nursing,Blossom Fields Nursing Home,836.76, 18-Oct-2022
679,Revenue,CAHD,South Glos Users in South Glos Homes,Permanent Nursing,Blossom Fields Nursing Home,836.76, 18-Oct-2022
680,Revenue,CAHD,South Glos Users in South Glos Homes,Permanent Nursing,Blossom Fields Nursing Home,836.76, 18-Oct-2022
681,Revenue,CAHD,South Glos Users in South Glos Homes,Permanent Nursing,Blossom Fields Nursing Home,836.76, 18-Oct-2022
682,Revenue,CAHD,South Glos Users in South Glos Homes,Permanent Nursing,Blossom Fields Nursing Home,836.76, 18-Oct-2022
683,Revenue,CAHD,South Glos Users in South Glos Homes,Permanent Nursing,Blossom Fields Nursing Home,836.76, 18-Oct-2022
684,Revenue,CAHD,South Glos Users in South Glos Homes,Permanent Nursing,Blossom Fields Nursing Home,836.76, 18-Oct-2022
685,Revenue,CAHD,South Glos Users in South Glos Homes,Permanent Nursing,Blossom Fields Nursing Home,836.76, 18-Oct-2022
686,Revenue,CAHD,South Glos Users in South Glos Homes,Permanent Nursing,Blossom Fields Nursing Home,836.76, 18-Oct-2022
687,Revenue,CAHD,South Glos Users in South Glos Homes,Permanent Nursing,Blossom Fields Nursing Home,836.76, 18-Oct-2022
688,Revenue,CAHD,South Glos Users in South Glos Homes,Permanent Nursing,Blossom Fields Nursing Home,836.76, 18-Oct-2022
689,Revenue,CAHD,South Glos Users in South Glos Homes,Permanent Nursing,Blossom Fields Nursing Home,836.76, 18-Oct-2022
690,Revenue,CAHD,South Glos Users in South Glos Homes,Permanent Nursing,Blossom Fields Nursing Home,836.76, 18-Oct-2022
691,Revenue,CAHD,South Glos Users in South Glos Homes,Permanent Nursing,Blossom Fields Nursing Home,836.76, 18-Oct-2022
692,Revenue,CAHD,South Glos Users in South Glos Homes,Permanent Nursing,Blossom Fields Nursing Home,836.76, 18-Oct-2022
693,Revenue,CAHD,South Glos Users in South Glos Homes,Permanent Nursing,Blossom Fields Nursing Home,836.76, 18-Oct-2022
694,Revenue,CAHD,South Glos Users in South Glos Homes,Permanent Nursing,Blossom Fields Nursing Home,836.76, 18-Oct-2022
695,Revenue,CAHD,South Glos Users in South Glos Homes,Permanent Nursing,Blossom Fields Nursing Home,119.53, 18-Oct-2022
696,Revenue,CAHD,South Glos Users in South Glos Homes,Permanent Nursing,Blossom Fields Nursing Home,836.76, 18-Oct-2022
697,Revenue,CAHD,South Glos Users in South Glos Homes,Permanent Nursing,Blossom Fields Nursing Home,836.76, 18-Oct-2022
698,Revenue,CAHD,South Glos Users in South Glos Homes,Permanent Nursing,Blossom Fields Nursing Home,836.76, 18-Oct-2022
699,Revenue,CAHD,Central - Commissioned Services,Respite Planned - Nursing,Blossom Fields Nursing Home,19885.71, 18-Oct-2022
700,Revenue,CAHD,South - Commissioned Services,Permanent Nursing,Blossom Fields Nursing Home,5088.00, 18-Oct-2022
701,Revenue,CAHD,South - Commissioned Services,Permanent Nursing,Blossom Fields Nursing Home,4664.00, 18-Oct-2022
702,Revenue,CAHD,South - Commissioned Services,Permanent Nursing,Blossom Fields Nursing Home,4337.08, 18-Oct-2022
703,Revenue,CAHD,South - Commissioned Services,Fees & Charges Income - General,Blossom Fields Nursing Home,-1482.92, 18-Oct-2022
704,Revenue,CAHD,South - Commissioned Services,Fees & Charges Income - General,Blossom Fields Nursing Home,-997.40, 18-Oct-2022
705,Revenue,CAHD,South - Commissioned Services,Fees & Charges Income - General,Blossom Fields Nursing Home,-750.52, 18-Oct-2022
706,Revenue,CAHD,North - Community based support,Permanent Nursing,Blossom Fields Nursing Home,-5840.56, 18-Oct-2022
707,Revenue,CAHD,North - Community based support,Permanent Nursing,Blossom Fields Nursing Home,5204.88, 18-Oct-2022
708,Revenue,CAHD,North - Community based support,Permanent Nursing,Blossom Fields Nursing Home,6548.76, 18-Oct-2022
709,Revenue,CAHD,North - Community based support,Permanent Nursing,Blossom Fields Nursing Home,4664.00, 18-Oct-2022
710,Revenue,CAHD,North - Community based support,Permanent Nursing,Blossom Fields Nursing Home,10800.00, 18-Oct-2022
711,Revenue,CAHD,North - Community based support,Permanent Nursing,Blossom Fields Nursing Home,4380.04, 18-Oct-2022
712,Revenue,CAHD,North - Community based support,Permanent Nursing,Blossom Fields Nursing Home,4379.92, 18-Oct-2022
713,Revenue,CAHD,North - Community based support,Permanent Nursing,Blossom Fields Nursing Home,4380.04, 18-Oct-2022
714,Revenue,CAHD,North - Community based support,Permanent Nursing,Blossom Fields Nursing Home,30571.43, 18-Oct-2022
715,Revenue,CAHD,North - Community based support,Fees & Charges Income - General,Blossom Fields Nursing Home,4137.16, 18-Oct-2022
716,Revenue,CAHD,North - Community based support,Fees & Charges Income - General,Blossom Fields Nursing Home,-627.80, 18-Oct-2022
717,Revenue,CAHD,North - Community based support,Fees & Charges Income - General,Blossom Fields Nursing Home,-533.56, 18-Oct-2022
718,Revenue,CAHD,North - Community based support,Fees & Charges Income - General,Blossom Fields Nursing Home,-663.80, 18-Oct-2022
719,Revenue,CAHD,North - Community based support,Fees & Charges Income - General,Blossom Fields Nursing Home,186.51, 18-Oct-2022
720,Revenue,CAHD,North - Community based support,Fees & Charges Income - General,Blossom Fields Nursing Home,-11068.32, 18-Oct-2022
721,Revenue,CAHD,South Glos Users in South Glos Homes,Permanent Nursing,Blossom Fields Nursing Home,836.76, 18-Oct-2022
722,Revenue,CAHD,South Glos Users in South Glos Homes,Permanent Nursing,Blossom Fields Nursing Home,836.76, 18-Oct-2022
723,Revenue,CAHD,South Glos Users in South Glos Homes,Permanent Nursing,Blossom Fields Nursing Home,1882.71, 18-Oct-2022
724,Revenue,CAHD,South Glos Users in South Glos Homes,Permanent Nursing,Blossom Fields Nursing Home,836.76, 18-Oct-2022
725,Revenue,CAHD,South Glos Users in South Glos Homes,Permanent Nursing,Blossom Fields Nursing Home,836.76, 18-Oct-2022
726,Revenue,CAHD,South Glos Users in South Glos Homes,Permanent Nursing,Blossom Fields Nursing Home,836.76, 18-Oct-2022
727,Revenue,CAHD,South Glos Users in South Glos Homes,Permanent Nursing,Blossom Fields Nursing Home,836.76, 18-Oct-2022
728,Revenue,CAHD,South Glos Users in South Glos Homes,Permanent Nursing,Blossom Fields Nursing Home,836.76, 18-Oct-2022
729,Revenue,CAHD,South Glos Users in South Glos Homes,Permanent Nursing,Blossom Fields Nursing Home,836.76, 18-Oct-2022
730,Revenue,CAHD,South Glos Users in South Glos Homes,Permanent Nursing,Blossom Fields Nursing Home,836.76, 18-Oct-2022
731,Revenue,CAHD,South Glos Users in South Glos Homes,Permanent Nursing,Blossom Fields Nursing Home,836.76, 18-Oct-2022
732,Revenue,CAHD,South Glos Users in South Glos Homes,Permanent Nursing,Blossom Fields Nursing Home,836.76, 18-Oct-2022
733,Revenue,CAHD,South Glos Users in South Glos Homes,Permanent Nursing,Blossom Fields Nursing Home,836.76, 18-Oct-2022
734,Revenue,CAHD,South Glos Users in South Glos Homes,Permanent Nursing,Blossom Fields Nursing Home,836.76, 18-Oct-2022
735,Revenue,CAHD,South Glos Users in South Glos Homes,Permanent Nursing,Blossom Fields Nursing Home,836.76, 18-Oct-2022
736,Revenue,CAHD,South Glos Users in South Glos Homes,Permanent Nursing,Blossom Fields Nursing Home,836.76, 18-Oct-2022
737,Revenue,CAHD,South Glos Users in South Glos Homes,Permanent Nursing,Blossom Fields Nursing Home,836.76, 18-Oct-2022
738,Revenue,CAHD,South Glos Users in South Glos Homes,Permanent Nursing,Blossom Fields Nursing Home,836.76, 18-Oct-2022
739,Revenue,CAHD,South Glos Users in South Glos Homes,Permanent Nursing,Blossom Fields Nursing Home,836.76, 18-Oct-2022
740,Revenue,CAHD,South Glos Users in South Glos Homes,Permanent Nursing,Blossom Fields Nursing Home,836.76, 18-Oct-2022
741,Revenue,CAHD,South Glos Users in South Glos Homes,Permanent Nursing,Blossom Fields Nursing Home,836.76, 18-Oct-2022
742,Revenue,CAHD,South Glos Users in South Glos Homes,Permanent Nursing,Blossom Fields Nursing Home,836.76, 18-Oct-2022
743,Revenue,CAHD,South Glos Users in South Glos Homes,Permanent Nursing,Blossom Fields Nursing Home,836.76, 18-Oct-2022
744,Revenue,CAHD,South Glos Users in South Glos Homes,Permanent Nursing,Blossom Fields Nursing Home,836.76, 18-Oct-2022
745,Revenue,CAHD,South Glos Users in South Glos Homes,Permanent Nursing,Blossom Fields Nursing Home,836.76, 18-Oct-2022
746,Revenue,CAHD,South Glos Users in South Glos Homes,Permanent Nursing,Blossom Fields Nursing Home,836.76, 18-Oct-2022
747,Revenue,CAHD,South Glos Users in South Glos Homes,Permanent Nursing,Blossom Fields Nursing Home,836.76, 18-Oct-2022
748,Revenue,CAHD,South Glos Users in South Glos Homes,Permanent Nursing,Blossom Fields Nursing Home,836.76, 18-Oct-2022
749,Revenue,CAHD,South Glos Users in South Glos Homes,Permanent Nursing,Blossom Fields Nursing Home,836.76, 18-Oct-2022
750,Revenue,CAHD,South Glos Users in South Glos Homes,Permanent Nursing,Blossom Fields Nursing Home,836.76, 18-Oct-2022
751,Revenue,CAHD,South Glos Users in South Glos Homes,Permanent Nursing,Blossom Fields Nursing Home,836.76, 18-Oct-2022
752,Revenue,CAHD,South Glos Users in South Glos Homes,Permanent Nursing,Blossom Fields Nursing Home,836.76, 18-Oct-2022
753,Revenue,CAHD,South Glos Users in South Glos Homes,Permanent Nursing,Blossom Fields Nursing Home,836.76, 18-Oct-2022
754,Revenue,CAHD,South Glos Users in South Glos Homes,Permanent Nursing,Blossom Fields Nursing Home,836.76, 18-Oct-2022
755,Revenue,CAHD,South Glos Users in South Glos Homes,Permanent Nursing,Blossom Fields Nursing Home,836.76, 18-Oct-2022
756,Revenue,CAHD,South Glos Users in South Glos Homes,Permanent Nursing,Blossom Fields Nursing Home,836.76, 18-Oct-2022
757,Revenue,CAHD,South Glos Users in South Glos Homes,Permanent Nursing,Blossom Fields Nursing Home,836.76, 18-Oct-2022
758,Revenue,CAHD,South Glos Users in South Glos Homes,Permanent Nursing,Blossom Fields Nursing Home,836.76, 18-Oct-2022
759,Revenue,CAHD,South Glos Users in South Glos Homes,Permanent Nursing,Blossom Fields Nursing Home,836.76, 18-Oct-2022
760,Revenue,CAHD,South Glos Users in South Glos Homes,Permanent Nursing,Blossom Fields Nursing Home,836.76, 18-Oct-2022
761,Revenue,CAHD,South Glos Users in South Glos Homes,Permanent Nursing,Blossom Fields Nursing Home,836.76, 18-Oct-2022
762,Revenue,CAHD,South Glos Users in South Glos Homes,Permanent Nursing,Blossom Fields Nursing Home,836.76, 18-Oct-2022
763,Revenue,CAHD,South Glos Users in South Glos Homes,Permanent Nursing,Blossom Fields Nursing Home,836.76, 18-Oct-2022
764,Revenue,CAHD,South Glos Users in South Glos Homes,Permanent Nursing,Blossom Fields Nursing Home,836.76, 18-Oct-2022
765,Revenue,CAHD,South Glos Users in South Glos Homes,Permanent Nursing,Blossom Fields Nursing Home,836.76, 18-Oct-2022
766,Revenue,CAHD,South Glos Users in South Glos Homes,Permanent Nursing,Blossom Fields Nursing Home,2241.32, 18-Oct-2022
767,Revenue,CAHD,South Glos Users in South Glos Homes,Permanent Nursing,Blossom Fields Nursing Home,836.76, 18-Oct-2022
768,Revenue,CAHD,South Glos Users in South Glos Homes,Permanent Nursing,Blossom Fields Nursing Home,836.76, 18-Oct-2022
769,Revenue,CAHD,South Glos Users in South Glos Homes,Permanent Nursing,Blossom Fields Nursing Home,836.76, 18-Oct-2022
770,Revenue,CAHD,Central - Commissioned Services,Permanent Residential,Blossom Fields Nursing Home,4028.00, 18-Oct-2022
771,Revenue,CAHD,Central - Commissioned Services,Permanent Residential,Blossom Fields Nursing Home,3816.00, 18-Oct-2022
772,Revenue,CAHD,Central - Commissioned Services,Permanent Nursing,Blossom Fields Nursing Home,4600.00, 18-Oct-2022
773,Revenue,CAHD,Central - Commissioned Services,Permanent Nursing,Blossom Fields Nursing Home,5431.24, 18-Oct-2022
774,Revenue,CAHD,Central - Commissioned Services,Permanent Nursing,Blossom Fields Nursing Home,4380.04, 18-Oct-2022
775,Revenue,CAHD,Central - Commissioned Services,Permanent Nursing,Blossom Fields Nursing Home,4380.04, 18-Oct-2022
776,Revenue,CAHD,Central - Commissioned Services,Permanent Nursing,Blossom Fields Nursing Home,5078.20, 18-Oct-2022
777,Revenue,CAHD,Central - Commissioned Services,Permanent Nursing,Blossom Fields Nursing Home,4600.00, 18-Oct-2022
778,Revenue,CAHD,Central - Commissioned Services,Permanent Nursing,Blossom Fields Nursing Home,5107.84, 18-Oct-2022
779,Revenue,CAHD,Central - Commissioned Services,Permanent Nursing,Blossom Fields Nursing Home,4380.04, 18-Oct-2022
780,Revenue,CAHD,Central - Commissioned Services,Permanent Nursing,Blossom Fields Nursing Home,4600.00, 18-Oct-2022
781,Revenue,CAHD,Central - Commissioned Services,Permanent Nursing,Blossom Fields Nursing Home,4600.00, 18-Oct-2022
782,Revenue,CAHD,Central - Commissioned Services,Permanent Nursing,Blossom Fields Nursing Home,5421.92, 18-Oct-2022
783,Revenue,CAHD,Central - Commissioned Services,Permanent Nursing,Blossom Fields Nursing Home,4876.00, 18-Oct-2022
784,Revenue,CAHD,Central - Commissioned Services,Permanent Nursing,Blossom Fields Nursing Home,4600.00, 18-Oct-2022
785,Revenue,CAHD,Central - Commissioned Services,Fees & Charges Income - General,Blossom Fields Nursing Home,-684.24, 18-Oct-2022
786,Revenue,CAHD,Central - Commissioned Services,Fees & Charges Income - General,Blossom Fields Nursing Home,-978.56, 18-Oct-2022
787,Revenue,CAHD,Central - Commissioned Services,Fees & Charges Income - General,Blossom Fields Nursing Home,-627.80, 18-Oct-2022
788,Revenue,CAHD,Central - Commissioned Services,Fees & Charges Income - General,Blossom Fields Nursing Home,-1241.76, 18-Oct-2022
789,Revenue,CAHD,Central - Commissioned Services,Fees & Charges Income - General,Blossom Fields Nursing Home,-2103.80, 18-Oct-2022
790,Revenue,CAHD,Central - Commissioned Services,Fees & Charges Income - General,Blossom Fields Nursing Home,-486.88, 18-Oct-2022
791,Revenue,CAHD,Central - Commissioned Services,Fees & Charges Income - General,Blossom Fields Nursing Home,-1586.88, 18-Oct-2022
792,Revenue,CAHD,Central - Commissioned Services,Fees & Charges Income - General,Blossom Fields Nursing Home,-1207.64, 18-Oct-2022
793,Revenue,CAHD,Central - Commissioned Services,Fees & Charges Income - General,Blossom Fields Nursing Home,-1186.12, 18-Oct-2022
794,Revenue,CAHD,Central - Commissioned Services,Fees & Charges Income - General,Blossom Fields Nursing Home,-7712.03, 18-Oct-2022
795,Revenue,CAHD,Central - Commissioned Services,Fees & Charges Income - General,Blossom Fields Nursing Home,-1365.28, 18-Oct-2022
796,Revenue,CAHD,Central - Commissioned Services,Fees & Charges Income - General,Blossom Fields Nursing Home,-866.68, 18-Oct-2022
797,Revenue,CAHD,South - Commissioned Services,Permanent Nursing,Blossom Fields Nursing Home,4179.64, 18-Oct-2022
798,Revenue,CAHD,South - Commissioned Services,Permanent Nursing,Blossom Fields Nursing Home,4381.20, 18-Oct-2022
799,Revenue,CAHD,South - Commissioned Services,Permanent Nursing,Blossom Fields Nursing Home,5300.00, 18-Oct-2022
800,Revenue,CAHD,South - Commissioned Services,Permanent Nursing,Blossom Fields Nursing Home,3816.00, 18-Oct-2022
801,Revenue,CAHD,South - Commissioned Services,Fees & Charges Income - General,Blossom Fields Nursing Home,530.00, 18-Oct-2022
802,Revenue,CAHD,South - Commissioned Services,Fees & Charges Income - General,Blossom Fields Nursing Home,-1146.60, 18-Oct-2022
803,Revenue,CAHD,South - Commissioned Services,Fees & Charges Income - General,Blossom Fields Nursing Home,-928.60, 18-Oct-2022
804,Revenue,CAHD,North - Community based support,Permanent Residential,Blossom Fields Nursing Home,3498.00, 18-Oct-2022
805,Revenue,CAHD,North - Community based support,Respite Planned - Residential,Blossom Fields Nursing Home,5585.71, 18-Oct-2022
806,Revenue,CAHD,North - Community based support,Permanent Nursing,Blossom Fields Nursing Home,4381.20, 18-Oct-2022
807,Revenue,CAHD,North - Community based support,Fees & Charges Income - General,Blossom Fields Nursing Home,-1413.08, 18-Oct-2022
808,Revenue,CAHD,North - Community based support,Fees & Charges Income - General,Blossom Fields Nursing Home,-627.80, 18-Oct-2022
809,Revenue,CAHD,North - S117,Permanent Residential,Blossom Fields Nursing Home,5205.04, 18-Oct-2022
810,Revenue,CAHD,Statemented Support Payments to OLAs,Other L.A.s - General,Blue Coat CE VA Primary School,1292.50, 21-Oct-2022
811,Revenue,CAHD,Central - Commissioned Services,Other Small Contracts,Bluebird Care (South Gloucestershire),2144.52, 14-Oct-2022
812,Revenue,CAHD,Central - Commissioned Services,Other Small Contracts,Bluebird Care (South Gloucestershire),120.80, 12-Oct-2022
813,Revenue,CAHD,Central - Commissioned Services,Other Small Contracts,Bluebird Care (South Gloucestershire),762.55, 12-Oct-2022
814,Revenue,CAHD,Central - Commissioned Services,Other Small Contracts,Bluebird Care (South Gloucestershire),135.90, 12-Oct-2022
815,Revenue,CAHD,Central - Commissioned Services,Other Small Contracts,Bluebird Care (South Gloucestershire),30.20, 12-Oct-2022
816,Revenue,CAHD,Central - Commissioned Services,Other Small Contracts,Bluebird Care (South Gloucestershire),1947.90, 12-Oct-2022
817,Revenue,CAHD,Central - Commissioned Services,Other Small Contracts,Bluebird Care (South Gloucestershire),30.20, 12-Oct-2022
818,Revenue,CAHD,Central - Commissioned Services,Other Small Contracts,Bluebird Care (South Gloucestershire),151.00, 12-Oct-2022
819,Revenue,CAHD,Central - Commissioned Services,Other Small Contracts,Bluebird Care (South Gloucestershire),271.80, 12-Oct-2022
820,Revenue,CAHD,Central - Commissioned Services,Other Small Contracts,Bluebird Care (South Gloucestershire),30.20, 12-Oct-2022
821,Revenue,CAHD,Central - Commissioned Services,Other Small Contracts,Bluebird Care (South Gloucestershire),135.90, 12-Oct-2022
822,Revenue,CAHD,Central - Commissioned Services,Other Small Contracts,Bluebird Care (South Gloucestershire),211.40, 12-Oct-2022
823,Revenue,CAHD,Central - Commissioned Services,Other Small Contracts,Bluebird Care (South Gloucestershire),581.35, 12-Oct-2022
824,Revenue,CAHD,Central - Commissioned Services,Other Small Contracts,Bluebird Care (South Gloucestershire),158.55, 12-Oct-2022
825,Revenue,CAHD,Central - Commissioned Services,Other Small Contracts,Bluebird Care (South Gloucestershire),113.25, 12-Oct-2022
826,Revenue,CAHD,Central - Commissioned Services,Other Small Contracts,Bluebird Care (South Gloucestershire),951.30, 12-Oct-2022
827,Revenue,CAHD,Central - Commissioned Services,Other Small Contracts,Bluebird Care (South Gloucestershire),30.20, 12-Oct-2022
828,Revenue,CAHD,Central - Commissioned Services,Other Small Contracts,Bluebird Care (South Gloucestershire),37.75, 12-Oct-2022
829,Revenue,CAHD,Central - Commissioned Services,Other Small Contracts,Bluebird Care (South Gloucestershire),196.30, 12-Oct-2022
830,Revenue,CAHD,Central - Commissioned Services,Other Small Contracts,Bluebird Care (South Gloucestershire),1318.80, 12-Oct-2022
831,Revenue,CAHD,Central - Commissioned Services,Other Small Contracts,Bluebird Care (South Gloucestershire),128.35, 12-Oct-2022
832,Revenue,CAHD,Central - Commissioned Services,Other Small Contracts,Bluebird Care (South Gloucestershire),135.90, 12-Oct-2022
833,Revenue,CAHD,Central - Commissioned Services,Other Small Contracts,Bluebird Care (South Gloucestershire),317.10, 12-Oct-2022
834,Revenue,CAHD,Central - Commissioned Services,Other Small Contracts,Bluebird Care (South Gloucestershire),498.30, 12-Oct-2022
835,Revenue,CAHD,Central - Commissioned Services,Other Small Contracts,Bluebird Care (South Gloucestershire),173.65, 12-Oct-2022
836,Revenue,CAHD,Central - Commissioned Services,Other Small Contracts,Bluebird Care (South Gloucestershire),921.10, 12-Oct-2022
837,Revenue,CAHD,Central - Commissioned Services,Other Small Contracts,Bluebird Care (South Gloucestershire),566.25, 12-Oct-2022
838,Revenue,CAHD,Central - Commissioned Services,Other Small Contracts,Bluebird Care (South Gloucestershire),60.40, 12-Oct-2022
839,Revenue,CAHD,Central - Commissioned Services,Other Small Contracts,Bluebird Care (South Gloucestershire),621.90, 12-Oct-2022
840,Revenue,CAHD,Central - Commissioned Services,Other Small Contracts,Bluebird Care (South Gloucestershire),90.60, 12-Oct-2022
841,Revenue,CAHD,Central - Commissioned Services,Other Small Contracts,Bluebird Care (South Gloucestershire),120.80, 12-Oct-2022
842,Revenue,CAHD,Central - Commissioned Services,Other Small Contracts,Bluebird Care (South Gloucestershire),339.75, 12-Oct-2022
843,Revenue,CAHD,Central - Commissioned Services,Other Small Contracts,Bluebird Care (South Gloucestershire),347.30, 12-Oct-2022
844,Revenue,CAHD,South - Commissioned Services,Other Small Contracts,Bluebird Care (South Gloucestershire),400.15, 12-Oct-2022
845,Revenue,CAHD,South - Commissioned Services,Other Small Contracts,Bluebird Care (South Gloucestershire),143.45, 12-Oct-2022
846,Revenue,CAHD,South - Commissioned Services,Other Small Contracts,Bluebird Care (South Gloucestershire),400.15, 12-Oct-2022
847,Revenue,CAHD,South - Commissioned Services,Other Small Contracts,Bluebird Care (South Gloucestershire),226.50, 12-Oct-2022
848,Revenue,CAHD,South - Commissioned Services,Other Small Contracts,Bluebird Care (South Gloucestershire),271.80, 12-Oct-2022
849,Revenue,CAHD,South - Commissioned Services,Other Small Contracts,Bluebird Care (South Gloucestershire),234.05, 12-Oct-2022
850,Revenue,CAHD,South - Commissioned Services,Other Small Contracts,Bluebird Care (South Gloucestershire),1318.80, 12-Oct-2022
851,Revenue,CAHD,South - Commissioned Services,Other Small Contracts,Bluebird Care (South Gloucestershire),60.40, 12-Oct-2022
852,Revenue,CAHD,South - Commissioned Services,Other Small Contracts,Bluebird Care (South Gloucestershire),60.40, 12-Oct-2022
853,Revenue,CAHD,South - Commissioned Services,Other Small Contracts,Bluebird Care (South Gloucestershire),90.60, 12-Oct-2022
854,Revenue,CAHD,South - Commissioned Services,Other Small Contracts,Bluebird Care (South Gloucestershire),362.40, 12-Oct-2022
855,Revenue,CAHD,North - Community based support,Other Small Contracts,Bluebird Care (South Gloucestershire),338.80, 12-Oct-2022
856,Revenue,CAHD,North - Community based support,Other Small Contracts,Bluebird Care (South Gloucestershire),166.10, 12-Oct-2022
857,Revenue,CAHD,North - Community based support,Other Small Contracts,Bluebird Care (South Gloucestershire),218.95, 12-Oct-2022
858,Revenue,CAHD,North - Community based support,Other Small Contracts,Bluebird Care (South Gloucestershire),60.40, 12-Oct-2022
859,Revenue,CAHD,North - Community based support,Other Small Contracts,Bluebird Care (South Gloucestershire),135.90, 12-Oct-2022
860,Revenue,CAHD,North - Community based support,Other Small Contracts,Bluebird Care (South Gloucestershire),302.00, 12-Oct-2022
861,Revenue,CAHD,North - Community based support,Other Small Contracts,Bluebird Care (South Gloucestershire),75.50, 12-Oct-2022
862,Revenue,CAHD,North - Community based support,Other Small Contracts,Bluebird Care (South Gloucestershire),1701.00, 12-Oct-2022
863,Revenue,CAHD,Central - Commissioned Services,Other Small Contracts,Bluebird Care (South Gloucestershire),113.25, 12-Oct-2022
864,Revenue,CAHD,Central - Commissioned Services,Other Small Contracts,Bluebird Care (South Gloucestershire),694.60, 12-Oct-2022
865,Revenue,CAHD,Central - Commissioned Services,Other Small Contracts,Bluebird Care (South Gloucestershire),135.90, 12-Oct-2022
866,Revenue,CAHD,Central - Commissioned Services,Other Small Contracts,Bluebird Care (South Gloucestershire),30.20, 12-Oct-2022
867,Revenue,CAHD,Central - Commissioned Services,Other Small Contracts,Bluebird Care (South Gloucestershire),1834.65, 12-Oct-2022
868,Revenue,CAHD,Central - Commissioned Services,Other Small Contracts,Bluebird Care (South Gloucestershire),30.20, 12-Oct-2022
869,Revenue,CAHD,Central - Commissioned Services,Other Small Contracts,Bluebird Care (South Gloucestershire),128.35, 12-Oct-2022
870,Revenue,CAHD,Central - Commissioned Services,Other Small Contracts,Bluebird Care (South Gloucestershire),271.80, 12-Oct-2022
871,Revenue,CAHD,Central - Commissioned Services,Other Small Contracts,Bluebird Care (South Gloucestershire),30.20, 12-Oct-2022
872,Revenue,CAHD,Central - Commissioned Services,Other Small Contracts,Bluebird Care (South Gloucestershire),128.35, 12-Oct-2022
873,Revenue,CAHD,Central - Commissioned Services,Other Small Contracts,Bluebird Care (South Gloucestershire),196.30, 12-Oct-2022
874,Revenue,CAHD,Central - Commissioned Services,Other Small Contracts,Bluebird Care (South Gloucestershire),649.30, 12-Oct-2022
875,Revenue,CAHD,Central - Commissioned Services,Other Small Contracts,Bluebird Care (South Gloucestershire),158.55, 12-Oct-2022
876,Revenue,CAHD,Central - Commissioned Services,Other Small Contracts,Bluebird Care (South Gloucestershire),135.90, 12-Oct-2022
877,Revenue,CAHD,Central - Commissioned Services,Other Small Contracts,Bluebird Care (South Gloucestershire),928.65, 12-Oct-2022
878,Revenue,CAHD,Central - Commissioned Services,Other Small Contracts,Bluebird Care (South Gloucestershire),45.30, 12-Oct-2022
879,Revenue,CAHD,Central - Commissioned Services,Other Small Contracts,Bluebird Care (South Gloucestershire),45.30, 12-Oct-2022
880,Revenue,CAHD,Central - Commissioned Services,Other Small Contracts,Bluebird Care (South Gloucestershire),188.75, 12-Oct-2022
881,Revenue,CAHD,Central - Commissioned Services,Other Small Contracts,Bluebird Care (South Gloucestershire),1318.80, 12-Oct-2022
882,Revenue,CAHD,Central - Commissioned Services,Other Small Contracts,Bluebird Care (South Gloucestershire),120.80, 12-Oct-2022
883,Revenue,CAHD,Central - Commissioned Services,Other Small Contracts,Bluebird Care (South Gloucestershire),128.35, 12-Oct-2022
884,Revenue,CAHD,Central - Commissioned Services,Other Small Contracts,Bluebird Care (South Gloucestershire),332.20, 12-Oct-2022
885,Revenue,CAHD,Central - Commissioned Services,Other Small Contracts,Bluebird Care (South Gloucestershire),468.10, 12-Oct-2022
886,Revenue,CAHD,Central - Commissioned Services,Other Small Contracts,Bluebird Care (South Gloucestershire),166.10, 12-Oct-2022
887,Revenue,CAHD,Central - Commissioned Services,Other Small Contracts,Bluebird Care (South Gloucestershire),928.65, 12-Oct-2022
888,Revenue,CAHD,Central - Commissioned Services,Other Small Contracts,Bluebird Care (South Gloucestershire),619.10, 12-Oct-2022
889,Revenue,CAHD,Central - Commissioned Services,Other Small Contracts,Bluebird Care (South Gloucestershire),60.40, 12-Oct-2022
890,Revenue,CAHD,Central - Commissioned Services,Other Small Contracts,Bluebird Care (South Gloucestershire),614.35, 12-Oct-2022
891,Revenue,CAHD,Central - Commissioned Services,Other Small Contracts,Bluebird Care (South Gloucestershire),75.50, 12-Oct-2022
892,Revenue,CAHD,Central - Commissioned Services,Other Small Contracts,Bluebird Care (South Gloucestershire),120.80, 12-Oct-2022
893,Revenue,CAHD,Central - Commissioned Services,Other Small Contracts,Bluebird Care (South Gloucestershire),407.70, 12-Oct-2022
894,Revenue,CAHD,Central - Commissioned Services,Other Small Contracts,Bluebird Care (South Gloucestershire),339.75, 12-Oct-2022
895,Revenue,CAHD,South - Commissioned Services,Other Small Contracts,Bluebird Care (South Gloucestershire),460.55, 12-Oct-2022
896,Revenue,CAHD,South - Commissioned Services,Other Small Contracts,Bluebird Care (South Gloucestershire),143.45, 12-Oct-2022
897,Revenue,CAHD,South - Commissioned Services,Other Small Contracts,Bluebird Care (South Gloucestershire),362.40, 12-Oct-2022
898,Revenue,CAHD,South - Commissioned Services,Other Small Contracts,Bluebird Care (South Gloucestershire),166.10, 12-Oct-2022
899,Revenue,CAHD,South - Commissioned Services,Other Small Contracts,Bluebird Care (South Gloucestershire),279.35, 12-Oct-2022
900,Revenue,CAHD,South - Commissioned Services,Other Small Contracts,Bluebird Care (South Gloucestershire),264.25, 12-Oct-2022
901,Revenue,CAHD,South - Commissioned Services,Other Small Contracts,Bluebird Care (South Gloucestershire),1318.80, 12-Oct-2022
902,Revenue,CAHD,South - Commissioned Services,Other Small Contracts,Bluebird Care (South Gloucestershire),67.95, 12-Oct-2022
903,Revenue,CAHD,South - Commissioned Services,Other Small Contracts,Bluebird Care (South Gloucestershire),67.95, 12-Oct-2022
904,Revenue,CAHD,South - Commissioned Services,Other Small Contracts,Bluebird Care (South Gloucestershire),105.70, 12-Oct-2022
905,Revenue,CAHD,South - Commissioned Services,Other Small Contracts,Bluebird Care (South Gloucestershire),400.15, 12-Oct-2022
906,Revenue,CAHD,North - Community based support,Other Small Contracts,Bluebird Care (South Gloucestershire),338.80, 12-Oct-2022
907,Revenue,CAHD,North - Community based support,Other Small Contracts,Bluebird Care (South Gloucestershire),203.85, 12-Oct-2022
908,Revenue,CAHD,North - Community based support,Other Small Contracts,Bluebird Care (South Gloucestershire),105.70, 12-Oct-2022
909,Revenue,CAHD,North - Community based support,Other Small Contracts,Bluebird Care (South Gloucestershire),52.85, 12-Oct-2022
910,Revenue,CAHD,North - Community based support,Other Small Contracts,Bluebird Care (South Gloucestershire),203.85, 12-Oct-2022
911,Revenue,CAHD,North - Community based support,Other Small Contracts,Bluebird Care (South Gloucestershire),113.25, 12-Oct-2022
912,Revenue,CAHD,North - Community based support,Other Small Contracts,Bluebird Care (South Gloucestershire),317.10, 12-Oct-2022
913,Revenue,CAHD,North - Community based support,Other Small Contracts,Bluebird Care (South Gloucestershire),67.95, 12-Oct-2022
914,Revenue,CAHD,North - Community based support,Other Small Contracts,Bluebird Care (South Gloucestershire),1701.00, 12-Oct-2022
915,Revenue,CAHD,Central - Commissioned Services,Other Small Contracts,Bluebird Care (South Gloucestershire),113.25, 12-Oct-2022
916,Revenue,CAHD,Central - Commissioned Services,Other Small Contracts,Bluebird Care (South Gloucestershire),724.80, 12-Oct-2022
917,Revenue,CAHD,Central - Commissioned Services,Other Small Contracts,Bluebird Care (South Gloucestershire),98.15, 12-Oct-2022
918,Revenue,CAHD,Central - Commissioned Services,Other Small Contracts,Bluebird Care (South Gloucestershire),22.65, 12-Oct-2022
919,Revenue,CAHD,Central - Commissioned Services,Other Small Contracts,Bluebird Care (South Gloucestershire),1842.20, 12-Oct-2022
920,Revenue,CAHD,Central - Commissioned Services,Other Small Contracts,Bluebird Care (South Gloucestershire),30.20, 12-Oct-2022
921,Revenue,CAHD,Central - Commissioned Services,Other Small Contracts,Bluebird Care (South Gloucestershire),135.90, 12-Oct-2022
922,Revenue,CAHD,Central - Commissioned Services,Other Small Contracts,Bluebird Care (South Gloucestershire),271.80, 12-Oct-2022
923,Revenue,CAHD,Central - Commissioned Services,Other Small Contracts,Bluebird Care (South Gloucestershire),30.20, 12-Oct-2022
924,Revenue,CAHD,Central - Commissioned Services,Other Small Contracts,Bluebird Care (South Gloucestershire),128.35, 12-Oct-2022
925,Revenue,CAHD,Central - Commissioned Services,Other Small Contracts,Bluebird Care (South Gloucestershire),218.95, 12-Oct-2022
926,Revenue,CAHD,Central - Commissioned Services,Other Small Contracts,Bluebird Care (South Gloucestershire),619.10, 12-Oct-2022
927,Revenue,CAHD,Central - Commissioned Services,Other Small Contracts,Bluebird Care (South Gloucestershire),158.55, 12-Oct-2022
928,Revenue,CAHD,Central - Commissioned Services,Other Small Contracts,Bluebird Care (South Gloucestershire),120.80, 12-Oct-2022
929,Revenue,CAHD,Central - Commissioned Services,Other Small Contracts,Bluebird Care (South Gloucestershire),981.50, 12-Oct-2022
930,Revenue,CAHD,Central - Commissioned Services,Other Small Contracts,Bluebird Care (South Gloucestershire),37.75, 12-Oct-2022
931,Revenue,CAHD,Central - Commissioned Services,Other Small Contracts,Bluebird Care (South Gloucestershire),45.30, 12-Oct-2022
932,Revenue,CAHD,Central - Commissioned Services,Other Small Contracts,Bluebird Care (South Gloucestershire),188.75, 12-Oct-2022
933,Revenue,CAHD,Central - Commissioned Services,Other Small Contracts,Bluebird Care (South Gloucestershire),1318.80, 12-Oct-2022
934,Revenue,CAHD,Central - Commissioned Services,Other Small Contracts,Bluebird Care (South Gloucestershire),128.35, 12-Oct-2022
935,Revenue,CAHD,Central - Commissioned Services,Other Small Contracts,Bluebird Care (South Gloucestershire),120.80, 12-Oct-2022
936,Revenue,CAHD,Central - Commissioned Services,Other Small Contracts,Bluebird Care (South Gloucestershire),317.10, 12-Oct-2022
937,Revenue,CAHD,Central - Commissioned Services,Other Small Contracts,Bluebird Care (South Gloucestershire),475.65, 12-Oct-2022
938,Revenue,CAHD,Central - Commissioned Services,Other Small Contracts,Bluebird Care (South Gloucestershire),158.55, 12-Oct-2022
939,Revenue,CAHD,Central - Commissioned Services,Other Small Contracts,Bluebird Care (South Gloucestershire),875.80, 12-Oct-2022
940,Revenue,CAHD,Central - Commissioned Services,Other Small Contracts,Bluebird Care (South Gloucestershire),588.90, 12-Oct-2022
941,Revenue,CAHD,Central - Commissioned Services,Other Small Contracts,Bluebird Care (South Gloucestershire),98.15, 12-Oct-2022
942,Revenue,CAHD,Central - Commissioned Services,Other Small Contracts,Bluebird Care (South Gloucestershire),621.90, 12-Oct-2022
943,Revenue,CAHD,Central - Commissioned Services,Other Small Contracts,Bluebird Care (South Gloucestershire),83.05, 12-Oct-2022
944,Revenue,CAHD,Central - Commissioned Services,Other Small Contracts,Bluebird Care (South Gloucestershire),120.80, 12-Oct-2022
945,Revenue,CAHD,Central - Commissioned Services,Other Small Contracts,Bluebird Care (South Gloucestershire),536.05, 12-Oct-2022
946,Revenue,CAHD,Central - Commissioned Services,Other Small Contracts,Bluebird Care (South Gloucestershire),332.20, 12-Oct-2022
947,Revenue,CAHD,South - Commissioned Services,Other Small Contracts,Bluebird Care (South Gloucestershire),422.80, 12-Oct-2022
948,Revenue,CAHD,South - Commissioned Services,Other Small Contracts,Bluebird Care (South Gloucestershire),128.35, 12-Oct-2022
949,Revenue,CAHD,South - Commissioned Services,Other Small Contracts,Bluebird Care (South Gloucestershire),407.70, 12-Oct-2022
950,Revenue,CAHD,South - Commissioned Services,Other Small Contracts,Bluebird Care (South Gloucestershire),234.05, 12-Oct-2022
951,Revenue,CAHD,South - Commissioned Services,Other Small Contracts,Bluebird Care (South Gloucestershire),256.70, 12-Oct-2022
952,Revenue,CAHD,South - Commissioned Services,Other Small Contracts,Bluebird Care (South Gloucestershire),256.70, 12-Oct-2022
953,Revenue,CAHD,South - Commissioned Services,Other Small Contracts,Bluebird Care (South Gloucestershire),1318.80, 12-Oct-2022
954,Revenue,CAHD,South - Commissioned Services,Other Small Contracts,Bluebird Care (South Gloucestershire),60.40, 12-Oct-2022
955,Revenue,CAHD,South - Commissioned Services,Other Small Contracts,Bluebird Care (South Gloucestershire),67.95, 12-Oct-2022
956,Revenue,CAHD,South - Commissioned Services,Other Small Contracts,Bluebird Care (South Gloucestershire),98.15, 12-Oct-2022
957,Revenue,CAHD,South - Commissioned Services,Other Small Contracts,Bluebird Care (South Gloucestershire),377.50, 12-Oct-2022
958,Revenue,CAHD,North - Community based support,Other Small Contracts,Bluebird Care (South Gloucestershire),400.40, 12-Oct-2022
959,Revenue,CAHD,North - Community based support,Other Small Contracts,Bluebird Care (South Gloucestershire),211.40, 12-Oct-2022
960,Revenue,CAHD,North - Community based support,Other Small Contracts,Bluebird Care (South Gloucestershire),60.40, 12-Oct-2022
961,Revenue,CAHD,North - Community based support,Other Small Contracts,Bluebird Care (South Gloucestershire),60.40, 12-Oct-2022
962,Revenue,CAHD,North - Community based support,Other Small Contracts,Bluebird Care (South Gloucestershire),627.87, 12-Oct-2022
963,Revenue,CAHD,North - Community based support,Other Small Contracts,Bluebird Care (South Gloucestershire),135.90, 12-Oct-2022
964,Revenue,CAHD,North - Community based support,Other Small Contracts,Bluebird Care (South Gloucestershire),302.00, 12-Oct-2022
965,Revenue,CAHD,North - Community based support,Other Small Contracts,Bluebird Care (South Gloucestershire),60.40, 12-Oct-2022
966,Revenue,CAHD,North - Community based support,Other Small Contracts,Bluebird Care (South Gloucestershire),52.85, 12-Oct-2022
967,Revenue,CAHD,North - Community based support,Other Small Contracts,Bluebird Care (South Gloucestershire),1701.00, 12-Oct-2022
968,Revenue,CAHD,Central - Commissioned Services,Other Small Contracts,Bluebird Care (South Gloucestershire),90.60, 12-Oct-2022
969,Revenue,CAHD,Central - Commissioned Services,Other Small Contracts,Bluebird Care (South Gloucestershire),717.25, 12-Oct-2022
970,Revenue,CAHD,Central - Commissioned Services,Other Small Contracts,Bluebird Care (South Gloucestershire),128.35, 12-Oct-2022
971,Revenue,CAHD,Central - Commissioned Services,Other Small Contracts,Bluebird Care (South Gloucestershire),30.20, 12-Oct-2022
972,Revenue,CAHD,Central - Commissioned Services,Other Small Contracts,Bluebird Care (South Gloucestershire),1910.15, 12-Oct-2022
973,Revenue,CAHD,Central - Commissioned Services,Other Small Contracts,Bluebird Care (South Gloucestershire),37.75, 12-Oct-2022
974,Revenue,CAHD,Central - Commissioned Services,Other Small Contracts,Bluebird Care (South Gloucestershire),120.80, 12-Oct-2022
975,Revenue,CAHD,Central - Commissioned Services,Other Small Contracts,Bluebird Care (South Gloucestershire),271.80, 12-Oct-2022
976,Revenue,CAHD,Central - Commissioned Services,Other Small Contracts,Bluebird Care (South Gloucestershire),22.65, 12-Oct-2022
977,Revenue,CAHD,Central - Commissioned Services,Other Small Contracts,Bluebird Care (South Gloucestershire),135.90, 12-Oct-2022
978,Revenue,CAHD,Central - Commissioned Services,Other Small Contracts,Bluebird Care (South Gloucestershire),226.50, 12-Oct-2022
979,Revenue,CAHD,Central - Commissioned Services,Other Small Contracts,Bluebird Care (South Gloucestershire),641.75, 12-Oct-2022
980,Revenue,CAHD,Central - Commissioned Services,Other Small Contracts,Bluebird Care (South Gloucestershire),158.55, 12-Oct-2022
981,Revenue,CAHD,Central - Commissioned Services,Other Small Contracts,Bluebird Care (South Gloucestershire),128.35, 12-Oct-2022
982,Revenue,CAHD,Central - Commissioned Services,Other Small Contracts,Bluebird Care (South Gloucestershire),830.50, 12-Oct-2022
983,Revenue,CAHD,Central - Commissioned Services,Other Small Contracts,Bluebird Care (South Gloucestershire),30.20, 12-Oct-2022
984,Revenue,CAHD,Central - Commissioned Services,Other Small Contracts,Bluebird Care (South Gloucestershire),37.75, 12-Oct-2022
985,Revenue,CAHD,Central - Commissioned Services,Other Small Contracts,Bluebird Care (South Gloucestershire),196.30, 12-Oct-2022
986,Revenue,CAHD,Central - Commissioned Services,Other Small Contracts,Bluebird Care (South Gloucestershire),1318.80, 12-Oct-2022
987,Revenue,CAHD,Central - Commissioned Services,Other Small Contracts,Bluebird Care (South Gloucestershire),135.90, 12-Oct-2022
988,Revenue,CAHD,Central - Commissioned Services,Other Small Contracts,Bluebird Care (South Gloucestershire),128.35, 12-Oct-2022
989,Revenue,CAHD,Central - Commissioned Services,Other Small Contracts,Bluebird Care (South Gloucestershire),317.10, 12-Oct-2022
990,Revenue,CAHD,Central - Commissioned Services,Other Small Contracts,Bluebird Care (South Gloucestershire),490.75, 12-Oct-2022
991,Revenue,CAHD,Central - Commissioned Services,Other Small Contracts,Bluebird Care (South Gloucestershire),166.10, 12-Oct-2022
992,Revenue,CAHD,Central - Commissioned Services,Other Small Contracts,Bluebird Care (South Gloucestershire),868.25, 12-Oct-2022
993,Revenue,CAHD,Central - Commissioned Services,Other Small Contracts,Bluebird Care (South Gloucestershire),573.80, 12-Oct-2022
994,Revenue,CAHD,Central - Commissioned Services,Other Small Contracts,Bluebird Care (South Gloucestershire),120.80, 12-Oct-2022
995,Revenue,CAHD,Central - Commissioned Services,Other Small Contracts,Bluebird Care (South Gloucestershire),614.35, 12-Oct-2022
996,Revenue,CAHD,Central - Commissioned Services,Other Small Contracts,Bluebird Care (South Gloucestershire),98.15, 12-Oct-2022
997,Revenue,CAHD,Central - Commissioned Services,Other Small Contracts,Bluebird Care (South Gloucestershire),120.80, 12-Oct-2022
998,Revenue,CAHD,Central - Commissioned Services,Other Small Contracts,Bluebird Care (South Gloucestershire),566.25, 12-Oct-2022
999,Revenue,CAHD,Central - Commissioned Services,Other Small Contracts,Bluebird Care (South Gloucestershire),362.40, 12-Oct-2022
1000,Revenue,CAHD,South - Commissioned Services,Other Small Contracts,Bluebird Care (South Gloucestershire),460.55, 12-Oct-2022
1001,Revenue,CAHD,South - Commissioned Services,Other Small Contracts,Bluebird Care (South Gloucestershire),135.90, 12-Oct-2022
1002,Revenue,CAHD,South - Commissioned Services,Other Small Contracts,Bluebird Care (South Gloucestershire),385.05, 12-Oct-2022
1003,Revenue,CAHD,South - Commissioned Services,Other Small Contracts,Bluebird Care (South Gloucestershire),271.80, 12-Oct-2022
1004,Revenue,CAHD,South - Commissioned Services,Other Small Contracts,Bluebird Care (South Gloucestershire),264.25, 12-Oct-2022
1005,Revenue,CAHD,South - Commissioned Services,Other Small Contracts,Bluebird Care (South Gloucestershire),264.25, 12-Oct-2022
1006,Revenue,CAHD,South - Commissioned Services,Other Small Contracts,Bluebird Care (South Gloucestershire),1318.80, 12-Oct-2022
1007,Revenue,CAHD,South - Commissioned Services,Other Small Contracts,Bluebird Care (South Gloucestershire),60.40, 12-Oct-2022
1008,Revenue,CAHD,South - Commissioned Services,Other Small Contracts,Bluebird Care (South Gloucestershire),52.85, 12-Oct-2022
1009,Revenue,CAHD,South - Commissioned Services,Other Small Contracts,Bluebird Care (South Gloucestershire),83.05, 12-Oct-2022
1010,Revenue,CAHD,South - Commissioned Services,Other Small Contracts,Bluebird Care (South Gloucestershire),377.50, 12-Oct-2022
1011,Revenue,CAHD,North - Community based support,Other Small Contracts,Bluebird Care (South Gloucestershire),392.70, 12-Oct-2022
1012,Revenue,CAHD,North - Community based support,Other Small Contracts,Bluebird Care (South Gloucestershire),218.95, 12-Oct-2022
1013,Revenue,CAHD,North - Community based support,Other Small Contracts,Bluebird Care (South Gloucestershire),60.40, 12-Oct-2022
1014,Revenue,CAHD,North - Community based support,Other Small Contracts,Bluebird Care (South Gloucestershire),60.40, 12-Oct-2022
1015,Revenue,CAHD,North - Community based support,Other Small Contracts,Bluebird Care (South Gloucestershire),1529.37, 12-Oct-2022
1016,Revenue,CAHD,North - Community based support,Other Small Contracts,Bluebird Care (South Gloucestershire),128.35, 12-Oct-2022
1017,Revenue,CAHD,North - Community based support,Other Small Contracts,Bluebird Care (South Gloucestershire),317.10, 12-Oct-2022
1018,Revenue,CAHD,North - Community based support,Other Small Contracts,Bluebird Care (South Gloucestershire),67.95, 12-Oct-2022
1019,Revenue,CAHD,North - Community based support,Other Small Contracts,Bluebird Care (South Gloucestershire),120.80, 12-Oct-2022
1020,Revenue,CAHD,North - Community based support,Other Small Contracts,Bluebird Care (South Gloucestershire),1701.00, 12-Oct-2022
1021,Revenue,CAHD,Central - Commissioned Services,Other Small Contracts,Bluebird Care (South Gloucestershire),116.55, 12-Oct-2022
1022,Revenue,CAHD,Central - Commissioned Services,Other Small Contracts,Bluebird Care (South Gloucestershire),116.55, 12-Oct-2022
1023,Revenue,CAHD,Central - Commissioned Services,Other Small Contracts,Bluebird Care (South Gloucestershire),753.69, 12-Oct-2022
1024,Revenue,CAHD,Central - Commissioned Services,Other Small Contracts,Bluebird Care (South Gloucestershire),108.78, 12-Oct-2022
1025,Revenue,CAHD,Central - Commissioned Services,Other Small Contracts,Bluebird Care (South Gloucestershire),15.54, 12-Oct-2022
1026,Revenue,CAHD,Central - Commissioned Services,Other Small Contracts,Bluebird Care (South Gloucestershire),1732.71, 12-Oct-2022
1027,Revenue,CAHD,Central - Commissioned Services,Other Small Contracts,Bluebird Care (South Gloucestershire),155.40, 12-Oct-2022
1028,Revenue,CAHD,Central - Commissioned Services,Other Small Contracts,Bluebird Care (South Gloucestershire),279.72, 12-Oct-2022
1029,Revenue,CAHD,Central - Commissioned Services,Other Small Contracts,Bluebird Care (South Gloucestershire),186.48, 12-Oct-2022
1030,Revenue,CAHD,Central - Commissioned Services,Other Small Contracts,Bluebird Care (South Gloucestershire),163.17, 12-Oct-2022
1031,Revenue,CAHD,Central - Commissioned Services,Other Small Contracts,Bluebird Care (South Gloucestershire),116.55, 12-Oct-2022
1032,Revenue,CAHD,Central - Commissioned Services,Other Small Contracts,Bluebird Care (South Gloucestershire),963.48, 12-Oct-2022
1033,Revenue,CAHD,Central - Commissioned Services,Other Small Contracts,Bluebird Care (South Gloucestershire),38.85, 12-Oct-2022
1034,Revenue,CAHD,Central - Commissioned Services,Other Small Contracts,Bluebird Care (South Gloucestershire),38.85, 12-Oct-2022
1035,Revenue,CAHD,Central - Commissioned Services,Other Small Contracts,Bluebird Care (South Gloucestershire),186.48, 12-Oct-2022
1036,Revenue,CAHD,Central - Commissioned Services,Other Small Contracts,Bluebird Care (South Gloucestershire),1399.44, 12-Oct-2022
1037,Revenue,CAHD,Central - Commissioned Services,Other Small Contracts,Bluebird Care (South Gloucestershire),139.86, 12-Oct-2022
1038,Revenue,CAHD,Central - Commissioned Services,Other Small Contracts,Bluebird Care (South Gloucestershire),217.56, 12-Oct-2022
1039,Revenue,CAHD,Central - Commissioned Services,Other Small Contracts,Bluebird Care (South Gloucestershire),458.43, 12-Oct-2022
1040,Revenue,CAHD,Central - Commissioned Services,Other Small Contracts,Bluebird Care (South Gloucestershire),652.68, 12-Oct-2022
1041,Revenue,CAHD,Central - Commissioned Services,Other Small Contracts,Bluebird Care (South Gloucestershire),124.32, 12-Oct-2022
1042,Revenue,CAHD,Central - Commissioned Services,Other Small Contracts,Bluebird Care (South Gloucestershire),640.10, 12-Oct-2022
1043,Revenue,CAHD,Central - Commissioned Services,Other Small Contracts,Bluebird Care (South Gloucestershire),77.70, 12-Oct-2022
1044,Revenue,CAHD,Central - Commissioned Services,Other Small Contracts,Bluebird Care (South Gloucestershire),116.55, 12-Oct-2022
1045,Revenue,CAHD,Central - Commissioned Services,Other Small Contracts,Bluebird Care (South Gloucestershire),450.66, 12-Oct-2022
1046,Revenue,CAHD,South - Commissioned Services,Other Small Contracts,Bluebird Care (South Gloucestershire),497.28, 12-Oct-2022
1047,Revenue,CAHD,South - Commissioned Services,Other Small Contracts,Bluebird Care (South Gloucestershire),202.02, 12-Oct-2022
1048,Revenue,CAHD,South - Commissioned Services,Other Small Contracts,Bluebird Care (South Gloucestershire),505.05, 12-Oct-2022
1049,Revenue,CAHD,South - Commissioned Services,Other Small Contracts,Bluebird Care (South Gloucestershire),209.79, 12-Oct-2022
1050,Revenue,CAHD,South - Commissioned Services,Other Small Contracts,Bluebird Care (South Gloucestershire),279.72, 12-Oct-2022
1051,Revenue,CAHD,South - Commissioned Services,Other Small Contracts,Bluebird Care (South Gloucestershire),256.41, 12-Oct-2022
1052,Revenue,CAHD,South - Commissioned Services,Other Small Contracts,Bluebird Care (South Gloucestershire),1399.44, 12-Oct-2022
1053,Revenue,CAHD,South - Commissioned Services,Other Small Contracts,Bluebird Care (South Gloucestershire),62.16, 12-Oct-2022
1054,Revenue,CAHD,South - Commissioned Services,Other Small Contracts,Bluebird Care (South Gloucestershire),69.93, 12-Oct-2022
1055,Revenue,CAHD,South - Commissioned Services,Other Small Contracts,Bluebird Care (South Gloucestershire),124.32, 12-Oct-2022
1056,Revenue,CAHD,South - Commissioned Services,Other Small Contracts,Bluebird Care (South Gloucestershire),132.09, 12-Oct-2022
1057,Revenue,CAHD,South - Commissioned Services,Other Small Contracts,Bluebird Care (South Gloucestershire),62.16, 12-Oct-2022
1058,Revenue,CAHD,South - Commissioned Services,Other Small Contracts,Bluebird Care (South Gloucestershire),404.04, 12-Oct-2022
1059,Revenue,CAHD,North - Community based support,Other Small Contracts,Bluebird Care (South Gloucestershire),341.88, 12-Oct-2022
1060,Revenue,CAHD,North - Community based support,Other Small Contracts,Bluebird Care (South Gloucestershire),186.48, 12-Oct-2022
1061,Revenue,CAHD,North - Community based support,Other Small Contracts,Bluebird Care (South Gloucestershire),62.16, 12-Oct-2022
1062,Revenue,CAHD,North - Community based support,Other Small Contracts,Bluebird Care (South Gloucestershire),1654.80, 12-Oct-2022
1063,Revenue,CAHD,North - Community based support,Other Small Contracts,Bluebird Care (South Gloucestershire),139.86, 12-Oct-2022
1064,Revenue,CAHD,North - Community based support,Other Small Contracts,Bluebird Care (South Gloucestershire),326.34, 12-Oct-2022
1065,Revenue,CAHD,North - Community based support,Other Small Contracts,Bluebird Care (South Gloucestershire),38.85, 12-Oct-2022
1066,Revenue,CAHD,North - Community based support,Other Small Contracts,Bluebird Care (South Gloucestershire),116.55, 12-Oct-2022
1067,Revenue,CAHD,North - Community based support,Other Small Contracts,Bluebird Care (South Gloucestershire),1750.84, 12-Oct-2022
1068,Revenue,CAHD,North - Community based support,Other Small Contracts,Bluebird Care (South Gloucestershire),93.24, 12-Oct-2022
1069,Revenue,CAHD,Central - Commissioned Services,Other Small Contracts,Bluebird Care (South Gloucestershire),124.32, 12-Oct-2022
1070,Revenue,CAHD,Central - Commissioned Services,Other Small Contracts,Bluebird Care (South Gloucestershire),116.55, 12-Oct-2022
1071,Revenue,CAHD,Central - Commissioned Services,Other Small Contracts,Bluebird Care (South Gloucestershire),722.61, 12-Oct-2022
1072,Revenue,CAHD,Central - Commissioned Services,Other Small Contracts,Bluebird Care (South Gloucestershire),132.09, 12-Oct-2022
1073,Revenue,CAHD,Central - Commissioned Services,Other Small Contracts,Bluebird Care (South Gloucestershire),23.31, 12-Oct-2022
1074,Revenue,CAHD,Central - Commissioned Services,Other Small Contracts,Bluebird Care (South Gloucestershire),1779.33, 12-Oct-2022
1075,Revenue,CAHD,Central - Commissioned Services,Other Small Contracts,Bluebird Care (South Gloucestershire),147.63, 12-Oct-2022
1076,Revenue,CAHD,Central - Commissioned Services,Other Small Contracts,Bluebird Care (South Gloucestershire),217.56, 12-Oct-2022
1077,Revenue,CAHD,Central - Commissioned Services,Other Small Contracts,Bluebird Care (South Gloucestershire),209.79, 12-Oct-2022
1078,Revenue,CAHD,Central - Commissioned Services,Other Small Contracts,Bluebird Care (South Gloucestershire),163.17, 12-Oct-2022
1079,Revenue,CAHD,Central - Commissioned Services,Other Small Contracts,Bluebird Care (South Gloucestershire),108.78, 12-Oct-2022
1080,Revenue,CAHD,Central - Commissioned Services,Other Small Contracts,Bluebird Care (South Gloucestershire),979.02, 12-Oct-2022
1081,Revenue,CAHD,Central - Commissioned Services,Other Small Contracts,Bluebird Care (South Gloucestershire),38.85, 12-Oct-2022
1082,Revenue,CAHD,Central - Commissioned Services,Other Small Contracts,Bluebird Care (South Gloucestershire),46.62, 12-Oct-2022
1083,Revenue,CAHD,Central - Commissioned Services,Other Small Contracts,Bluebird Care (South Gloucestershire),194.25, 12-Oct-2022
1084,Revenue,CAHD,Central - Commissioned Services,Other Small Contracts,Bluebird Care (South Gloucestershire),1399.44, 12-Oct-2022
1085,Revenue,CAHD,Central - Commissioned Services,Other Small Contracts,Bluebird Care (South Gloucestershire),147.63, 12-Oct-2022
1086,Revenue,CAHD,Central - Commissioned Services,Other Small Contracts,Bluebird Care (South Gloucestershire),209.79, 12-Oct-2022
1087,Revenue,CAHD,Central - Commissioned Services,Other Small Contracts,Bluebird Care (South Gloucestershire),458.43, 12-Oct-2022
1088,Revenue,CAHD,Central - Commissioned Services,Other Small Contracts,Bluebird Care (South Gloucestershire),637.14, 12-Oct-2022
1089,Revenue,CAHD,Central - Commissioned Services,Other Small Contracts,Bluebird Care (South Gloucestershire),124.32, 12-Oct-2022
1090,Revenue,CAHD,Central - Commissioned Services,Other Small Contracts,Bluebird Care (South Gloucestershire),640.10, 12-Oct-2022
1091,Revenue,CAHD,Central - Commissioned Services,Other Small Contracts,Bluebird Care (South Gloucestershire),85.47, 12-Oct-2022
1092,Revenue,CAHD,Central - Commissioned Services,Other Small Contracts,Bluebird Care (South Gloucestershire),108.78, 12-Oct-2022
1093,Revenue,CAHD,Central - Commissioned Services,Other Small Contracts,Bluebird Care (South Gloucestershire),357.42, 12-Oct-2022
1094,Revenue,CAHD,South - Commissioned Services,Other Small Contracts,Bluebird Care (South Gloucestershire),489.51, 12-Oct-2022
1095,Revenue,CAHD,South - Commissioned Services,Other Small Contracts,Bluebird Care (South Gloucestershire),194.25, 12-Oct-2022
1096,Revenue,CAHD,South - Commissioned Services,Other Small Contracts,Bluebird Care (South Gloucestershire),473.97, 12-Oct-2022
1097,Revenue,CAHD,South - Commissioned Services,Other Small Contracts,Bluebird Care (South Gloucestershire),256.41, 12-Oct-2022
1098,Revenue,CAHD,South - Commissioned Services,Other Small Contracts,Bluebird Care (South Gloucestershire),326.34, 12-Oct-2022
1099,Revenue,CAHD,South - Commissioned Services,Other Small Contracts,Bluebird Care (South Gloucestershire),240.87, 12-Oct-2022
1100,Revenue,CAHD,South - Commissioned Services,Other Small Contracts,Bluebird Care (South Gloucestershire),1399.44, 12-Oct-2022
1101,Revenue,CAHD,South - Commissioned Services,Other Small Contracts,Bluebird Care (South Gloucestershire),62.16, 12-Oct-2022
1102,Revenue,CAHD,South - Commissioned Services,Other Small Contracts,Bluebird Care (South Gloucestershire),69.93, 12-Oct-2022
1103,Revenue,CAHD,South - Commissioned Services,Other Small Contracts,Bluebird Care (South Gloucestershire),124.32, 12-Oct-2022
1104,Revenue,CAHD,South - Commissioned Services,Other Small Contracts,Bluebird Care (South Gloucestershire),31.08, 12-Oct-2022
1105,Revenue,CAHD,South - Commissioned Services,Other Small Contracts,Bluebird Care (South Gloucestershire),54.39, 12-Oct-2022
1106,Revenue,CAHD,South - Commissioned Services,Other Small Contracts,Bluebird Care (South Gloucestershire),365.19, 12-Oct-2022
1107,Revenue,CAHD,North - Community based support,Other Small Contracts,Bluebird Care (South Gloucestershire),310.80, 12-Oct-2022
1108,Revenue,CAHD,North - Community based support,Other Small Contracts,Bluebird Care (South Gloucestershire),209.79, 12-Oct-2022
1109,Revenue,CAHD,North - Community based support,Other Small Contracts,Bluebird Care (South Gloucestershire),69.93, 12-Oct-2022
1110,Revenue,CAHD,North - Community based support,Other Small Contracts,Bluebird Care (South Gloucestershire),1615.95, 12-Oct-2022
1111,Revenue,CAHD,North - Community based support,Other Small Contracts,Bluebird Care (South Gloucestershire),139.86, 12-Oct-2022
1112,Revenue,CAHD,North - Community based support,Other Small Contracts,Bluebird Care (South Gloucestershire),318.57, 12-Oct-2022
1113,Revenue,CAHD,North - Community based support,Other Small Contracts,Bluebird Care (South Gloucestershire),62.16, 12-Oct-2022
1114,Revenue,CAHD,North - Community based support,Other Small Contracts,Bluebird Care (South Gloucestershire),93.24, 12-Oct-2022
1115,Revenue,CAHD,North - Community based support,Other Small Contracts,Bluebird Care (South Gloucestershire),1750.84, 12-Oct-2022
1116,Revenue,CAHD,North - Community based support,Other Small Contracts,Bluebird Care (South Gloucestershire),93.24, 12-Oct-2022
1117,Revenue,CAHD,Central - Commissioned Services,Other Small Contracts,Bluebird Care (South Gloucestershire),147.63, 17-Oct-2022
1118,Revenue,CAHD,Central - Commissioned Services,Other Small Contracts,Bluebird Care (South Gloucestershire),124.32, 17-Oct-2022
1119,Revenue,CAHD,Central - Commissioned Services,Other Small Contracts,Bluebird Care (South Gloucestershire),753.69, 17-Oct-2022
1120,Revenue,CAHD,Central - Commissioned Services,Other Small Contracts,Bluebird Care (South Gloucestershire),116.55, 17-Oct-2022
1121,Revenue,CAHD,Central - Commissioned Services,Other Small Contracts,Bluebird Care (South Gloucestershire),31.08, 17-Oct-2022
1122,Revenue,CAHD,Central - Commissioned Services,Other Small Contracts,Bluebird Care (South Gloucestershire),1499.61, 17-Oct-2022
1123,Revenue,CAHD,Central - Commissioned Services,Other Small Contracts,Bluebird Care (South Gloucestershire),155.40, 17-Oct-2022
1124,Revenue,CAHD,Central - Commissioned Services,Other Small Contracts,Bluebird Care (South Gloucestershire),279.72, 17-Oct-2022
1125,Revenue,CAHD,Central - Commissioned Services,Other Small Contracts,Bluebird Care (South Gloucestershire),248.64, 17-Oct-2022
1126,Revenue,CAHD,Central - Commissioned Services,Other Small Contracts,Bluebird Care (South Gloucestershire),147.63, 17-Oct-2022
1127,Revenue,CAHD,Central - Commissioned Services,Other Small Contracts,Bluebird Care (South Gloucestershire),124.32, 17-Oct-2022
1128,Revenue,CAHD,Central - Commissioned Services,Other Small Contracts,Bluebird Care (South Gloucestershire),932.40, 17-Oct-2022
1129,Revenue,CAHD,Central - Commissioned Services,Other Small Contracts,Bluebird Care (South Gloucestershire),31.08, 17-Oct-2022
1130,Revenue,CAHD,Central - Commissioned Services,Other Small Contracts,Bluebird Care (South Gloucestershire),46.62, 17-Oct-2022
1131,Revenue,CAHD,Central - Commissioned Services,Other Small Contracts,Bluebird Care (South Gloucestershire),202.02, 17-Oct-2022
1132,Revenue,CAHD,Central - Commissioned Services,Other Small Contracts,Bluebird Care (South Gloucestershire),1399.44, 17-Oct-2022
1133,Revenue,CAHD,Central - Commissioned Services,Other Small Contracts,Bluebird Care (South Gloucestershire),132.09, 17-Oct-2022
1134,Revenue,CAHD,Central - Commissioned Services,Other Small Contracts,Bluebird Care (South Gloucestershire),528.36, 17-Oct-2022
1135,Revenue,CAHD,Central - Commissioned Services,Other Small Contracts,Bluebird Care (South Gloucestershire),644.91, 17-Oct-2022
1136,Revenue,CAHD,Central - Commissioned Services,Other Small Contracts,Bluebird Care (South Gloucestershire),124.32, 17-Oct-2022
1137,Revenue,CAHD,Central - Commissioned Services,Other Small Contracts,Bluebird Care (South Gloucestershire),647.87, 17-Oct-2022
1138,Revenue,CAHD,Central - Commissioned Services,Other Small Contracts,Bluebird Care (South Gloucestershire),77.70, 17-Oct-2022
1139,Revenue,CAHD,Central - Commissioned Services,Other Small Contracts,Bluebird Care (South Gloucestershire),116.55, 17-Oct-2022
1140,Revenue,CAHD,Central - Commissioned Services,Other Small Contracts,Bluebird Care (South Gloucestershire),909.09, 17-Oct-2022
1141,Revenue,CAHD,Central - Commissioned Services,Other Small Contracts,Bluebird Care (South Gloucestershire),1340.64, 17-Oct-2022
1142,Revenue,CAHD,Central - Commissioned Services,Other Small Contracts,Bluebird Care (South Gloucestershire),372.96, 17-Oct-2022
1143,Revenue,CAHD,South - Commissioned Services,Other Small Contracts,Bluebird Care (South Gloucestershire),497.28, 17-Oct-2022
1144,Revenue,CAHD,South - Commissioned Services,Other Small Contracts,Bluebird Care (South Gloucestershire),186.48, 17-Oct-2022
1145,Revenue,CAHD,South - Commissioned Services,Other Small Contracts,Bluebird Care (South Gloucestershire),512.82, 17-Oct-2022
1146,Revenue,CAHD,South - Commissioned Services,Other Small Contracts,Bluebird Care (South Gloucestershire),279.72, 17-Oct-2022
1147,Revenue,CAHD,South - Commissioned Services,Other Small Contracts,Bluebird Care (South Gloucestershire),264.18, 17-Oct-2022
1148,Revenue,CAHD,South - Commissioned Services,Other Small Contracts,Bluebird Care (South Gloucestershire),1399.44, 17-Oct-2022
1149,Revenue,CAHD,South - Commissioned Services,Other Small Contracts,Bluebird Care (South Gloucestershire),62.16, 17-Oct-2022
1150,Revenue,CAHD,South - Commissioned Services,Other Small Contracts,Bluebird Care (South Gloucestershire),116.55, 17-Oct-2022
1151,Revenue,CAHD,South - Commissioned Services,Other Small Contracts,Bluebird Care (South Gloucestershire),62.16, 17-Oct-2022
1152,Revenue,CAHD,South - Commissioned Services,Other Small Contracts,Bluebird Care (South Gloucestershire),349.65, 17-Oct-2022
1153,Revenue,CAHD,North - Community based support,Other Small Contracts,Bluebird Care (South Gloucestershire),341.88, 17-Oct-2022
1154,Revenue,CAHD,North - Community based support,Other Small Contracts,Bluebird Care (South Gloucestershire),202.02, 17-Oct-2022
1155,Revenue,CAHD,North - Community based support,Other Small Contracts,Bluebird Care (South Gloucestershire),62.16, 17-Oct-2022
1156,Revenue,CAHD,North - Community based support,Other Small Contracts,Bluebird Care (South Gloucestershire),1647.03, 17-Oct-2022
1157,Revenue,CAHD,North - Community based support,Other Small Contracts,Bluebird Care (South Gloucestershire),139.86, 17-Oct-2022
1158,Revenue,CAHD,North - Community based support,Other Small Contracts,Bluebird Care (South Gloucestershire),318.57, 17-Oct-2022
1159,Revenue,CAHD,North - Community based support,Other Small Contracts,Bluebird Care (South Gloucestershire),62.16, 17-Oct-2022
1160,Revenue,CAHD,North - Community based support,Other Small Contracts,Bluebird Care (South Gloucestershire),132.09, 17-Oct-2022
1161,Revenue,CAHD,North - Community based support,Other Small Contracts,Bluebird Care (South Gloucestershire),1750.84, 17-Oct-2022
1162,Revenue,CAHD,Central - Commissioned Services,Other Small Contracts,Bluebird Care (South Gloucestershire),264.18, 17-Oct-2022
1163,Revenue,CAHD,Central - Commissioned Services,Other Small Contracts,Bluebird Care (South Gloucestershire),240.87, 17-Oct-2022
1164,Revenue,CAHD,Central - Commissioned Services,Other Small Contracts,Bluebird Care (South Gloucestershire),1328.67, 17-Oct-2022
1165,Revenue,CAHD,Central - Commissioned Services,Other Small Contracts,Bluebird Care (South Gloucestershire),225.33, 17-Oct-2022
1166,Revenue,CAHD,Central - Commissioned Services,Other Small Contracts,Bluebird Care (South Gloucestershire),62.16, 17-Oct-2022
1167,Revenue,CAHD,Central - Commissioned Services,Other Small Contracts,Bluebird Care (South Gloucestershire),3682.98, 17-Oct-2022
1168,Revenue,CAHD,Central - Commissioned Services,Other Small Contracts,Bluebird Care (South Gloucestershire),295.26, 17-Oct-2022
1169,Revenue,CAHD,Central - Commissioned Services,Other Small Contracts,Bluebird Care (South Gloucestershire),559.44, 17-Oct-2022
1170,Revenue,CAHD,Central - Commissioned Services,Other Small Contracts,Bluebird Care (South Gloucestershire),442.89, 17-Oct-2022
1171,Revenue,CAHD,Central - Commissioned Services,Other Small Contracts,Bluebird Care (South Gloucestershire),186.48, 17-Oct-2022
1172,Revenue,CAHD,Central - Commissioned Services,Other Small Contracts,Bluebird Care (South Gloucestershire),264.18, 17-Oct-2022
1173,Revenue,CAHD,Central - Commissioned Services,Other Small Contracts,Bluebird Care (South Gloucestershire),1895.88, 17-Oct-2022
1174,Revenue,CAHD,Central - Commissioned Services,Other Small Contracts,Bluebird Care (South Gloucestershire),93.24, 17-Oct-2022
1175,Revenue,CAHD,Central - Commissioned Services,Other Small Contracts,Bluebird Care (South Gloucestershire),77.70, 17-Oct-2022
1176,Revenue,CAHD,Central - Commissioned Services,Other Small Contracts,Bluebird Care (South Gloucestershire),365.19, 17-Oct-2022
1177,Revenue,CAHD,Central - Commissioned Services,Other Small Contracts,Bluebird Care (South Gloucestershire),2798.88, 17-Oct-2022
1178,Revenue,CAHD,Central - Commissioned Services,Other Small Contracts,Bluebird Care (South Gloucestershire),256.41, 17-Oct-2022
1179,Revenue,CAHD,Central - Commissioned Services,Other Small Contracts,Bluebird Care (South Gloucestershire),419.58, 17-Oct-2022
1180,Revenue,CAHD,Central - Commissioned Services,Other Small Contracts,Bluebird Care (South Gloucestershire),1297.59, 17-Oct-2022
1181,Revenue,CAHD,Central - Commissioned Services,Other Small Contracts,Bluebird Care (South Gloucestershire),62.16, 17-Oct-2022
1182,Revenue,CAHD,Central - Commissioned Services,Other Small Contracts,Bluebird Care (South Gloucestershire),1272.43, 17-Oct-2022
1183,Revenue,CAHD,Central - Commissioned Services,Other Small Contracts,Bluebird Care (South Gloucestershire),170.94, 17-Oct-2022
1184,Revenue,CAHD,Central - Commissioned Services,Other Small Contracts,Bluebird Care (South Gloucestershire),233.10, 17-Oct-2022
1185,Revenue,CAHD,Central - Commissioned Services,Other Small Contracts,Bluebird Care (South Gloucestershire),924.63, 17-Oct-2022
1186,Revenue,CAHD,Central - Commissioned Services,Other Small Contracts,Bluebird Care (South Gloucestershire),1149.12, 17-Oct-2022
1187,Revenue,CAHD,Central - Commissioned Services,Other Small Contracts,Bluebird Care (South Gloucestershire),753.69, 17-Oct-2022
1188,Revenue,CAHD,South - Commissioned Services,Other Small Contracts,Bluebird Care (South Gloucestershire),986.79, 17-Oct-2022
1189,Revenue,CAHD,South - Commissioned Services,Other Small Contracts,Bluebird Care (South Gloucestershire),489.51, 17-Oct-2022
1190,Revenue,CAHD,South - Commissioned Services,Other Small Contracts,Bluebird Care (South Gloucestershire),1041.18, 17-Oct-2022
1191,Revenue,CAHD,South - Commissioned Services,Other Small Contracts,Bluebird Care (South Gloucestershire),512.82, 17-Oct-2022
1192,Revenue,CAHD,South - Commissioned Services,Other Small Contracts,Bluebird Care (South Gloucestershire),505.05, 17-Oct-2022
1193,Revenue,CAHD,South - Commissioned Services,Other Small Contracts,Bluebird Care (South Gloucestershire),2798.88, 17-Oct-2022
1194,Revenue,CAHD,South - Commissioned Services,Other Small Contracts,Bluebird Care (South Gloucestershire),124.32, 17-Oct-2022
1195,Revenue,CAHD,South - Commissioned Services,Other Small Contracts,Bluebird Care (South Gloucestershire),217.56, 17-Oct-2022
1196,Revenue,CAHD,South - Commissioned Services,Other Small Contracts,Bluebird Care (South Gloucestershire),93.24, 17-Oct-2022
1197,Revenue,CAHD,South - Commissioned Services,Other Small Contracts,Bluebird Care (South Gloucestershire),714.84, 17-Oct-2022
1198,Revenue,CAHD,North - Community based support,Other Small Contracts,Bluebird Care (South Gloucestershire),683.76, 17-Oct-2022
1199,Revenue,CAHD,North - Community based support,Other Small Contracts,Bluebird Care (South Gloucestershire),365.19, 17-Oct-2022
1200,Revenue,CAHD,North - Community based support,Other Small Contracts,Bluebird Care (South Gloucestershire),124.32, 17-Oct-2022
1201,Revenue,CAHD,North - Community based support,Other Small Contracts,Bluebird Care (South Gloucestershire),3309.60, 17-Oct-2022
1202,Revenue,CAHD,North - Community based support,Other Small Contracts,Bluebird Care (South Gloucestershire),279.72, 17-Oct-2022
1203,Revenue,CAHD,North - Community based support,Other Small Contracts,Bluebird Care (South Gloucestershire),644.91, 17-Oct-2022
1204,Revenue,CAHD,North - Community based support,Other Small Contracts,Bluebird Care (South Gloucestershire),108.78, 17-Oct-2022
1205,Revenue,CAHD,North - Community based support,Other Small Contracts,Bluebird Care (South Gloucestershire),450.66, 17-Oct-2022
1206,Revenue,CAHD,North - Community based support,Other Small Contracts,Bluebird Care (South Gloucestershire),3501.68, 17-Oct-2022
1207,Revenue,CAHD,North - Community based support,Other Small Contracts,Bluebird Care (South Gloucestershire),947.94, 17-Oct-2022
1208,Revenue,CAHD,Central - Commissioned Services,Other Small Contracts,Bluebird Care (South Gloucestershire),450.11, 17-Oct-2022
1209,Revenue,CAHD,North - Community based support,Other Small Contracts,Bluebird Care (South Gloucestershire),1906.40, 17-Oct-2022
1210,Revenue,CAHD,Central - Commissioned Services,Other Small Contracts,Bluebird Care (South Gloucestershire),1605.00, 27-Oct-2022
1211,Revenue,CAHD,Central - Commissioned Services,Other Small Contracts,Bluebird Care (South Gloucestershire),2247.00, 27-Oct-2022
1212,Revenue,CAHD,CSC - Asylum Seekers - Unaccompanied,Independent Living,Blueline Healthcare Solutions Ltd T/A Blueline Car,4207.00, 31-Oct-2022
1213,Revenue,CAHD,CSC - Asylum Seekers - Unaccompanied,Independent Living,Blueline Healthcare Solutions Ltd T/A Blueline Car,4207.00, 31-Oct-2022
1214,Revenue,CAHD,CSC - Asylum Seekers - Unaccompanied,Independent Living,Blueline Healthcare Solutions Ltd T/A Blueline Car,4207.00, 31-Oct-2022
1215,Revenue,CAHD,CSC - Asylum Seekers - Unaccompanied,Independent Living,Blueline Healthcare Solutions Ltd T/A Blueline Car,4207.00, 31-Oct-2022
1216,Revenue,CAHD,CSC - Asylum Seekers - Unaccompanied,Independent Living,Blueline Healthcare Solutions Ltd T/A Blueline Car,4207.00, 31-Oct-2022
1217,Revenue,CAHD,CSC - Asylum Seekers - Unaccompanied,Independent Living,Blueline Healthcare Solutions Ltd T/A Blueline Car,4207.00, 31-Oct-2022
1218,Revenue,CAHD,CSC - Asylum Seekers - Unaccompanied,Independent Living,Blueline Healthcare Solutions Ltd T/A Blueline Car,4207.00, 31-Oct-2022
1219,Revenue,CAHD,CSC - Asylum Seekers - Unaccompanied,Independent Living,Blueline Healthcare Solutions Ltd T/A Blueline Car,4071.42, 04-Oct-2022
1220,Revenue,CAHD,CSC - Asylum Seekers - Unaccompanied,Independent Living,Blueline Healthcare Solutions Ltd T/A Blueline Car,4071.42, 04-Oct-2022
1221,Revenue,CAHD,Drugs Alcohol and Sexual Health,Other Small Contracts,Boots UK Ltd,643.57, 28-Oct-2022
1222,Revenue,CAHD,Drugs Alcohol and Sexual Health,Other Small Contracts,Boots UK Ltd,588.55, 28-Oct-2022
1223,Revenue,CAHD,Training - Adult Services,Training Expenses,Bournemouth University,5000.00, 28-Oct-2022
1224,Revenue,CAHD,North - Community based support,Permanent Residential,Bradbury House,6768.60, 18-Oct-2022
1225,Revenue,CAHD,S28A cases,Fees & Charges Income - General,Bradbury House,-438.80, 18-Oct-2022
1226,Revenue,CAHD,Central - Commissioned Services,Permanent Residential,Bradbury House,11342.80, 18-Oct-2022
1227,Revenue,CAHD,North - S117,Permanent Residential,Bradbury House,14640.32, 18-Oct-2022
1228,Revenue,CAHD,Cardio Vascular Disease - Risks,Other Small Contracts,Bradley Stoke Surgery,3680.00, 28-Oct-2022
1229,Revenue,CAHD,CSC - Residential Placements,Permanent Residential,Branas ISAF Ltd,7778.57, 19-Oct-2022
1230,Revenue,CAHD,Social Lettings Agency,Rent,Individual,822.73, 25-Oct-2022
1231,Revenue,CAHD,Social Lettings Agency,Fees & Charges Income - General,Individual,-102.80, 25-Oct-2022
1232,Revenue,CAHD,Social Lettings Agency,Rent,Individual,947.40, 07-Oct-2022
1233,Revenue,CAHD,Social Lettings Agency,Fees & Charges Income - General,Individual,-75.80, 07-Oct-2022
1234,Revenue,CAHD,Placements OLA Special Schools and RB,Other L.A.s - General,Briarwood School,2774.72, 21-Oct-2022
1235,Revenue,CAHD,Placements OLA Special Schools and RB,Other L.A.s - General,Briarwood School,1981.43, 21-Oct-2022
1236,Revenue,CAHD,Placements OLA Special Schools and RB,Other L.A.s - General,Briarwood School,792.40, 21-Oct-2022
1237,Revenue,CAHD,North - Community based support,Permanent Residential,Bridge House Care Home,3286.00, 18-Oct-2022
1238,Revenue,CAHD,North - Community based support,Permanent Residential,Bridge House Care Home,3440.00, 18-Oct-2022
1239,Revenue,CAHD,North - Community based support,Permanent Residential,Bridge House Care Home,3088.32, 18-Oct-2022
1240,Revenue,CAHD,North - Community based support,Permanent Nursing,Bridge House Care Home,3360.00, 18-Oct-2022
1241,Revenue,CAHD,North - Community based support,Fees & Charges Income - General,Bridge House Care Home,-627.80, 18-Oct-2022
1242,Revenue,CAHD,North - Community based support,Fees & Charges Income - General,Bridge House Care Home,-650.88, 18-Oct-2022
1243,Revenue,CAHD,North - Community based support,Fees & Charges Income - General,Bridge House Care Home,-651.64, 18-Oct-2022
1244,Revenue,CAHD,North - Community based support,Fees & Charges Income - General,Bridge House Care Home,-1679.52, 18-Oct-2022
1245,Revenue,CAHD,North - Community based support,Day Care / Social Activities,Bridge House Care Home,720.00, 18-Oct-2022
1246,Revenue,CAHD,North - Community based support,Permanent Residential,Bridgwater Court Care Home,10773.64, 18-Oct-2022
1247,Revenue,CAHD,Mental Health and Community Engagement,Grants to Voluntary Bodies,Bristol & Avon Chinese Womens Group,500.00, 25-Oct-2022
1248,Revenue,CAHD,Statemented Support Payments to OLAs,Other L.A.s - General,Bristol Cathedral Choir School,942.58, 21-Oct-2022
1249,Revenue,CAHD,Statemented Support Payments to OLAs,Other L.A.s - General,Bristol Cathedral Choir School,880.08, 21-Oct-2022
1250,Revenue,CAHD,Statemented Support Payments to OLAs,Other L.A.s - General,Bristol Cathedral Choir School,978.57, 21-Oct-2022
1251,Revenue,CAHD,Early Years Development,Membership Fees,Bristol City Council,1000.00, 05-Oct-2022
1252,Revenue,CAHD,CSC - Section 17 - ART,Interpreting & Translation,Bristol City Council,977.15, 11-Oct-2022
1253,Revenue,CAHD,Transport OLA Special Schools and RB,Client Transport,Bristol City Council,6799.84, 19-Oct-2022
1254,Revenue,CAHD,CSC - North LAC Placements,Personal Needs of Clients,Bristol City Council,429.50, 28-Oct-2022
1255,Revenue,CAHD,CSC - Section 17 - NORTH,Personal Needs of Clients,Bristol City Council,32.50, 28-Oct-2022
1256,Revenue,CAHD,Statemented Support Payments to OLAs,Other L.A.s - General,Bristol City Council Schools General,897.42, 21-Oct-2022
1257,Revenue,CAHD,ELS - Skills,Premises Hire,Bristol Golf Centre,680.00, 28-Oct-2022
1258,Revenue,CAHD,Statemented Support Payments to OLAs,Other L.A.s - General,Broadlands Academy,835.17, 21-Oct-2022
1259,Revenue,CAHD,North - Community based support,Permanent Residential,Brockhills Farm,3200.00, 18-Oct-2022
1260,Revenue,CAHD,North - Community based support,Fees & Charges Income - General,Brockhills Farm,-658.96, 18-Oct-2022
1261,Revenue,CAHD,Homelessness Contingency,Other Supplies & Services,Bromford Housing,503.48, 13-Oct-2022
1262,Revenue,CAHD,Community Support - South,Preventative Assistance,Bronev,1532.00, 21-Oct-2022
1263,Revenue,CAHD,Parent Partnership & Disagreement Resolutions,Fees - General,Individual,1151.50, 11-Oct-2022
1264,Revenue,CAHD,Parent Partnership & Disagreement Resolutions,Fees - General,Individual,1527.50, 11-Oct-2022
1265,Revenue,CAHD,South - Commissioned Services,Other Small Contracts,Brunelcare,19143.66, 19-Oct-2022
1266,Revenue,CAHD,Central - Commissioned Services,Other Small Contracts,Brunelcare,319.20, 17-Oct-2022
1267,Revenue,CAHD,Central - Commissioned Services,Other Small Contracts,Brunelcare,1165.08, 17-Oct-2022
1268,Revenue,CAHD,South - Commissioned Services,Other Small Contracts,Brunelcare,606.48, 17-Oct-2022
1269,Revenue,CAHD,South - Commissioned Services,Other Small Contracts,Brunelcare,420.28, 17-Oct-2022
1270,Revenue,CAHD,South - Commissioned Services,Other Small Contracts,Brunelcare,297.92, 17-Oct-2022
1271,Revenue,CAHD,South - Commissioned Services,Other Small Contracts,Brunelcare,553.28, 17-Oct-2022
1272,Revenue,CAHD,South - Commissioned Services,Other Small Contracts,Brunelcare,611.80, 17-Oct-2022
1273,Revenue,CAHD,South - Commissioned Services,Other Small Contracts,Brunelcare,1377.88, 17-Oct-2022
1274,Revenue,CAHD,South - Commissioned Services,Other Small Contracts,Brunelcare,760.76, 17-Oct-2022
1275,Revenue,CAHD,South - Commissioned Services,Other Small Contracts,Brunelcare,409.64, 17-Oct-2022
1276,Revenue,CAHD,South - Commissioned Services,Other Small Contracts,Brunelcare,425.60, 17-Oct-2022
1277,Revenue,CAHD,South - Commissioned Services,Other Small Contracts,Brunelcare,2761.08, 17-Oct-2022
1278,Revenue,CAHD,South - Commissioned Services,Other Small Contracts,Brunelcare,1244.88, 17-Oct-2022
1279,Revenue,CAHD,South - Commissioned Services,Other Small Contracts,Brunelcare,989.52, 17-Oct-2022
1280,Revenue,CAHD,South - Commissioned Services,Other Small Contracts,Brunelcare,361.76, 17-Oct-2022
1281,Revenue,CAHD,South - Commissioned Services,Other Small Contracts,Brunelcare,212.80, 17-Oct-2022
1282,Revenue,CAHD,South - Commissioned Services,Other Small Contracts,Brunelcare,872.48, 17-Oct-2022
1283,Revenue,CAHD,South - Commissioned Services,Other Small Contracts,Brunelcare,585.20, 17-Oct-2022
1284,Revenue,CAHD,South - Commissioned Services,Other Small Contracts,Brunelcare,303.24, 17-Oct-2022
1285,Revenue,CAHD,South - Commissioned Services,Other Small Contracts,Brunelcare,425.60, 17-Oct-2022
1286,Revenue,CAHD,South - Commissioned Services,Other Small Contracts,Brunelcare,1308.72, 17-Oct-2022
1287,Revenue,CAHD,South - Commissioned Services,Other Small Contracts,Brunelcare,74.48, 17-Oct-2022
1288,Revenue,CAHD,South - Commissioned Services,Other Small Contracts,Brunelcare,2149.28, 17-Oct-2022
1289,Revenue,CAHD,South - Commissioned Services,Other Small Contracts,Brunelcare,617.12, 17-Oct-2022
1290,Revenue,CAHD,South - Commissioned Services,Other Small Contracts,Brunelcare,127.68, 17-Oct-2022
1291,Revenue,CAHD,South - Commissioned Services,Other Small Contracts,Brunelcare,829.92, 17-Oct-2022
1292,Revenue,CAHD,South - Commissioned Services,Other Small Contracts,Brunelcare,345.80, 17-Oct-2022
1293,Revenue,CAHD,South - Commissioned Services,Other Small Contracts,Brunelcare,90.44, 17-Oct-2022
1294,Revenue,CAHD,South - Commissioned Services,Other Small Contracts,Brunelcare,3825.08, 17-Oct-2022
1295,Revenue,CAHD,South - Commissioned Services,Other Small Contracts,Brunelcare,234.08, 17-Oct-2022
1296,Revenue,CAHD,South - Commissioned Services,Other Small Contracts,Brunelcare,1266.16, 17-Oct-2022
1297,Revenue,CAHD,South - Commissioned Services,Other Small Contracts,Brunelcare,787.36, 17-Oct-2022
1298,Revenue,CAHD,South - Commissioned Services,Other Small Contracts,Brunelcare,1111.88, 17-Oct-2022
1299,Revenue,CAHD,South - Commissioned Services,Other Small Contracts,Brunelcare,170.24, 17-Oct-2022
1300,Revenue,CAHD,South - Commissioned Services,Other Small Contracts,Brunelcare,276.64, 17-Oct-2022
1301,Revenue,CAHD,South - Commissioned Services,Other Small Contracts,Brunelcare,1510.88, 17-Oct-2022
1302,Revenue,CAHD,South - Commissioned Services,Other Small Contracts,Brunelcare,404.32, 17-Oct-2022
1303,Revenue,CAHD,South - Commissioned Services,Other Small Contracts,Brunelcare,1228.92, 17-Oct-2022
1304,Revenue,CAHD,South - Commissioned Services,Other Small Contracts,Brunelcare,601.16, 17-Oct-2022
1305,Revenue,CAHD,South - Commissioned Services,Other Small Contracts,Brunelcare,484.12, 17-Oct-2022
1306,Revenue,CAHD,South - Commissioned Services,Other Small Contracts,Brunelcare,457.52, 17-Oct-2022
1307,Revenue,CAHD,South - Commissioned Services,Other Small Contracts,Brunelcare,1361.92, 17-Oct-2022
1308,Revenue,CAHD,South - Commissioned Services,Other Small Contracts,Brunelcare,95.76, 17-Oct-2022
1309,Revenue,CAHD,South - Commissioned Services,Other Small Contracts,Brunelcare,202.16, 17-Oct-2022
1310,Revenue,CAHD,South - Commissioned Services,Other Small Contracts,Brunelcare,558.60, 17-Oct-2022
1311,Revenue,CAHD,South - Commissioned Services,Other Small Contracts,Brunelcare,212.80, 17-Oct-2022
1312,Revenue,CAHD,South - Commissioned Services,Other Small Contracts,Brunelcare,377.72, 17-Oct-2022
1313,Revenue,CAHD,South - Commissioned Services,Other Small Contracts,Brunelcare,723.52, 17-Oct-2022
1314,Revenue,CAHD,South - Commissioned Services,Other Small Contracts,Brunelcare,239.40, 17-Oct-2022
1315,Revenue,CAHD,South - Commissioned Services,Other Small Contracts,Brunelcare,133.00, 17-Oct-2022
1316,Revenue,CAHD,South - Commissioned Services,Other Small Contracts,Brunelcare,276.64, 17-Oct-2022
1317,Revenue,CAHD,South - Commissioned Services,Other Small Contracts,Brunelcare,893.76, 17-Oct-2022
1318,Revenue,CAHD,South - Commissioned Services,Other Small Contracts,Brunelcare,329.84, 17-Oct-2022
1319,Revenue,CAHD,South - Commissioned Services,Other Small Contracts,Brunelcare,803.32, 17-Oct-2022
1320,Revenue,CAHD,South - Commissioned Services,Other Small Contracts,Brunelcare,590.52, 17-Oct-2022
1321,Revenue,CAHD,South - Commissioned Services,Other Small Contracts,Brunelcare,867.16, 17-Oct-2022
1322,Revenue,CAHD,South - Commissioned Services,Other Small Contracts,Brunelcare,782.04, 17-Oct-2022
1323,Revenue,CAHD,South - Commissioned Services,Other Small Contracts,Brunelcare,968.24, 17-Oct-2022
1324,Revenue,CAHD,South - Commissioned Services,Other Small Contracts,Brunelcare,420.28, 17-Oct-2022
1325,Revenue,CAHD,South - Commissioned Services,Other Small Contracts,Brunelcare,1361.92, 17-Oct-2022
1326,Revenue,CAHD,South - Commissioned Services,Other Small Contracts,Brunelcare,712.88, 17-Oct-2022
1327,Revenue,CAHD,South - Commissioned Services,Other Small Contracts,Brunelcare,1170.40, 17-Oct-2022
1328,Revenue,CAHD,South - Commissioned Services,Other Small Contracts,Brunelcare,1292.76, 17-Oct-2022
1329,Revenue,CAHD,South - Commissioned Services,Other Small Contracts,Brunelcare,494.76, 17-Oct-2022
1330,Revenue,CAHD,South - Commissioned Services,Other Small Contracts,Brunelcare,590.52, 17-Oct-2022
1331,Revenue,CAHD,South - Commissioned Services,Other Small Contracts,Brunelcare,1798.16, 17-Oct-2022
1332,Revenue,CAHD,South - Commissioned Services,Other Small Contracts,Brunelcare,4729.48, 17-Oct-2022
1333,Revenue,CAHD,South - Commissioned Services,Other Small Contracts,Brunelcare,308.56, 17-Oct-2022
1334,Revenue,CAHD,South - Commissioned Services,Mentoring,Brunelcare,21.28, 17-Oct-2022
1335,Revenue,CAHD,South - Commissioned Services,Mentoring,Brunelcare,58.52, 17-Oct-2022
1336,Revenue,CAHD,North - Community based support,Other Small Contracts,Brunelcare,1478.96, 17-Oct-2022
1337,Revenue,CAHD,Central - Commissioned Services,Other Small Contracts,Brunelcare,276.64, 17-Oct-2022
1338,Revenue,CAHD,Central - Commissioned Services,Other Small Contracts,Brunelcare,1186.36, 17-Oct-2022
1339,Revenue,CAHD,South - Commissioned Services,Other Small Contracts,Brunelcare,601.16, 17-Oct-2022
1340,Revenue,CAHD,South - Commissioned Services,Other Small Contracts,Brunelcare,340.48, 17-Oct-2022
1341,Revenue,CAHD,South - Commissioned Services,Other Small Contracts,Brunelcare,223.44, 17-Oct-2022
1342,Revenue,CAHD,South - Commissioned Services,Other Small Contracts,Brunelcare,569.24, 17-Oct-2022
1343,Revenue,CAHD,South - Commissioned Services,Other Small Contracts,Brunelcare,734.16, 17-Oct-2022
1344,Revenue,CAHD,South - Commissioned Services,Other Small Contracts,Brunelcare,1335.32, 17-Oct-2022
1345,Revenue,CAHD,South - Commissioned Services,Other Small Contracts,Brunelcare,744.80, 17-Oct-2022
1346,Revenue,CAHD,South - Commissioned Services,Other Small Contracts,Brunelcare,436.24, 17-Oct-2022
1347,Revenue,CAHD,South - Commissioned Services,Other Small Contracts,Brunelcare,425.60, 17-Oct-2022
1348,Revenue,CAHD,South - Commissioned Services,Other Small Contracts,Brunelcare,2734.48, 17-Oct-2022
1349,Revenue,CAHD,South - Commissioned Services,Other Small Contracts,Brunelcare,936.32, 17-Oct-2022
1350,Revenue,CAHD,South - Commissioned Services,Other Small Contracts,Brunelcare,372.40, 17-Oct-2022
1351,Revenue,CAHD,South - Commissioned Services,Other Small Contracts,Brunelcare,968.24, 17-Oct-2022
1352,Revenue,CAHD,South - Commissioned Services,Other Small Contracts,Brunelcare,345.80, 17-Oct-2022
1353,Revenue,CAHD,South - Commissioned Services,Other Small Contracts,Brunelcare,292.60, 17-Oct-2022
1354,Revenue,CAHD,South - Commissioned Services,Other Small Contracts,Brunelcare,888.44, 17-Oct-2022
1355,Revenue,CAHD,South - Commissioned Services,Other Small Contracts,Brunelcare,585.20, 17-Oct-2022
1356,Revenue,CAHD,South - Commissioned Services,Other Small Contracts,Brunelcare,319.20, 17-Oct-2022
1357,Revenue,CAHD,South - Commissioned Services,Other Small Contracts,Brunelcare,425.60, 17-Oct-2022
1358,Revenue,CAHD,South - Commissioned Services,Other Small Contracts,Brunelcare,1324.68, 17-Oct-2022
1359,Revenue,CAHD,South - Commissioned Services,Other Small Contracts,Brunelcare,63.84, 17-Oct-2022
1360,Revenue,CAHD,South - Commissioned Services,Other Small Contracts,Brunelcare,574.56, 17-Oct-2022
1361,Revenue,CAHD,South - Commissioned Services,Other Small Contracts,Brunelcare,122.36, 17-Oct-2022
1362,Revenue,CAHD,South - Commissioned Services,Other Small Contracts,Brunelcare,829.92, 17-Oct-2022
1363,Revenue,CAHD,South - Commissioned Services,Other Small Contracts,Brunelcare,638.40, 17-Oct-2022
1364,Revenue,CAHD,South - Commissioned Services,Other Small Contracts,Brunelcare,69.16, 17-Oct-2022
1365,Revenue,CAHD,South - Commissioned Services,Other Small Contracts,Brunelcare,3239.88, 17-Oct-2022
1366,Revenue,CAHD,South - Commissioned Services,Other Small Contracts,Brunelcare,255.36, 17-Oct-2022
1367,Revenue,CAHD,South - Commissioned Services,Other Small Contracts,Brunelcare,1202.32, 17-Oct-2022
1368,Revenue,CAHD,South - Commissioned Services,Other Small Contracts,Brunelcare,755.44, 17-Oct-2022
1369,Revenue,CAHD,South - Commissioned Services,Other Small Contracts,Brunelcare,1053.36, 17-Oct-2022
1370,Revenue,CAHD,South - Commissioned Services,Other Small Contracts,Brunelcare,164.92, 17-Oct-2022
1371,Revenue,CAHD,South - Commissioned Services,Other Small Contracts,Brunelcare,297.92, 17-Oct-2022
1372,Revenue,CAHD,South - Commissioned Services,Other Small Contracts,Brunelcare,1611.96, 17-Oct-2022
1373,Revenue,CAHD,South - Commissioned Services,Other Small Contracts,Brunelcare,319.20, 17-Oct-2022
1374,Revenue,CAHD,South - Commissioned Services,Other Small Contracts,Brunelcare,1212.96, 17-Oct-2022
1375,Revenue,CAHD,South - Commissioned Services,Other Small Contracts,Brunelcare,601.16, 17-Oct-2022
1376,Revenue,CAHD,South - Commissioned Services,Other Small Contracts,Brunelcare,180.88, 17-Oct-2022
1377,Revenue,CAHD,South - Commissioned Services,Other Small Contracts,Brunelcare,430.92, 17-Oct-2022
1378,Revenue,CAHD,South - Commissioned Services,Other Small Contracts,Brunelcare,1356.60, 17-Oct-2022
1379,Revenue,CAHD,South - Commissioned Services,Other Small Contracts,Brunelcare,85.12, 17-Oct-2022
1380,Revenue,CAHD,South - Commissioned Services,Other Small Contracts,Brunelcare,212.80, 17-Oct-2022
1381,Revenue,CAHD,South - Commissioned Services,Other Small Contracts,Brunelcare,542.64, 17-Oct-2022
1382,Revenue,CAHD,South - Commissioned Services,Other Small Contracts,Brunelcare,255.36, 17-Oct-2022
1383,Revenue,CAHD,South - Commissioned Services,Other Small Contracts,Brunelcare,766.08, 17-Oct-2022
1384,Revenue,CAHD,South - Commissioned Services,Other Small Contracts,Brunelcare,303.24, 17-Oct-2022
1385,Revenue,CAHD,South - Commissioned Services,Other Small Contracts,Brunelcare,643.72, 17-Oct-2022
1386,Revenue,CAHD,South - Commissioned Services,Other Small Contracts,Brunelcare,255.36, 17-Oct-2022
1387,Revenue,CAHD,South - Commissioned Services,Other Small Contracts,Brunelcare,127.68, 17-Oct-2022
1388,Revenue,CAHD,South - Commissioned Services,Other Small Contracts,Brunelcare,558.60, 17-Oct-2022
1389,Revenue,CAHD,South - Commissioned Services,Other Small Contracts,Brunelcare,861.84, 17-Oct-2022
1390,Revenue,CAHD,South - Commissioned Services,Other Small Contracts,Brunelcare,335.16, 17-Oct-2022
1391,Revenue,CAHD,South - Commissioned Services,Other Small Contracts,Brunelcare,388.36, 17-Oct-2022
1392,Revenue,CAHD,South - Commissioned Services,Other Small Contracts,Brunelcare,590.52, 17-Oct-2022
1393,Revenue,CAHD,South - Commissioned Services,Other Small Contracts,Brunelcare,877.80, 17-Oct-2022
1394,Revenue,CAHD,South - Commissioned Services,Other Small Contracts,Brunelcare,734.16, 17-Oct-2022
1395,Revenue,CAHD,South - Commissioned Services,Other Small Contracts,Brunelcare,1005.48, 17-Oct-2022
1396,Revenue,CAHD,South - Commissioned Services,Other Small Contracts,Brunelcare,414.96, 17-Oct-2022
1397,Revenue,CAHD,South - Commissioned Services,Other Small Contracts,Brunelcare,1372.56, 17-Oct-2022
1398,Revenue,CAHD,South - Commissioned Services,Other Small Contracts,Brunelcare,585.20, 17-Oct-2022
1399,Revenue,CAHD,South - Commissioned Services,Other Small Contracts,Brunelcare,1000.16, 17-Oct-2022
1400,Revenue,CAHD,South - Commissioned Services,Other Small Contracts,Brunelcare,1319.36, 17-Oct-2022
1401,Revenue,CAHD,South - Commissioned Services,Other Small Contracts,Brunelcare,446.88, 17-Oct-2022
1402,Revenue,CAHD,South - Commissioned Services,Other Small Contracts,Brunelcare,601.16, 17-Oct-2022
1403,Revenue,CAHD,South - Commissioned Services,Other Small Contracts,Brunelcare,1351.28, 17-Oct-2022
1404,Revenue,CAHD,South - Commissioned Services,Other Small Contracts,Brunelcare,3181.36, 17-Oct-2022
1405,Revenue,CAHD,South - Commissioned Services,Other Small Contracts,Brunelcare,319.20, 17-Oct-2022
1406,Revenue,CAHD,South - Commissioned Services,Mentoring,Brunelcare,42.56, 17-Oct-2022
1407,Revenue,CAHD,South - Commissioned Services,Mentoring,Brunelcare,164.92, 17-Oct-2022
1408,Revenue,CAHD,North - Community based support,Other Small Contracts,Brunelcare,1542.80, 17-Oct-2022
1409,Revenue,CAHD,Central - Commissioned Services,Other Small Contracts,Brunelcare,313.46, 17-Oct-2022
1410,Revenue,CAHD,Central - Commissioned Services,Other Small Contracts,Brunelcare,1268.13, 17-Oct-2022
1411,Revenue,CAHD,South - Commissioned Services,Other Small Contracts,Brunelcare,495.28, 17-Oct-2022
1412,Revenue,CAHD,South - Commissioned Services,Other Small Contracts,Brunelcare,342.25, 17-Oct-2022
1413,Revenue,CAHD,South - Commissioned Services,Other Small Contracts,Brunelcare,280.08, 17-Oct-2022
1414,Revenue,CAHD,South - Commissioned Services,Other Small Contracts,Brunelcare,540.34, 17-Oct-2022
1415,Revenue,CAHD,South - Commissioned Services,Other Small Contracts,Brunelcare,759.92, 17-Oct-2022
1416,Revenue,CAHD,South - Commissioned Services,Other Small Contracts,Brunelcare,1343.34, 17-Oct-2022
1417,Revenue,CAHD,South - Commissioned Services,Other Small Contracts,Brunelcare,780.99, 17-Oct-2022
1418,Revenue,CAHD,South - Commissioned Services,Other Small Contracts,Brunelcare,451.57, 17-Oct-2022
1419,Revenue,CAHD,South - Commissioned Services,Other Small Contracts,Brunelcare,434.88, 17-Oct-2022
1420,Revenue,CAHD,South - Commissioned Services,Other Small Contracts,Brunelcare,2700.45, 17-Oct-2022
1421,Revenue,CAHD,South - Commissioned Services,Other Small Contracts,Brunelcare,1312.88, 17-Oct-2022
1422,Revenue,CAHD,South - Commissioned Services,Other Small Contracts,Brunelcare,453.03, 17-Oct-2022
1423,Revenue,CAHD,South - Commissioned Services,Other Small Contracts,Brunelcare,1061.80, 17-Oct-2022
1424,Revenue,CAHD,South - Commissioned Services,Other Small Contracts,Brunelcare,307.62, 17-Oct-2022
1425,Revenue,CAHD,South - Commissioned Services,Other Small Contracts,Brunelcare,297.50, 17-Oct-2022
1426,Revenue,CAHD,South - Commissioned Services,Other Small Contracts,Brunelcare,897.82, 17-Oct-2022
1427,Revenue,CAHD,South - Commissioned Services,Other Small Contracts,Brunelcare,572.26, 17-Oct-2022
1428,Revenue,CAHD,South - Commissioned Services,Other Small Contracts,Brunelcare,313.46, 17-Oct-2022
1429,Revenue,CAHD,South - Commissioned Services,Other Small Contracts,Brunelcare,434.88, 17-Oct-2022
1430,Revenue,CAHD,South - Commissioned Services,Other Small Contracts,Brunelcare,1333.43, 17-Oct-2022
1431,Revenue,CAHD,South - Commissioned Services,Other Small Contracts,Brunelcare,88.04, 17-Oct-2022
1432,Revenue,CAHD,South - Commissioned Services,Other Small Contracts,Brunelcare,647.99, 17-Oct-2022
1433,Revenue,CAHD,South - Commissioned Services,Other Small Contracts,Brunelcare,132.06, 17-Oct-2022
1434,Revenue,CAHD,South - Commissioned Services,Other Small Contracts,Brunelcare,802.27, 17-Oct-2022
1435,Revenue,CAHD,South - Commissioned Services,Other Small Contracts,Brunelcare,588.22, 17-Oct-2022
1436,Revenue,CAHD,South - Commissioned Services,Other Small Contracts,Brunelcare,76.67, 17-Oct-2022
1437,Revenue,CAHD,South - Commissioned Services,Other Small Contracts,Brunelcare,3506.89, 17-Oct-2022
1438,Revenue,CAHD,South - Commissioned Services,Other Small Contracts,Brunelcare,242.84, 17-Oct-2022
1439,Revenue,CAHD,South - Commissioned Services,Other Small Contracts,Brunelcare,1226.51, 17-Oct-2022
1440,Revenue,CAHD,South - Commissioned Services,Other Small Contracts,Brunelcare,794.55, 17-Oct-2022
1441,Revenue,CAHD,South - Commissioned Services,Other Small Contracts,Brunelcare,908.67, 17-Oct-2022
1442,Revenue,CAHD,South - Commissioned Services,Other Small Contracts,Brunelcare,176.08, 17-Oct-2022
1443,Revenue,CAHD,South - Commissioned Services,Other Small Contracts,Brunelcare,297.50, 17-Oct-2022
1444,Revenue,CAHD,South - Commissioned Services,Other Small Contracts,Brunelcare,1591.50, 17-Oct-2022
1445,Revenue,CAHD,South - Commissioned Services,Other Small Contracts,Brunelcare,302.61, 17-Oct-2022
1446,Revenue,CAHD,South - Commissioned Services,Other Small Contracts,Brunelcare,1182.49, 17-Oct-2022
1447,Revenue,CAHD,South - Commissioned Services,Other Small Contracts,Brunelcare,605.64, 17-Oct-2022
1448,Revenue,CAHD,South - Commissioned Services,Other Small Contracts,Brunelcare,494.86, 17-Oct-2022
1449,Revenue,CAHD,South - Commissioned Services,Other Small Contracts,Brunelcare,1397.27, 17-Oct-2022
1450,Revenue,CAHD,South - Commissioned Services,Other Small Contracts,Brunelcare,133.52, 17-Oct-2022
1451,Revenue,CAHD,South - Commissioned Services,Other Small Contracts,Brunelcare,209.46, 17-Oct-2022
1452,Revenue,CAHD,South - Commissioned Services,Other Small Contracts,Brunelcare,495.59, 17-Oct-2022
1453,Revenue,CAHD,South - Commissioned Services,Other Small Contracts,Brunelcare,326.39, 17-Oct-2022
1454,Revenue,CAHD,South - Commissioned Services,Other Small Contracts,Brunelcare,273.30, 17-Oct-2022
1455,Revenue,CAHD,South - Commissioned Services,Other Small Contracts,Brunelcare,1017.78, 17-Oct-2022
1456,Revenue,CAHD,South - Commissioned Services,Other Small Contracts,Brunelcare,307.93, 17-Oct-2022
1457,Revenue,CAHD,South - Commissioned Services,Other Small Contracts,Brunelcare,759.71, 17-Oct-2022
1458,Revenue,CAHD,South - Commissioned Services,Other Small Contracts,Brunelcare,248.16, 17-Oct-2022
1459,Revenue,CAHD,South - Commissioned Services,Other Small Contracts,Brunelcare,106.40, 17-Oct-2022
1460,Revenue,CAHD,South - Commissioned Services,Other Small Contracts,Brunelcare,560.16, 17-Oct-2022
1461,Revenue,CAHD,South - Commissioned Services,Other Small Contracts,Brunelcare,947.16, 17-Oct-2022
1462,Revenue,CAHD,South - Commissioned Services,Other Small Contracts,Brunelcare,352.16, 17-Oct-2022
1463,Revenue,CAHD,South - Commissioned Services,Other Small Contracts,Brunelcare,908.46, 17-Oct-2022
1464,Revenue,CAHD,South - Commissioned Services,Other Small Contracts,Brunelcare,656.44, 17-Oct-2022
1465,Revenue,CAHD,South - Commissioned Services,Other Small Contracts,Brunelcare,884.99, 17-Oct-2022
1466,Revenue,CAHD,South - Commissioned Services,Other Small Contracts,Brunelcare,738.43, 17-Oct-2022
1467,Revenue,CAHD,South - Commissioned Services,Other Small Contracts,Brunelcare,1083.08, 17-Oct-2022
1468,Revenue,CAHD,South - Commissioned Services,Other Small Contracts,Brunelcare,478.90, 17-Oct-2022
1469,Revenue,CAHD,South - Commissioned Services,Other Small Contracts,Brunelcare,1408.64, 17-Oct-2022
1470,Revenue,CAHD,South - Commissioned Services,Other Small Contracts,Brunelcare,675.53, 17-Oct-2022
1471,Revenue,CAHD,South - Commissioned Services,Other Small Contracts,Brunelcare,1103.11, 17-Oct-2022
1472,Revenue,CAHD,South - Commissioned Services,Other Small Contracts,Brunelcare,1251.44, 17-Oct-2022
1473,Revenue,CAHD,South - Commissioned Services,Other Small Contracts,Brunelcare,519.79, 17-Oct-2022
1474,Revenue,CAHD,South - Commissioned Services,Other Small Contracts,Brunelcare,610.96, 17-Oct-2022
1475,Revenue,CAHD,South - Commissioned Services,Other Small Contracts,Brunelcare,1541.01, 17-Oct-2022
1476,Revenue,CAHD,South - Commissioned Services,Other Small Contracts,Brunelcare,352.16, 17-Oct-2022
1477,Revenue,CAHD,South - Commissioned Services,Mentoring,Brunelcare,24.20, 17-Oct-2022
1478,Revenue,CAHD,South - Commissioned Services,Mentoring,Brunelcare,88.77, 17-Oct-2022
1479,Revenue,CAHD,North - Community based support,Other Small Contracts,Brunelcare,1520.15, 17-Oct-2022
1480,Revenue,CAHD,Central - Commissioned Services,Other Small Contracts,Brunelcare,369.05, 17-Oct-2022
1481,Revenue,CAHD,Central - Commissioned Services,Other Small Contracts,Brunelcare,1367.30, 17-Oct-2022
1482,Revenue,CAHD,South - Commissioned Services,Other Small Contracts,Brunelcare,580.80, 17-Oct-2022
1483,Revenue,CAHD,South - Commissioned Services,Other Small Contracts,Brunelcare,484.00, 17-Oct-2022
1484,Revenue,CAHD,South - Commissioned Services,Other Small Contracts,Brunelcare,326.70, 17-Oct-2022
1485,Revenue,CAHD,South - Commissioned Services,Other Small Contracts,Brunelcare,544.50, 17-Oct-2022
1486,Revenue,CAHD,South - Commissioned Services,Other Small Contracts,Brunelcare,913.55, 17-Oct-2022
1487,Revenue,CAHD,South - Commissioned Services,Other Small Contracts,Brunelcare,1427.80, 17-Oct-2022
1488,Revenue,CAHD,South - Commissioned Services,Other Small Contracts,Brunelcare,859.10, 17-Oct-2022
1489,Revenue,CAHD,South - Commissioned Services,Other Small Contracts,Brunelcare,502.15, 17-Oct-2022
1490,Revenue,CAHD,South - Commissioned Services,Other Small Contracts,Brunelcare,484.00, 17-Oct-2022
1491,Revenue,CAHD,South - Commissioned Services,Other Small Contracts,Brunelcare,2595.45, 17-Oct-2022
1492,Revenue,CAHD,South - Commissioned Services,Other Small Contracts,Brunelcare,1470.15, 17-Oct-2022
1493,Revenue,CAHD,South - Commissioned Services,Other Small Contracts,Brunelcare,520.30, 17-Oct-2022
1494,Revenue,CAHD,South - Commissioned Services,Other Small Contracts,Brunelcare,1240.25, 17-Oct-2022
1495,Revenue,CAHD,South - Commissioned Services,Other Small Contracts,Brunelcare,308.55, 17-Oct-2022
1496,Revenue,CAHD,South - Commissioned Services,Other Small Contracts,Brunelcare,314.60, 17-Oct-2022
1497,Revenue,CAHD,South - Commissioned Services,Other Small Contracts,Brunelcare,980.10, 17-Oct-2022
1498,Revenue,CAHD,South - Commissioned Services,Other Small Contracts,Brunelcare,671.55, 17-Oct-2022
1499,Revenue,CAHD,South - Commissioned Services,Other Small Contracts,Brunelcare,356.95, 17-Oct-2022
1500,Revenue,CAHD,South - Commissioned Services,Other Small Contracts,Brunelcare,484.00, 17-Oct-2022
1501,Revenue,CAHD,South - Commissioned Services,Other Small Contracts,Brunelcare,1518.55, 17-Oct-2022
1502,Revenue,CAHD,South - Commissioned Services,Other Small Contracts,Brunelcare,60.50, 17-Oct-2022
1503,Revenue,CAHD,South - Commissioned Services,Other Small Contracts,Brunelcare,786.50, 17-Oct-2022
1504,Revenue,CAHD,South - Commissioned Services,Other Small Contracts,Brunelcare,145.20, 17-Oct-2022
1505,Revenue,CAHD,South - Commissioned Services,Other Small Contracts,Brunelcare,901.45, 17-Oct-2022
1506,Revenue,CAHD,South - Commissioned Services,Other Small Contracts,Brunelcare,671.55, 17-Oct-2022
1507,Revenue,CAHD,South - Commissioned Services,Other Small Contracts,Brunelcare,90.75, 17-Oct-2022
1508,Revenue,CAHD,South - Commissioned Services,Other Small Contracts,Brunelcare,3666.30, 17-Oct-2022
1509,Revenue,CAHD,South - Commissioned Services,Other Small Contracts,Brunelcare,266.20, 17-Oct-2022
1510,Revenue,CAHD,South - Commissioned Services,Other Small Contracts,Brunelcare,1403.60, 17-Oct-2022
1511,Revenue,CAHD,South - Commissioned Services,Other Small Contracts,Brunelcare,822.80, 17-Oct-2022
1512,Revenue,CAHD,South - Commissioned Services,Other Small Contracts,Brunelcare,853.05, 17-Oct-2022
1513,Revenue,CAHD,South - Commissioned Services,Other Small Contracts,Brunelcare,181.50, 17-Oct-2022
1514,Revenue,CAHD,South - Commissioned Services,Other Small Contracts,Brunelcare,338.80, 17-Oct-2022
1515,Revenue,CAHD,South - Commissioned Services,Other Small Contracts,Brunelcare,1700.05, 17-Oct-2022
1516,Revenue,CAHD,South - Commissioned Services,Other Small Contracts,Brunelcare,447.70, 17-Oct-2022
1517,Revenue,CAHD,South - Commissioned Services,Other Small Contracts,Brunelcare,1337.05, 17-Oct-2022
1518,Revenue,CAHD,South - Commissioned Services,Other Small Contracts,Brunelcare,659.45, 17-Oct-2022
1519,Revenue,CAHD,South - Commissioned Services,Other Small Contracts,Brunelcare,508.20, 17-Oct-2022
1520,Revenue,CAHD,South - Commissioned Services,Other Small Contracts,Brunelcare,1536.70, 17-Oct-2022
1521,Revenue,CAHD,South - Commissioned Services,Other Small Contracts,Brunelcare,163.35, 17-Oct-2022
1522,Revenue,CAHD,South - Commissioned Services,Other Small Contracts,Brunelcare,211.75, 17-Oct-2022
1523,Revenue,CAHD,South - Commissioned Services,Other Small Contracts,Brunelcare,598.95, 17-Oct-2022
1524,Revenue,CAHD,South - Commissioned Services,Other Small Contracts,Brunelcare,1113.20, 17-Oct-2022
1525,Revenue,CAHD,South - Commissioned Services,Other Small Contracts,Brunelcare,205.70, 17-Oct-2022
1526,Revenue,CAHD,South - Commissioned Services,Other Small Contracts,Brunelcare,629.20, 17-Oct-2022
1527,Revenue,CAHD,South - Commissioned Services,Other Small Contracts,Brunelcare,471.90, 17-Oct-2022
1528,Revenue,CAHD,South - Commissioned Services,Other Small Contracts,Brunelcare,762.30, 17-Oct-2022
1529,Revenue,CAHD,South - Commissioned Services,Other Small Contracts,Brunelcare,254.10, 17-Oct-2022
1530,Revenue,CAHD,South - Commissioned Services,Other Small Contracts,Brunelcare,181.50, 17-Oct-2022
1531,Revenue,CAHD,South - Commissioned Services,Other Small Contracts,Brunelcare,393.25, 17-Oct-2022
1532,Revenue,CAHD,South - Commissioned Services,Other Small Contracts,Brunelcare,961.95, 17-Oct-2022
1533,Revenue,CAHD,South - Commissioned Services,Other Small Contracts,Brunelcare,369.05, 17-Oct-2022
1534,Revenue,CAHD,South - Commissioned Services,Other Small Contracts,Brunelcare,980.10, 17-Oct-2022
1535,Revenue,CAHD,South - Commissioned Services,Other Small Contracts,Brunelcare,677.60, 17-Oct-2022
1536,Revenue,CAHD,South - Commissioned Services,Other Small Contracts,Brunelcare,949.85, 17-Oct-2022
1537,Revenue,CAHD,South - Commissioned Services,Other Small Contracts,Brunelcare,822.80, 17-Oct-2022
1538,Revenue,CAHD,South - Commissioned Services,Other Small Contracts,Brunelcare,871.20, 17-Oct-2022
1539,Revenue,CAHD,South - Commissioned Services,Other Small Contracts,Brunelcare,429.55, 17-Oct-2022
1540,Revenue,CAHD,South - Commissioned Services,Other Small Contracts,Brunelcare,1554.85, 17-Oct-2022
1541,Revenue,CAHD,South - Commissioned Services,Other Small Contracts,Brunelcare,695.75, 17-Oct-2022
1542,Revenue,CAHD,South - Commissioned Services,Other Small Contracts,Brunelcare,1300.75, 17-Oct-2022
1543,Revenue,CAHD,South - Commissioned Services,Other Small Contracts,Brunelcare,1500.40, 17-Oct-2022
1544,Revenue,CAHD,South - Commissioned Services,Other Small Contracts,Brunelcare,580.80, 17-Oct-2022
1545,Revenue,CAHD,South - Commissioned Services,Other Small Contracts,Brunelcare,641.30, 17-Oct-2022
1546,Revenue,CAHD,South - Commissioned Services,Other Small Contracts,Brunelcare,2081.20, 17-Oct-2022
1547,Revenue,CAHD,South - Commissioned Services,Other Small Contracts,Brunelcare,411.40, 17-Oct-2022
1548,Revenue,CAHD,South - Commissioned Services,Mentoring,Brunelcare,48.40, 17-Oct-2022
1549,Revenue,CAHD,South - Commissioned Services,Mentoring,Brunelcare,193.60, 17-Oct-2022
1550,Revenue,CAHD,North - Community based support,Other Small Contracts,Brunelcare,1718.20, 17-Oct-2022
1551,Revenue,CAHD,Central - Commissioned Services,Other Small Contracts,Brunelcare,356.95, 17-Oct-2022
1552,Revenue,CAHD,Central - Commissioned Services,Other Small Contracts,Brunelcare,1282.60, 17-Oct-2022
1553,Revenue,CAHD,South - Commissioned Services,Other Small Contracts,Brunelcare,659.45, 17-Oct-2022
1554,Revenue,CAHD,South - Commissioned Services,Other Small Contracts,Brunelcare,477.95, 17-Oct-2022
1555,Revenue,CAHD,South - Commissioned Services,Other Small Contracts,Brunelcare,181.50, 17-Oct-2022
1556,Revenue,CAHD,South - Commissioned Services,Other Small Contracts,Brunelcare,586.85, 17-Oct-2022
1557,Revenue,CAHD,South - Commissioned Services,Other Small Contracts,Brunelcare,804.65, 17-Oct-2022
1558,Revenue,CAHD,South - Commissioned Services,Other Small Contracts,Brunelcare,1512.50, 17-Oct-2022
1559,Revenue,CAHD,South - Commissioned Services,Other Small Contracts,Brunelcare,853.05, 17-Oct-2022
1560,Revenue,CAHD,South - Commissioned Services,Other Small Contracts,Brunelcare,526.35, 17-Oct-2022
1561,Revenue,CAHD,South - Commissioned Services,Other Small Contracts,Brunelcare,508.20, 17-Oct-2022
1562,Revenue,CAHD,South - Commissioned Services,Other Small Contracts,Brunelcare,2026.75, 17-Oct-2022
1563,Revenue,CAHD,South - Commissioned Services,Other Small Contracts,Brunelcare,266.20, 17-Oct-2022
1564,Revenue,CAHD,South - Commissioned Services,Other Small Contracts,Brunelcare,562.65, 17-Oct-2022
1565,Revenue,CAHD,South - Commissioned Services,Other Small Contracts,Brunelcare,1161.60, 17-Oct-2022
1566,Revenue,CAHD,South - Commissioned Services,Other Small Contracts,Brunelcare,411.40, 17-Oct-2022
1567,Revenue,CAHD,South - Commissioned Services,Other Small Contracts,Brunelcare,296.45, 17-Oct-2022
1568,Revenue,CAHD,South - Commissioned Services,Other Small Contracts,Brunelcare,998.25, 17-Oct-2022
1569,Revenue,CAHD,South - Commissioned Services,Other Small Contracts,Brunelcare,744.15, 17-Oct-2022
1570,Revenue,CAHD,South - Commissioned Services,Other Small Contracts,Brunelcare,356.95, 17-Oct-2022
1571,Revenue,CAHD,South - Commissioned Services,Other Small Contracts,Brunelcare,484.00, 17-Oct-2022
1572,Revenue,CAHD,South - Commissioned Services,Other Small Contracts,Brunelcare,1433.85, 17-Oct-2022
1573,Revenue,CAHD,South - Commissioned Services,Other Small Contracts,Brunelcare,96.80, 17-Oct-2022
1574,Revenue,CAHD,South - Commissioned Services,Other Small Contracts,Brunelcare,659.45, 17-Oct-2022
1575,Revenue,CAHD,South - Commissioned Services,Other Small Contracts,Brunelcare,145.20, 17-Oct-2022
1576,Revenue,CAHD,South - Commissioned Services,Other Small Contracts,Brunelcare,943.80, 17-Oct-2022
1577,Revenue,CAHD,South - Commissioned Services,Other Small Contracts,Brunelcare,677.60, 17-Oct-2022
1578,Revenue,CAHD,South - Commissioned Services,Other Small Contracts,Brunelcare,54.45, 17-Oct-2022
1579,Revenue,CAHD,South - Commissioned Services,Other Small Contracts,Brunelcare,3515.05, 17-Oct-2022
1580,Revenue,CAHD,South - Commissioned Services,Other Small Contracts,Brunelcare,290.40, 17-Oct-2022
1581,Revenue,CAHD,South - Commissioned Services,Other Small Contracts,Brunelcare,1415.70, 17-Oct-2022
1582,Revenue,CAHD,South - Commissioned Services,Other Small Contracts,Brunelcare,465.85, 17-Oct-2022
1583,Revenue,CAHD,South - Commissioned Services,Other Small Contracts,Brunelcare,780.45, 17-Oct-2022
1584,Revenue,CAHD,South - Commissioned Services,Other Small Contracts,Brunelcare,193.60, 17-Oct-2022
1585,Revenue,CAHD,South - Commissioned Services,Other Small Contracts,Brunelcare,326.70, 17-Oct-2022
1586,Revenue,CAHD,South - Commissioned Services,Other Small Contracts,Brunelcare,1663.75, 17-Oct-2022
1587,Revenue,CAHD,South - Commissioned Services,Other Small Contracts,Brunelcare,465.85, 17-Oct-2022
1588,Revenue,CAHD,South - Commissioned Services,Other Small Contracts,Brunelcare,1742.40, 17-Oct-2022
1589,Revenue,CAHD,South - Commissioned Services,Other Small Contracts,Brunelcare,653.40, 17-Oct-2022
1590,Revenue,CAHD,South - Commissioned Services,Other Small Contracts,Brunelcare,459.80, 17-Oct-2022
1591,Revenue,CAHD,South - Commissioned Services,Other Small Contracts,Brunelcare,260.15, 17-Oct-2022
1592,Revenue,CAHD,South - Commissioned Services,Other Small Contracts,Brunelcare,163.35, 17-Oct-2022
1593,Revenue,CAHD,South - Commissioned Services,Other Small Contracts,Brunelcare,229.90, 17-Oct-2022
1594,Revenue,CAHD,South - Commissioned Services,Other Small Contracts,Brunelcare,580.80, 17-Oct-2022
1595,Revenue,CAHD,South - Commissioned Services,Other Small Contracts,Brunelcare,925.65, 17-Oct-2022
1596,Revenue,CAHD,South - Commissioned Services,Other Small Contracts,Brunelcare,235.95, 17-Oct-2022
1597,Revenue,CAHD,South - Commissioned Services,Other Small Contracts,Brunelcare,913.55, 17-Oct-2022
1598,Revenue,CAHD,South - Commissioned Services,Other Small Contracts,Brunelcare,490.05, 17-Oct-2022
1599,Revenue,CAHD,South - Commissioned Services,Other Small Contracts,Brunelcare,665.50, 17-Oct-2022
1600,Revenue,CAHD,South - Commissioned Services,Other Small Contracts,Brunelcare,272.25, 17-Oct-2022
1601,Revenue,CAHD,South - Commissioned Services,Other Small Contracts,Brunelcare,193.60, 17-Oct-2022
1602,Revenue,CAHD,South - Commissioned Services,Other Small Contracts,Brunelcare,586.85, 17-Oct-2022
1603,Revenue,CAHD,South - Commissioned Services,Other Small Contracts,Brunelcare,1040.60, 17-Oct-2022
1604,Revenue,CAHD,South - Commissioned Services,Other Small Contracts,Brunelcare,387.20, 17-Oct-2022
1605,Revenue,CAHD,South - Commissioned Services,Other Small Contracts,Brunelcare,780.45, 17-Oct-2022
1606,Revenue,CAHD,South - Commissioned Services,Other Small Contracts,Brunelcare,756.25, 17-Oct-2022
1607,Revenue,CAHD,South - Commissioned Services,Other Small Contracts,Brunelcare,980.10, 17-Oct-2022
1608,Revenue,CAHD,South - Commissioned Services,Other Small Contracts,Brunelcare,840.95, 17-Oct-2022
1609,Revenue,CAHD,South - Commissioned Services,Other Small Contracts,Brunelcare,804.65, 17-Oct-2022
1610,Revenue,CAHD,South - Commissioned Services,Other Small Contracts,Brunelcare,435.60, 17-Oct-2022
1611,Revenue,CAHD,South - Commissioned Services,Other Small Contracts,Brunelcare,1548.80, 17-Oct-2022
1612,Revenue,CAHD,South - Commissioned Services,Other Small Contracts,Brunelcare,671.55, 17-Oct-2022
1613,Revenue,CAHD,South - Commissioned Services,Other Small Contracts,Brunelcare,1343.10, 17-Oct-2022
1614,Revenue,CAHD,South - Commissioned Services,Other Small Contracts,Brunelcare,1609.30, 17-Oct-2022
1615,Revenue,CAHD,South - Commissioned Services,Other Small Contracts,Brunelcare,538.45, 17-Oct-2022
1616,Revenue,CAHD,South - Commissioned Services,Other Small Contracts,Brunelcare,671.55, 17-Oct-2022
1617,Revenue,CAHD,South - Commissioned Services,Other Small Contracts,Brunelcare,1984.40, 17-Oct-2022
1618,Revenue,CAHD,South - Commissioned Services,Other Small Contracts,Brunelcare,332.75, 17-Oct-2022
1619,Revenue,CAHD,South - Commissioned Services,Mentoring,Brunelcare,181.50, 17-Oct-2022
1620,Revenue,CAHD,South - Commissioned Services,Mentoring,Brunelcare,48.40, 17-Oct-2022
1621,Revenue,CAHD,South - Commissioned Services,Mentoring,Brunelcare,96.80, 17-Oct-2022
1622,Revenue,CAHD,South - Commissioned Services,Mentoring,Brunelcare,193.60, 17-Oct-2022
1623,Revenue,CAHD,South - Commissioned Services,Mentoring,Brunelcare,175.45, 17-Oct-2022
1624,Revenue,CAHD,North - Community based support,Other Small Contracts,Brunelcare,1687.95, 17-Oct-2022
1625,Revenue,CAHD,Central - Commissioned Services,Other Small Contracts,Brunelcare,260.15, 17-Oct-2022
1626,Revenue,CAHD,Central - Commissioned Services,Other Small Contracts,Brunelcare,1010.35, 17-Oct-2022
1627,Revenue,CAHD,South - Commissioned Services,Other Small Contracts,Brunelcare,520.30, 17-Oct-2022
1628,Revenue,CAHD,South - Commissioned Services,Other Small Contracts,Brunelcare,344.85, 17-Oct-2022
1629,Revenue,CAHD,South - Commissioned Services,Other Small Contracts,Brunelcare,181.50, 17-Oct-2022
1630,Revenue,CAHD,South - Commissioned Services,Other Small Contracts,Brunelcare,447.70, 17-Oct-2022
1631,Revenue,CAHD,South - Commissioned Services,Other Small Contracts,Brunelcare,490.05, 17-Oct-2022
1632,Revenue,CAHD,South - Commissioned Services,Other Small Contracts,Brunelcare,1125.30, 17-Oct-2022
1633,Revenue,CAHD,South - Commissioned Services,Other Small Contracts,Brunelcare,647.35, 17-Oct-2022
1634,Revenue,CAHD,South - Commissioned Services,Other Small Contracts,Brunelcare,381.15, 17-Oct-2022
1635,Revenue,CAHD,South - Commissioned Services,Other Small Contracts,Brunelcare,381.15, 17-Oct-2022
1636,Revenue,CAHD,South - Commissioned Services,Other Small Contracts,Brunelcare,2480.50, 17-Oct-2022
1637,Revenue,CAHD,South - Commissioned Services,Other Small Contracts,Brunelcare,471.90, 17-Oct-2022
1638,Revenue,CAHD,South - Commissioned Services,Other Small Contracts,Brunelcare,889.35, 17-Oct-2022
1639,Revenue,CAHD,South - Commissioned Services,Other Small Contracts,Brunelcare,181.50, 17-Oct-2022
1640,Revenue,CAHD,South - Commissioned Services,Other Small Contracts,Brunelcare,217.80, 17-Oct-2022
1641,Revenue,CAHD,South - Commissioned Services,Other Small Contracts,Brunelcare,738.10, 17-Oct-2022
1642,Revenue,CAHD,South - Commissioned Services,Other Small Contracts,Brunelcare,520.30, 17-Oct-2022
1643,Revenue,CAHD,South - Commissioned Services,Other Small Contracts,Brunelcare,272.25, 17-Oct-2022
1644,Revenue,CAHD,South - Commissioned Services,Other Small Contracts,Brunelcare,356.95, 17-Oct-2022
1645,Revenue,CAHD,South - Commissioned Services,Other Small Contracts,Brunelcare,1179.75, 17-Oct-2022
1646,Revenue,CAHD,South - Commissioned Services,Other Small Contracts,Brunelcare,72.60, 17-Oct-2022
1647,Revenue,CAHD,South - Commissioned Services,Other Small Contracts,Brunelcare,556.60, 17-Oct-2022
1648,Revenue,CAHD,South - Commissioned Services,Other Small Contracts,Brunelcare,108.90, 17-Oct-2022
1649,Revenue,CAHD,South - Commissioned Services,Other Small Contracts,Brunelcare,719.95, 17-Oct-2022
1650,Revenue,CAHD,South - Commissioned Services,Other Small Contracts,Brunelcare,490.05, 17-Oct-2022
1651,Revenue,CAHD,South - Commissioned Services,Other Small Contracts,Brunelcare,114.23, 17-Oct-2022
1652,Revenue,CAHD,South - Commissioned Services,Other Small Contracts,Brunelcare,2849.55, 17-Oct-2022
1653,Revenue,CAHD,South - Commissioned Services,Other Small Contracts,Brunelcare,217.80, 17-Oct-2022
1654,Revenue,CAHD,South - Commissioned Services,Other Small Contracts,Brunelcare,1101.10, 17-Oct-2022
1655,Revenue,CAHD,South - Commissioned Services,Other Small Contracts,Brunelcare,332.75, 17-Oct-2022
1656,Revenue,CAHD,South - Commissioned Services,Other Small Contracts,Brunelcare,127.05, 17-Oct-2022
1657,Revenue,CAHD,South - Commissioned Services,Other Small Contracts,Brunelcare,235.95, 17-Oct-2022
1658,Revenue,CAHD,South - Commissioned Services,Other Small Contracts,Brunelcare,1264.45, 17-Oct-2022
1659,Revenue,CAHD,South - Commissioned Services,Other Small Contracts,Brunelcare,169.40, 17-Oct-2022
1660,Revenue,CAHD,South - Commissioned Services,Other Small Contracts,Brunelcare,1881.55, 17-Oct-2022
1661,Revenue,CAHD,South - Commissioned Services,Other Small Contracts,Brunelcare,514.25, 17-Oct-2022
1662,Revenue,CAHD,South - Commissioned Services,Other Small Contracts,Brunelcare,387.20, 17-Oct-2022
1663,Revenue,CAHD,South - Commissioned Services,Other Small Contracts,Brunelcare,114.95, 17-Oct-2022
1664,Revenue,CAHD,South - Commissioned Services,Other Small Contracts,Brunelcare,175.45, 17-Oct-2022
1665,Revenue,CAHD,South - Commissioned Services,Other Small Contracts,Brunelcare,471.90, 17-Oct-2022
1666,Revenue,CAHD,South - Commissioned Services,Other Small Contracts,Brunelcare,744.15, 17-Oct-2022
1667,Revenue,CAHD,South - Commissioned Services,Other Small Contracts,Brunelcare,350.90, 17-Oct-2022
1668,Revenue,CAHD,South - Commissioned Services,Other Small Contracts,Brunelcare,726.00, 17-Oct-2022
1669,Revenue,CAHD,South - Commissioned Services,Other Small Contracts,Brunelcare,48.40, 17-Oct-2022
1670,Revenue,CAHD,South - Commissioned Services,Other Small Contracts,Brunelcare,344.85, 17-Oct-2022
1671,Revenue,CAHD,South - Commissioned Services,Other Small Contracts,Brunelcare,508.20, 17-Oct-2022
1672,Revenue,CAHD,South - Commissioned Services,Other Small Contracts,Brunelcare,181.50, 17-Oct-2022
1673,Revenue,CAHD,South - Commissioned Services,Other Small Contracts,Brunelcare,145.20, 17-Oct-2022
1674,Revenue,CAHD,South - Commissioned Services,Other Small Contracts,Brunelcare,490.05, 17-Oct-2022
1675,Revenue,CAHD,South - Commissioned Services,Other Small Contracts,Brunelcare,726.00, 17-Oct-2022
1676,Revenue,CAHD,South - Commissioned Services,Other Small Contracts,Brunelcare,254.10, 17-Oct-2022
1677,Revenue,CAHD,South - Commissioned Services,Other Small Contracts,Brunelcare,816.75, 17-Oct-2022
1678,Revenue,CAHD,South - Commissioned Services,Other Small Contracts,Brunelcare,611.05, 17-Oct-2022
1679,Revenue,CAHD,South - Commissioned Services,Other Small Contracts,Brunelcare,635.25, 17-Oct-2022
1680,Revenue,CAHD,South - Commissioned Services,Other Small Contracts,Brunelcare,653.40, 17-Oct-2022
1681,Revenue,CAHD,South - Commissioned Services,Other Small Contracts,Brunelcare,719.95, 17-Oct-2022
1682,Revenue,CAHD,South - Commissioned Services,Other Small Contracts,Brunelcare,369.05, 17-Oct-2022
1683,Revenue,CAHD,South - Commissioned Services,Other Small Contracts,Brunelcare,1161.60, 17-Oct-2022
1684,Revenue,CAHD,South - Commissioned Services,Other Small Contracts,Brunelcare,502.15, 17-Oct-2022
1685,Revenue,CAHD,South - Commissioned Services,Other Small Contracts,Brunelcare,1004.30, 17-Oct-2022
1686,Revenue,CAHD,South - Commissioned Services,Other Small Contracts,Brunelcare,1234.20, 17-Oct-2022
1687,Revenue,CAHD,South - Commissioned Services,Other Small Contracts,Brunelcare,435.60, 17-Oct-2022
1688,Revenue,CAHD,South - Commissioned Services,Other Small Contracts,Brunelcare,502.15, 17-Oct-2022
1689,Revenue,CAHD,South - Commissioned Services,Other Small Contracts,Brunelcare,1482.25, 17-Oct-2022
1690,Revenue,CAHD,South - Commissioned Services,Other Small Contracts,Brunelcare,229.90, 17-Oct-2022
1691,Revenue,CAHD,South - Commissioned Services,Mentoring,Brunelcare,217.80, 17-Oct-2022
1692,Revenue,CAHD,South - Commissioned Services,Mentoring,Brunelcare,24.20, 17-Oct-2022
1693,Revenue,CAHD,South - Commissioned Services,Mentoring,Brunelcare,145.20, 17-Oct-2022
1694,Revenue,CAHD,South - Commissioned Services,Mentoring,Brunelcare,96.80, 17-Oct-2022
1695,Revenue,CAHD,South - Commissioned Services,Mentoring,Brunelcare,90.75, 17-Oct-2022
1696,Revenue,CAHD,South - Commissioned Services,Mentoring,Brunelcare,96.80, 17-Oct-2022
1697,Revenue,CAHD,South - Commissioned Services,Mentoring,Brunelcare,193.60, 17-Oct-2022
1698,Revenue,CAHD,North - Community based support,Other Small Contracts,Brunelcare,1270.50, 17-Oct-2022
1699,Revenue,CAHD,Central - Commissioned Services,Other Small Contracts,Brunelcare,187.55, 17-Oct-2022
1700,Revenue,CAHD,Central - Commissioned Services,Other Small Contracts,Brunelcare,695.75, 17-Oct-2022
1701,Revenue,CAHD,South - Commissioned Services,Other Small Contracts,Brunelcare,363.00, 17-Oct-2022
1702,Revenue,CAHD,South - Commissioned Services,Other Small Contracts,Brunelcare,235.95, 17-Oct-2022
1703,Revenue,CAHD,South - Commissioned Services,Other Small Contracts,Brunelcare,114.95, 17-Oct-2022
1704,Revenue,CAHD,South - Commissioned Services,Other Small Contracts,Brunelcare,296.45, 17-Oct-2022
1705,Revenue,CAHD,South - Commissioned Services,Other Small Contracts,Brunelcare,393.25, 17-Oct-2022
1706,Revenue,CAHD,South - Commissioned Services,Other Small Contracts,Brunelcare,768.35, 17-Oct-2022
1707,Revenue,CAHD,South - Commissioned Services,Other Small Contracts,Brunelcare,393.25, 17-Oct-2022
1708,Revenue,CAHD,South - Commissioned Services,Other Small Contracts,Brunelcare,254.10, 17-Oct-2022
1709,Revenue,CAHD,South - Commissioned Services,Other Small Contracts,Brunelcare,242.00, 17-Oct-2022
1710,Revenue,CAHD,South - Commissioned Services,Other Small Contracts,Brunelcare,1603.25, 17-Oct-2022
1711,Revenue,CAHD,South - Commissioned Services,Other Small Contracts,Brunelcare,254.10, 17-Oct-2022
1712,Revenue,CAHD,South - Commissioned Services,Other Small Contracts,Brunelcare,556.60, 17-Oct-2022
1713,Revenue,CAHD,South - Commissioned Services,Other Small Contracts,Brunelcare,205.70, 17-Oct-2022
1714,Revenue,CAHD,South - Commissioned Services,Other Small Contracts,Brunelcare,157.30, 17-Oct-2022
1715,Revenue,CAHD,South - Commissioned Services,Other Small Contracts,Brunelcare,356.95, 17-Oct-2022
1716,Revenue,CAHD,South - Commissioned Services,Other Small Contracts,Brunelcare,344.85, 17-Oct-2022
1717,Revenue,CAHD,South - Commissioned Services,Other Small Contracts,Brunelcare,187.55, 17-Oct-2022
1718,Revenue,CAHD,South - Commissioned Services,Other Small Contracts,Brunelcare,181.50, 17-Oct-2022
1719,Revenue,CAHD,South - Commissioned Services,Other Small Contracts,Brunelcare,350.90, 17-Oct-2022
1720,Revenue,CAHD,South - Commissioned Services,Other Small Contracts,Brunelcare,804.65, 17-Oct-2022
1721,Revenue,CAHD,South - Commissioned Services,Other Small Contracts,Brunelcare,48.40, 17-Oct-2022
1722,Revenue,CAHD,South - Commissioned Services,Other Small Contracts,Brunelcare,332.75, 17-Oct-2022
1723,Revenue,CAHD,South - Commissioned Services,Other Small Contracts,Brunelcare,72.60, 17-Oct-2022
1724,Revenue,CAHD,South - Commissioned Services,Other Small Contracts,Brunelcare,453.75, 17-Oct-2022
1725,Revenue,CAHD,South - Commissioned Services,Other Small Contracts,Brunelcare,133.10, 17-Oct-2022
1726,Revenue,CAHD,South - Commissioned Services,Other Small Contracts,Brunelcare,89.68, 17-Oct-2022
1727,Revenue,CAHD,South - Commissioned Services,Other Small Contracts,Brunelcare,1815.00, 17-Oct-2022
1728,Revenue,CAHD,South - Commissioned Services,Other Small Contracts,Brunelcare,145.20, 17-Oct-2022
1729,Revenue,CAHD,South - Commissioned Services,Other Small Contracts,Brunelcare,713.90, 17-Oct-2022
1730,Revenue,CAHD,South - Commissioned Services,Other Small Contracts,Brunelcare,96.80, 17-Oct-2022
1731,Revenue,CAHD,South - Commissioned Services,Other Small Contracts,Brunelcare,163.35, 17-Oct-2022
1732,Revenue,CAHD,South - Commissioned Services,Other Small Contracts,Brunelcare,810.70, 17-Oct-2022
1733,Revenue,CAHD,South - Commissioned Services,Other Small Contracts,Brunelcare,102.85, 17-Oct-2022
1734,Revenue,CAHD,South - Commissioned Services,Other Small Contracts,Brunelcare,1270.50, 17-Oct-2022
1735,Revenue,CAHD,South - Commissioned Services,Other Small Contracts,Brunelcare,350.90, 17-Oct-2022
1736,Revenue,CAHD,South - Commissioned Services,Other Small Contracts,Brunelcare,266.20, 17-Oct-2022
1737,Revenue,CAHD,South - Commissioned Services,Other Small Contracts,Brunelcare,72.60, 17-Oct-2022
1738,Revenue,CAHD,South - Commissioned Services,Other Small Contracts,Brunelcare,121.00, 17-Oct-2022
1739,Revenue,CAHD,South - Commissioned Services,Other Small Contracts,Brunelcare,302.50, 17-Oct-2022
1740,Revenue,CAHD,South - Commissioned Services,Other Small Contracts,Brunelcare,502.15, 17-Oct-2022
1741,Revenue,CAHD,South - Commissioned Services,Other Small Contracts,Brunelcare,175.45, 17-Oct-2022
1742,Revenue,CAHD,South - Commissioned Services,Other Small Contracts,Brunelcare,465.85, 17-Oct-2022
1743,Revenue,CAHD,South - Commissioned Services,Other Small Contracts,Brunelcare,248.05, 17-Oct-2022
1744,Revenue,CAHD,South - Commissioned Services,Other Small Contracts,Brunelcare,338.80, 17-Oct-2022
1745,Revenue,CAHD,South - Commissioned Services,Other Small Contracts,Brunelcare,139.15, 17-Oct-2022
1746,Revenue,CAHD,South - Commissioned Services,Other Small Contracts,Brunelcare,96.80, 17-Oct-2022
1747,Revenue,CAHD,South - Commissioned Services,Other Small Contracts,Brunelcare,96.80, 17-Oct-2022
1748,Revenue,CAHD,South - Commissioned Services,Other Small Contracts,Brunelcare,514.25, 17-Oct-2022
1749,Revenue,CAHD,South - Commissioned Services,Other Small Contracts,Brunelcare,193.60, 17-Oct-2022
1750,Revenue,CAHD,South - Commissioned Services,Other Small Contracts,Brunelcare,514.25, 17-Oct-2022
1751,Revenue,CAHD,South - Commissioned Services,Other Small Contracts,Brunelcare,375.10, 17-Oct-2022
1752,Revenue,CAHD,South - Commissioned Services,Other Small Contracts,Brunelcare,465.85, 17-Oct-2022
1753,Revenue,CAHD,South - Commissioned Services,Other Small Contracts,Brunelcare,429.55, 17-Oct-2022
1754,Revenue,CAHD,South - Commissioned Services,Other Small Contracts,Brunelcare,411.40, 17-Oct-2022
1755,Revenue,CAHD,South - Commissioned Services,Other Small Contracts,Brunelcare,248.05, 17-Oct-2022
1756,Revenue,CAHD,South - Commissioned Services,Other Small Contracts,Brunelcare,774.40, 17-Oct-2022
